Department family,Entity,Date,Expense type,Expense area,Supplier,Transaction number,Amount,Description
MOJ,Legal Aid Agency,11/08/17,EXP - PURCHASE OF GOODS/SERVICES - ICT OUTSOURCING & MAINT./SUPPORT - Other,ATOS Managed Service,ATOS IT SERVICES UK LTD,5584242159,122432.08,ATOS T&M
MOJ,Legal Aid Agency,03/08/17,EXP - PURCHASE OF GOODS/SERVICES - ICT OUTSOURCING & MAINT./SUPPORT - Application Maintenance and Support,ISD Management and Admin.,CAPGEMINI UK PLC,2600110142045,106000,Cap Gemini Monthly Support
MOJ,Legal Aid Agency,31/08/17,EXP - PURCHASE OF GOODS/SERVICES - ICT OUTSOURCING & MAINT./SUPPORT - Application Maintenance and Support,ISD Management and Admin.,CAPGEMINI UK PLC,2600110144534,106000,Cap Gemini Monthly Support
MOJ,Legal Aid Agency,22/08/17,EXP - PURCHASE OF GOODS/SERVICES - OTHER - Translation / Interpreting Services,Central Funds,CLARION INTERPRETING LTD,52179,41659.69,Translation / Interpreting Services
MOJ,Legal Aid Agency,30/08/17,EXP - PURCHASE OF GOODS/SERVICES - ICT OUTSOURCING & MAINT./SUPPORT - Hosting,ISD Management and Admin.,REDCENTRIC SOLUTIONS LTD,229557,69736.6,Redcentric Monthly Service
MOJ,Legal Aid Agency,04/08/17,EXP - PURCHASE OF GOODS/SERVICES - OTHER TRAVEL - UK Other,Centralised Costs,REDFERN TRAVEL LTD,4227,70731.18,Travel Cost covering the period April 17 to Sept 17
MOJ,Legal Aid Agency,04/08/17,EXP - PURCHASE OF GOODS/SERVICES - OTHER TRAVEL - UK Other,Centralised Costs,REDFERN TRAVEL LTD,4434,59360.77,Travel Cost covering the period April 17 to Sept 17
MOJ,Legal Aid Agency,04/08/17,EXP - PURCHASE OF GOODS/SERVICES - TELECOMS - DATA COMMUNICATIONS,Financial Management - Payroll,REDROCK CONSULTING LTD,291411A,82764,"The continued provision of the specialist IT resource detailed in the contract.
"
MOJ,Legal Aid Agency,15/08/17,EXP - PURCHASE OF GOODS/SERVICES - ICT OUTSOURCING & MAINT./SUPPORT - Other,Contract Management - General,REDROCK CONSULTING LTD,295380,60975,"LAA Programme Resourcing
28/03/2017 to 05/07/2017
"
MOJ,Legal Aid Agency,15/08/17,EXP - PURCHASE OF GOODS/SERVICES - ICT OUTSOURCING & MAINT./SUPPORT - Other,Contract Management - General,REDROCK CONSULTING LTD,295381,45738,"LAA Portal Upgrade
28/03/2017 to 05/07/2017"
MOJ,Legal Aid Agency,15/08/17,EXP - PURCHASE OF GOODS/SERVICES - ICT OUTSOURCING & MAINT./SUPPORT - Other,Contract Management - General,REDROCK CONSULTING LTD,295382,33600,"LAA Portal Upgrade
28/03/2017 to 05/07/2017"
MOJ,Legal Aid Agency,08/08/17,EXP - PURCHASE OF GOODS/SERVICES - OTHER PROFESSIONAL SERVICES - LEGAL SERVICES - THIRD PARTY LEGAL COSTS,National Courts Core Team NCT,ROSSENDALES LTD,40079,81824.26,"	Collections (Service Delivery) costs for CCMT covering April 2017 to March 2018"
MOJ,Legal Aid Agency,08/08/17,EXP - PURCHASE OF GOODS/SERVICES - OTHER PROFESSIONAL SERVICES - LEGAL SERVICES - THIRD PARTY LEGAL COSTS,National Courts Core Team NCT,ROSSENDALES LTD,40080,86204.4,"	Enforcement costs for CCMT covering April 2017 to March 2018"
MOJ,Legal Aid Agency,09/08/17,EXP - PURCHASE OF GOODS/SERVICES - OTHER - Translation / Interpreting Services,Central Funds,THEBIGWORD INTERPRETING SERVICES LTD,90075644,598310.18,Translation / Interpreting Services
MOJ,Legal Aid Agency,18/08/17,EXP - PURCHASE OF GOODS/SERVICES - OTHER - Translation / Interpreting Services,Central Funds,THEBIGWORD INTERPRETING SERVICES LTD,90077764,564133.33,Translation / Interpreting Services
MOJ,Legal Aid Agency,15/08/17,EXP - PURCHASE OF GOODS/SERVICES - OFFICE RELATED - Reprographics,ISD Management and Admin.,WILLIAMS LEA LTD,M0J-LAA16120001,50161.58,Monthly Print Costs
MINISTRY OF JUSTICE,LEGAL AID AGENCY,09/08/17,Higher Crime,LEGAL AID FUND,A TOBY HEDWORTH QC,1271166:147763453,26656.58,Legal Aid Payment Higher Crime
MINISTRY OF JUSTICE,LEGAL AID AGENCY,02/08/17,Higher Crime,LEGAL AID FUND,ABBEY SOLICITORS,1266110:147677691,88214.79,Legal Aid Payment Higher Crime
MINISTRY OF JUSTICE,LEGAL AID AGENCY,02/08/17,Lower Crime,LEGAL AID FUND,ABBEY SOLICITORS,1266110:147686196,25200,Legal Aid Payment Lower Crime
MINISTRY OF JUSTICE,LEGAL AID AGENCY,30/08/17,Lower Crime,LEGAL AID FUND,ABBEY SOLICITORS,1286807:147886291,25200,Legal Aid Payment Lower Crime
MINISTRY OF JUSTICE,LEGAL AID AGENCY,02/08/17,Legal Help,LEGAL AID FUND,ABBOTSTONE LAW LLP,1267294:147684776,61557,Legal Aid Payment Legal Help
MINISTRY OF JUSTICE,LEGAL AID AGENCY,30/08/17,Legal Help,LEGAL AID FUND,ABBOTSTONE LAW LLP,1284043:147884840,71765,Legal Aid Payment Legal Help
MINISTRY OF JUSTICE,LEGAL AID AGENCY,30/08/17,Civil Representation,LEGAL AID FUND,ABIGAIL BOND,1285029:3000001364160015,25660.8,Legal Aid Payment Civil Representation
MINISTRY OF JUSTICE,LEGAL AID AGENCY,02/08/17,Higher Crime,LEGAL AID FUND,ABR SOLICITORS,1268835:147697962,89645.06,Legal Aid Payment Higher Crime
MINISTRY OF JUSTICE,LEGAL AID AGENCY,02/08/17,Higher Crime,LEGAL AID FUND,ABR SOLICITORS,1268835:147697967,-88740.48,Legal Aid Payment Higher Crime
MINISTRY OF JUSTICE,LEGAL AID AGENCY,02/08/17,Lower Crime,LEGAL AID FUND,ABV SOLICITORS,1266165:147686430,80800,Legal Aid Payment Lower Crime
MINISTRY OF JUSTICE,LEGAL AID AGENCY,02/08/17,Higher Crime,LEGAL AID FUND,ABV SOLICITORS,1266165:147714151,32433.1,Legal Aid Payment Higher Crime
MINISTRY OF JUSTICE,LEGAL AID AGENCY,09/08/17,Higher Crime,LEGAL AID FUND,ABV SOLICITORS,1273507:147740151,50175.86,Legal Aid Payment Higher Crime
MINISTRY OF JUSTICE,LEGAL AID AGENCY,16/08/17,Higher Crime,LEGAL AID FUND,ABV SOLICITORS,1275776:147779285,52787.71,Legal Aid Payment Higher Crime
MINISTRY OF JUSTICE,LEGAL AID AGENCY,30/08/17,Higher Crime,LEGAL AID FUND,ABV SOLICITORS,1286773:147878002,25685.65,Legal Aid Payment Higher Crime
MINISTRY OF JUSTICE,LEGAL AID AGENCY,30/08/17,Lower Crime,LEGAL AID FUND,ABV SOLICITORS,1286773:147886521,80800,Legal Aid Payment Lower Crime
MINISTRY OF JUSTICE,LEGAL AID AGENCY,30/08/17,Lower Crime,LEGAL AID FUND,ACA LAW LTD,1287126:147886471,46268,Legal Aid Payment Lower Crime
MINISTRY OF JUSTICE,LEGAL AID AGENCY,16/08/17,Higher Crime,LEGAL AID FUND,ACHOM & PARTNERS,1275729:147794381,63687.33,Legal Aid Payment Higher Crime
MINISTRY OF JUSTICE,LEGAL AID AGENCY,30/08/17,Lower Crime,LEGAL AID FUND,ACT SOLICITORS LTD,1287830:147886309,26390,Legal Aid Payment Lower Crime
MINISTRY OF JUSTICE,LEGAL AID AGENCY,30/08/17,Higher Crime,LEGAL AID FUND,ADAM V S KANE,1285275:147887469,32128,Legal Aid Payment Higher Crime
MINISTRY OF JUSTICE,LEGAL AID AGENCY,02/08/17,Higher Crime,LEGAL AID FUND,ADL SOLICITORS,1266041:147669334,35938.2,Legal Aid Payment Higher Crime
MINISTRY OF JUSTICE,LEGAL AID AGENCY,09/08/17,Higher Crime,LEGAL AID FUND,ADVICE WISE SOLICITORS LTD,1271271:147763698,37745.73,Legal Aid Payment Higher Crime
MINISTRY OF JUSTICE,LEGAL AID AGENCY,16/08/17,Higher Crime,LEGAL AID FUND,AHMED & CO,1276157:147793318,35101.99,Legal Aid Payment Higher Crime
MINISTRY OF JUSTICE,LEGAL AID AGENCY,02/08/17,Higher Crime,LEGAL AID FUND,ALAN P KENT QC,1268205:147677211,49972.46,Legal Aid Payment Higher Crime
MINISTRY OF JUSTICE,LEGAL AID AGENCY,30/08/17,Legal Help,LEGAL AID FUND,ALASTAIR BATEMAN & CO,1286971:147884814,35892,Legal Aid Payment Legal Help
MINISTRY OF JUSTICE,LEGAL AID AGENCY,02/08/17,Legal Help,LEGAL AID FUND,ALBANY SOLICITORS,1266039:147684727,26009,Legal Aid Payment Legal Help
MINISTRY OF JUSTICE,LEGAL AID AGENCY,02/08/17,Legal Help,LEGAL AID FUND,ALBIN & CO LTD,1266122:147684736,28022,Legal Aid Payment Legal Help
MINISTRY OF JUSTICE,LEGAL AID AGENCY,02/08/17,Lower Crime,LEGAL AID FUND,ALBIN & CO LTD,1266122:147686394,50000,Legal Aid Payment Lower Crime
MINISTRY OF JUSTICE,LEGAL AID AGENCY,30/08/17,Lower Crime,LEGAL AID FUND,ALBIN & CO LTD,1286819:147886502,56600,Legal Aid Payment Lower Crime
MINISTRY OF JUSTICE,LEGAL AID AGENCY,02/08/17,Lower Crime,LEGAL AID FUND,ALDERSON LAW LLP,1267327:147686267,30800,Legal Aid Payment Lower Crime
MINISTRY OF JUSTICE,LEGAL AID AGENCY,30/08/17,Lower Crime,LEGAL AID FUND,ALDERSON LAW LLP,1284158:147886366,30800,Legal Aid Payment Lower Crime
MINISTRY OF JUSTICE,LEGAL AID AGENCY,23/08/17,Higher Crime,LEGAL AID FUND,ALEXANDER BENNETT,1281221:147857718,54482,Legal Aid Payment Higher Crime
MINISTRY OF JUSTICE,LEGAL AID AGENCY,30/08/17,Lower Crime,LEGAL AID FUND,ALEXANDER BENNETT,1283681:147886292,25286,Legal Aid Payment Lower Crime
MINISTRY OF JUSTICE,LEGAL AID AGENCY,16/08/17,Higher Crime,LEGAL AID FUND,ALEXANDER UPTON,1275316:147775234,28370.83,Legal Aid Payment Higher Crime
MINISTRY OF JUSTICE,LEGAL AID AGENCY,02/08/17,Lower Crime,LEGAL AID FUND,ALLEN HOOLE SOLICITORS,1266546:147686381,45000,Legal Aid Payment Lower Crime
MINISTRY OF JUSTICE,LEGAL AID AGENCY,02/08/17,Lower Crime,LEGAL AID FUND,ALLEN HOOLE SOLICITORS,1268654:147686311,35000,Legal Aid Payment Lower Crime
MINISTRY OF JUSTICE,LEGAL AID AGENCY,30/08/17,Lower Crime,LEGAL AID FUND,ALLEN HOOLE SOLICITORS,1286519:147886408,35000,Legal Aid Payment Lower Crime
MINISTRY OF JUSTICE,LEGAL AID AGENCY,30/08/17,Lower Crime,LEGAL AID FUND,ALLEN HOOLE SOLICITORS,1287600:147886465,45000,Legal Aid Payment Lower Crime
MINISTRY OF JUSTICE,LEGAL AID AGENCY,23/08/17,Higher Crime,LEGAL AID FUND,AMOSU ROBINSHAW LTD,1282614:147856125,51872.16,Legal Aid Payment Higher Crime
MINISTRY OF JUSTICE,LEGAL AID AGENCY,09/08/17,Higher Crime,LEGAL AID FUND,ANDERSONS SOLICITORS,1271792:147746329,89975.11,Legal Aid Payment Higher Crime
MINISTRY OF JUSTICE,LEGAL AID AGENCY,09/08/17,Civil Representation,LEGAL AID FUND,ANDREW J C COMAISH,1270742:3000001590040010,51857.28,Legal Aid Payment Civil Representation
MINISTRY OF JUSTICE,LEGAL AID AGENCY,02/08/17,Higher Crime,LEGAL AID FUND,ANDREW JEFFERIES QC,1265309:147687528,47063.28,Legal Aid Payment Higher Crime
MINISTRY OF JUSTICE,LEGAL AID AGENCY,09/08/17,Civil Representation,LEGAL AID FUND,ANDREW M NEAVES,1272917:147736269,33652.8,Legal Aid Payment Civil Representation
MINISTRY OF JUSTICE,LEGAL AID AGENCY,09/08/17,Civil Representation,LEGAL AID FUND,ANDREW M NEAVES,1272917:147759565,-27345.6,Legal Aid Payment Civil Representation
MINISTRY OF JUSTICE,LEGAL AID AGENCY,30/08/17,Civil Representation,LEGAL AID FUND,ANDREW P HAGGIS,1286050:3000001463670021,25243.66,Legal Aid Payment Civil Representation
MINISTRY OF JUSTICE,LEGAL AID AGENCY,02/08/17,Higher Crime,LEGAL AID FUND,ANDREW W MCGEE,1267884:147718629,42945.83,Legal Aid Payment Higher Crime
MINISTRY OF JUSTICE,LEGAL AID AGENCY,02/08/17,Lower Crime,LEGAL AID FUND,ANGELA PORTER SOLICITORS,1266085:147686268,30814,Legal Aid Payment Lower Crime
MINISTRY OF JUSTICE,LEGAL AID AGENCY,23/08/17,Civil Representation,LEGAL AID FUND,ANNA L MCKENNA,1279888:3000002350510008,60750,Legal Aid Payment Civil Representation
MINISTRY OF JUSTICE,LEGAL AID AGENCY,23/08/17,Civil Representation,LEGAL AID FUND,ANNABEL C L HAMILTON,1281537:3000001913170025,30926.4,Legal Aid Payment Civil Representation
MINISTRY OF JUSTICE,LEGAL AID AGENCY,30/08/17,Civil Representation,LEGAL AID FUND,ANNIE DIXON,1285783:147908926,27075.6,Legal Aid Payment Civil Representation
MINISTRY OF JUSTICE,LEGAL AID AGENCY,16/08/17,Civil Representation,LEGAL AID FUND,ANTHONY COLLINS LLP,1276250:3000001660260011,31881.6,Legal Aid Payment Civil Representation
MINISTRY OF JUSTICE,LEGAL AID AGENCY,30/08/17,Legal Help,LEGAL AID FUND,ANTI-TRAFFICKING AND LABOUR,1284191:147884843,87506,Legal Aid Payment Legal Help
MINISTRY OF JUSTICE,LEGAL AID AGENCY,09/08/17,Higher Crime,LEGAL AID FUND,APPLEBY SHAW LTD,1270009:147740181,41440.89,Legal Aid Payment Higher Crime
MINISTRY OF JUSTICE,LEGAL AID AGENCY,02/08/17,Legal Help,LEGAL AID FUND,APPLEMAN LEGAL,1267289:147684768,48116,Legal Aid Payment Legal Help
MINISTRY OF JUSTICE,LEGAL AID AGENCY,30/08/17,Legal Help,LEGAL AID FUND,APPLEMAN LEGAL,1284133:147884827,48231,Legal Aid Payment Legal Help
MINISTRY OF JUSTICE,LEGAL AID AGENCY,16/08/17,Higher Crime,LEGAL AID FUND,ARORA LODHI HEATH,1276275:147794068,50258.8,Legal Aid Payment Higher Crime
MINISTRY OF JUSTICE,LEGAL AID AGENCY,02/08/17,Lower Crime,LEGAL AID FUND,ASGHAR & CO,1266912:147686216,26866,Legal Aid Payment Lower Crime
MINISTRY OF JUSTICE,LEGAL AID AGENCY,02/08/17,Higher Crime,LEGAL AID FUND,ASGHAR & CO,1266912:147696922,35434.41,Legal Aid Payment Higher Crime
MINISTRY OF JUSTICE,LEGAL AID AGENCY,30/08/17,Lower Crime,LEGAL AID FUND,ASGHAR & CO,1288214:147886336,28068,Legal Aid Payment Lower Crime
MINISTRY OF JUSTICE,LEGAL AID AGENCY,23/08/17,Higher Crime,LEGAL AID FUND,ASHMANS SOLICITORS LTD,1282372:147856501,53118.82,Legal Aid Payment Higher Crime
MINISTRY OF JUSTICE,LEGAL AID AGENCY,30/08/17,Higher Crime,LEGAL AID FUND,ASHMANS SOLICITORS LTD,1286374:147904757,75081.67,Legal Aid Payment Higher Crime
MINISTRY OF JUSTICE,LEGAL AID AGENCY,09/08/17,Higher Crime,LEGAL AID FUND,AVIRUP CHAUDHURI,1270713:147722204,44017.9,Legal Aid Payment Higher Crime
MINISTRY OF JUSTICE,LEGAL AID AGENCY,23/08/17,Higher Crime,LEGAL AID FUND,AVISONS LAW LTD,1280282:147847555,74979.26,Legal Aid Payment Higher Crime
MINISTRY OF JUSTICE,LEGAL AID AGENCY,02/08/17,Higher Crime,LEGAL AID FUND,AYUB SOLICITORS,1267166:147669042,47575.08,Legal Aid Payment Higher Crime
MINISTRY OF JUSTICE,LEGAL AID AGENCY,30/08/17,Higher Crime,LEGAL AID FUND,B H MOHAMMED,1288046:147887564,52362.46,Legal Aid Payment Higher Crime
MINISTRY OF JUSTICE,LEGAL AID AGENCY,02/08/17,Lower Crime,LEGAL AID FUND,BAILEY NICHOLSON GRAYSON,1266350:147686320,35400,Legal Aid Payment Lower Crime
MINISTRY OF JUSTICE,LEGAL AID AGENCY,16/08/17,Higher Crime,LEGAL AID FUND,BAILEY NICHOLSON GRAYSON,1278026:147817054,74979.26,Legal Aid Payment Higher Crime
MINISTRY OF JUSTICE,LEGAL AID AGENCY,23/08/17,Higher Crime,LEGAL AID FUND,BAILEY NICHOLSON GRAYSON,1280553:147848312,89645.06,Legal Aid Payment Higher Crime
MINISTRY OF JUSTICE,LEGAL AID AGENCY,30/08/17,Lower Crime,LEGAL AID FUND,BAILEY NICHOLSON GRAYSON,1287218:147886414,35400,Legal Aid Payment Lower Crime
MINISTRY OF JUSTICE,LEGAL AID AGENCY,09/08/17,Higher Crime,LEGAL AID FUND,BAILEY NICHOLSON GRAYSON-ADVOCATE,1272534:147763631,28409,Legal Aid Payment Higher Crime
MINISTRY OF JUSTICE,LEGAL AID AGENCY,02/08/17,Lower Crime,LEGAL AID FUND,BAINS SOLICITORS,1266349:147686317,35074,Legal Aid Payment Lower Crime
MINISTRY OF JUSTICE,LEGAL AID AGENCY,30/08/17,Lower Crime,LEGAL AID FUND,BAINS SOLICITORS,1287217:147886316,26795,Legal Aid Payment Lower Crime
MINISTRY OF JUSTICE,LEGAL AID AGENCY,02/08/17,Higher Crime,LEGAL AID FUND,BAKERS SOLICITORS.,1268927:147687842,65630.43,Legal Aid Payment Higher Crime
MINISTRY OF JUSTICE,LEGAL AID AGENCY,30/08/17,Higher Crime,LEGAL AID FUND,BALBIR SINGH,1285206:147864139,31400.8,Legal Aid Payment Higher Crime
MINISTRY OF JUSTICE,LEGAL AID AGENCY,23/08/17,Higher Crime,LEGAL AID FUND,BALRAJ S BHATIA,1279908:147825291,40304.11,Legal Aid Payment Higher Crime
MINISTRY OF JUSTICE,LEGAL AID AGENCY,30/08/17,Legal Help,LEGAL AID FUND,BANKFIELD HEATH SOLICITORS,1284398:147884806,32729,Legal Aid Payment Legal Help
MINISTRY OF JUSTICE,LEGAL AID AGENCY,09/08/17,Higher Crime,LEGAL AID FUND,BARK & CO,1273863:147723141,33894.74,Legal Aid Payment Higher Crime
MINISTRY OF JUSTICE,LEGAL AID AGENCY,09/08/17,Higher Crime,LEGAL AID FUND,BARK & CO,1273863:147728074,48531,Legal Aid Payment Higher Crime
MINISTRY OF JUSTICE,LEGAL AID AGENCY,23/08/17,Higher Crime,LEGAL AID FUND,BARK & CO,1282973:147848186,88214.79,Legal Aid Payment Higher Crime
MINISTRY OF JUSTICE,LEGAL AID AGENCY,30/08/17,Lower Crime,LEGAL AID FUND,BARK & CO,1287745:147886311,26402,Legal Aid Payment Lower Crime
MINISTRY OF JUSTICE,LEGAL AID AGENCY,02/08/17,Legal Help,LEGAL AID FUND,BARNES HARRILD & DYER,1267420:147684752,35217,Legal Aid Payment Legal Help
MINISTRY OF JUSTICE,LEGAL AID AGENCY,02/08/17,Legal Help,LEGAL AID FUND,BARNES HARRILD & DYER,1269419:147684766,43919,Legal Aid Payment Legal Help
MINISTRY OF JUSTICE,LEGAL AID AGENCY,30/08/17,Legal Help,LEGAL AID FUND,BARNES HARRILD & DYER,1284329:147884813,35361,Legal Aid Payment Legal Help
MINISTRY OF JUSTICE,LEGAL AID AGENCY,30/08/17,Legal Help,LEGAL AID FUND,BARNES HARRILD & DYER,1287976:147884807,32753,Legal Aid Payment Legal Help
MINISTRY OF JUSTICE,LEGAL AID AGENCY,02/08/17,Lower Crime,LEGAL AID FUND,BARRETT & NELLIGAN SOLICITORS LTD,1269307:147686217,27000,Legal Aid Payment Lower Crime
MINISTRY OF JUSTICE,LEGAL AID AGENCY,23/08/17,Higher Crime,LEGAL AID FUND,BARRETT & NELLIGAN SOLICITORS LTD,1282903:147848011,74979.26,Legal Aid Payment Higher Crime
MINISTRY OF JUSTICE,LEGAL AID AGENCY,30/08/17,Lower Crime,LEGAL AID FUND,BARRETT & NELLIGAN SOLICITORS LTD,1287779:147886318,27000,Legal Aid Payment Lower Crime
MINISTRY OF JUSTICE,LEGAL AID AGENCY,02/08/17,Civil Representation,LEGAL AID FUND,BARRETT & THOMSON,1269553:142577924,36606.9,Legal Aid Payment Civil Representation
MINISTRY OF JUSTICE,LEGAL AID AGENCY,02/08/17,Lower Crime,LEGAL AID FUND,BAXTER BROWN MCARTHUR SOLICITORS,1268794:147686244,28700,Legal Aid Payment Lower Crime
MINISTRY OF JUSTICE,LEGAL AID AGENCY,02/08/17,Higher Crime,LEGAL AID FUND,BAXTER BROWN MCARTHUR SOLICITORS,1268794:147713994,66359.63,Legal Aid Payment Higher Crime
MINISTRY OF JUSTICE,LEGAL AID AGENCY,30/08/17,Lower Crime,LEGAL AID FUND,BAXTER BROWN MCARTHUR SOLICITORS,1286844:147886341,28700,Legal Aid Payment Lower Crime
MINISTRY OF JUSTICE,LEGAL AID AGENCY,02/08/17,Lower Crime,LEGAL AID FUND,BDH SOLICITORS LTD,1269388:147686224,27400,Legal Aid Payment Lower Crime
MINISTRY OF JUSTICE,LEGAL AID AGENCY,30/08/17,Lower Crime,LEGAL AID FUND,BDH SOLICITORS LTD,1287766:147886323,27400,Legal Aid Payment Lower Crime
MINISTRY OF JUSTICE,LEGAL AID AGENCY,16/08/17,Civil Representation,LEGAL AID FUND,BEECHAM PEACOCK LLP,1276125:147789296,34174.8,Legal Aid Payment Civil Representation
MINISTRY OF JUSTICE,LEGAL AID AGENCY,16/08/17,Civil Representation,LEGAL AID FUND,BEECHAM PEACOCK LLP,1276125:147822190,-34174.8,Legal Aid Payment Civil Representation
MINISTRY OF JUSTICE,LEGAL AID AGENCY,30/08/17,Lower Crime,LEGAL AID FUND,BELMORES SOLICITORS LTD,1286835:147886413,35353,Legal Aid Payment Lower Crime
MINISTRY OF JUSTICE,LEGAL AID AGENCY,02/08/17,Civil Representation,LEGAL AID FUND,BENDLES,1269344:3000000618760026,33320.78,Legal Aid Payment Civil Representation
MINISTRY OF JUSTICE,LEGAL AID AGENCY,09/08/17,Higher Crime,LEGAL AID FUND,BENJAMIN A O AINA QC,1272317:147738960,29849.94,Legal Aid Payment Higher Crime
MINISTRY OF JUSTICE,LEGAL AID AGENCY,02/08/17,Civil Representation,LEGAL AID FUND,BERRY & LAMBERTS SOLICITORS,1266894:147702327,38357.34,Legal Aid Payment Civil Representation
MINISTRY OF JUSTICE,LEGAL AID AGENCY,02/08/17,Civil Representation,LEGAL AID FUND,BERRY & LAMBERTS SOLICITORS,1266894:147702328,-36926.44,Legal Aid Payment Civil Representation
MINISTRY OF JUSTICE,LEGAL AID AGENCY,02/08/17,Lower Crime,LEGAL AID FUND,BESWICKS SOLICITORS LLP,1269468:147686280,32008,Legal Aid Payment Lower Crime
MINISTRY OF JUSTICE,LEGAL AID AGENCY,30/08/17,Lower Crime,LEGAL AID FUND,BESWICKS SOLICITORS LLP,1288023:147886455,43567,Legal Aid Payment Lower Crime
MINISTRY OF JUSTICE,LEGAL AID AGENCY,02/08/17,Lower Crime,LEGAL AID FUND,BHATIA BEST LTD,1266530:147686318,35200,Legal Aid Payment Lower Crime
MINISTRY OF JUSTICE,LEGAL AID AGENCY,02/08/17,Lower Crime,LEGAL AID FUND,BHATIA BEST LTD,1266532:147686421,67000,Legal Aid Payment Lower Crime
MINISTRY OF JUSTICE,LEGAL AID AGENCY,30/08/17,Lower Crime,LEGAL AID FUND,BHATIA BEST LTD,1287487:147886411,35200,Legal Aid Payment Lower Crime
MINISTRY OF JUSTICE,LEGAL AID AGENCY,30/08/17,Lower Crime,LEGAL AID FUND,BHATIA BEST LTD,1287489:147886514,67000,Legal Aid Payment Lower Crime
MINISTRY OF JUSTICE,LEGAL AID AGENCY,02/08/17,Legal Help,LEGAL AID FUND,BINDMANS LLP,1266309:147684762,42900,Legal Aid Payment Legal Help
MINISTRY OF JUSTICE,LEGAL AID AGENCY,30/08/17,Legal Help,LEGAL AID FUND,BINDMANS LLP,1287174:147884822,42900,Legal Aid Payment Legal Help
MINISTRY OF JUSTICE,LEGAL AID AGENCY,02/08/17,Lower Crime,LEGAL AID FUND,BIRDS SOLICITORS LTD,1266150:147686422,67500,Legal Aid Payment Lower Crime
MINISTRY OF JUSTICE,LEGAL AID AGENCY,30/08/17,Lower Crime,LEGAL AID FUND,BIRDS SOLICITORS LTD,1286942:147886515,67500,Legal Aid Payment Lower Crime
MINISTRY OF JUSTICE,LEGAL AID AGENCY,30/08/17,Higher Crime,LEGAL AID FUND,BIRDS SOLICITORS LTD,1286942:147887359,74979.26,Legal Aid Payment Higher Crime
MINISTRY OF JUSTICE,LEGAL AID AGENCY,16/08/17,Higher Crime,LEGAL AID FUND,BIRDS SOLICITORS LTD-ADVOCATE,1276922:147786790,28338.68,Legal Aid Payment Higher Crime
MINISTRY OF JUSTICE,LEGAL AID AGENCY,02/08/17,Legal Help,LEGAL AID FUND,BISON SOLICITORS LTD,1264664:147673579,125732,Legal Aid Payment Legal Help
MINISTRY OF JUSTICE,LEGAL AID AGENCY,30/08/17,Legal Help,LEGAL AID FUND,BISON SOLICITORS LTD,1284047:147875759,109482,Legal Aid Payment Legal Help
MINISTRY OF JUSTICE,LEGAL AID AGENCY,02/08/17,Higher Crime,LEGAL AID FUND,BIVONAS LLP,1269240:147673947,38860.18,Legal Aid Payment Higher Crime
MINISTRY OF JUSTICE,LEGAL AID AGENCY,16/08/17,Higher Crime,LEGAL AID FUND,BIVONAS LLP,1278231:147776053,25684.13,Legal Aid Payment Higher Crime
MINISTRY OF JUSTICE,LEGAL AID AGENCY,23/08/17,Higher Crime,LEGAL AID FUND,BJ & CO SOLICITORS LTD,1280427:147825380,38057.27,Legal Aid Payment Higher Crime
MINISTRY OF JUSTICE,LEGAL AID AGENCY,02/08/17,Lower Crime,LEGAL AID FUND,BLACKFORDS LLP,1266871:147686418,64122,Legal Aid Payment Lower Crime
MINISTRY OF JUSTICE,LEGAL AID AGENCY,02/08/17,Civil Representation,LEGAL AID FUND,BLACKFORDS LLP,1266883:147719211,28572.35,Legal Aid Payment Civil Representation
MINISTRY OF JUSTICE,LEGAL AID AGENCY,09/08/17,Higher Crime,LEGAL AID FUND,BLACKFORDS LLP,1274065:147769221,132451.67,Legal Aid Payment Higher Crime
MINISTRY OF JUSTICE,LEGAL AID AGENCY,09/08/17,Civil Representation,LEGAL AID FUND,BLACKFORDS LLP,1274065:147769221,26490.33,Legal Aid Payment Civil Representation
MINISTRY OF JUSTICE,LEGAL AID AGENCY,09/08/17,Higher Crime,LEGAL AID FUND,BLACKFORDS LLP,1274065:147769228,112559.52,Legal Aid Payment Higher Crime
MINISTRY OF JUSTICE,LEGAL AID AGENCY,16/08/17,Higher Crime,LEGAL AID FUND,BLACKFORDS LLP,1278575:147778211,57348.95,Legal Aid Payment Higher Crime
MINISTRY OF JUSTICE,LEGAL AID AGENCY,16/08/17,Higher Crime,LEGAL AID FUND,BLACKFORDS LLP,1278575:147816223,50225.12,Legal Aid Payment Higher Crime
MINISTRY OF JUSTICE,LEGAL AID AGENCY,30/08/17,Lower Crime,LEGAL AID FUND,BLACKFORDS LLP,1288359:147886496,54010,Legal Aid Payment Lower Crime
MINISTRY OF JUSTICE,LEGAL AID AGENCY,02/08/17,Lower Crime,LEGAL AID FUND,BLACKWELLS,1268917:147686270,31000,Legal Aid Payment Lower Crime
MINISTRY OF JUSTICE,LEGAL AID AGENCY,30/08/17,Lower Crime,LEGAL AID FUND,BLACKWELLS,1286866:147886369,31000,Legal Aid Payment Lower Crime
MINISTRY OF JUSTICE,LEGAL AID AGENCY,02/08/17,Lower Crime,LEGAL AID FUND,BOBBETTS MACKAN,1269497:147686360,42000,Legal Aid Payment Lower Crime
MINISTRY OF JUSTICE,LEGAL AID AGENCY,30/08/17,Lower Crime,LEGAL AID FUND,BOBBETTS MACKAN,1288143:147886449,42000,Legal Aid Payment Lower Crime
MINISTRY OF JUSTICE,LEGAL AID AGENCY,30/08/17,Civil Representation,LEGAL AID FUND,BOLT BURDON KEMP,253578:147867847,26277.18,Legal Aid Payment Civil Representation
MINISTRY OF JUSTICE,LEGAL AID AGENCY,02/08/17,Higher Crime,LEGAL AID FUND,BOND JOSEPH,1266193:147677523,89645.06,Legal Aid Payment Higher Crime
MINISTRY OF JUSTICE,LEGAL AID AGENCY,02/08/17,Lower Crime,LEGAL AID FUND,BOND JOSEPH,1266193:147686328,36113,Legal Aid Payment Lower Crime
MINISTRY OF JUSTICE,LEGAL AID AGENCY,09/08/17,Higher Crime,LEGAL AID FUND,BOWDEN JONES LTD ABS,1271501:147731316,41440.89,Legal Aid Payment Higher Crime
MINISTRY OF JUSTICE,LEGAL AID AGENCY,09/08/17,Civil Representation,LEGAL AID FUND,BOWERMANS,1273839:147736283,25027.55,Legal Aid Payment Civil Representation
MINISTRY OF JUSTICE,LEGAL AID AGENCY,02/08/17,Higher Crime,LEGAL AID FUND,BOYLE TRICKS LEONARD LTD,1264340:147697708,33763.46,Legal Aid Payment Higher Crime
MINISTRY OF JUSTICE,LEGAL AID AGENCY,02/08/17,Lower Crime,LEGAL AID FUND,BRADY EASTWOOD PIERCE & STEWART,1266914:147686253,29854,Legal Aid Payment Lower Crime
MINISTRY OF JUSTICE,LEGAL AID AGENCY,09/08/17,Higher Crime,LEGAL AID FUND,BRADY EASTWOOD PIERCE & STEWART,1271928:147731322,27844.2,Legal Aid Payment Higher Crime
MINISTRY OF JUSTICE,LEGAL AID AGENCY,23/08/17,Higher Crime,LEGAL AID FUND,BRADY EASTWOOD PIERCE & STEWART,1283075:147857300,47767.99,Legal Aid Payment Higher Crime
MINISTRY OF JUSTICE,LEGAL AID AGENCY,30/08/17,Lower Crime,LEGAL AID FUND,BRADY EASTWOOD PIERCE & STEWART,1288216:147886350,29304,Legal Aid Payment Lower Crime
MINISTRY OF JUSTICE,LEGAL AID AGENCY,30/08/17,Legal Help,LEGAL AID FUND,BRAITCH SOLICITORS (RB SOLICITORS),1286733:147884795,27283,Legal Aid Payment Legal Help
MINISTRY OF JUSTICE,LEGAL AID AGENCY,23/08/17,Civil Representation,LEGAL AID FUND,BRAND MELLON,1282860:147844184,29167.4,Legal Aid Payment Civil Representation
MINISTRY OF JUSTICE,LEGAL AID AGENCY,23/08/17,Civil Representation,LEGAL AID FUND,BRAND MELLON,1282860:147844185,-28829.96,Legal Aid Payment Civil Representation
MINISTRY OF JUSTICE,LEGAL AID AGENCY,09/08/17,Civil Representation,LEGAL AID FUND,BRENDAN FLEMING SOLICITORS,1273984:147736051,56353.93,Legal Aid Payment Civil Representation
MINISTRY OF JUSTICE,LEGAL AID AGENCY,09/08/17,Civil Representation,LEGAL AID FUND,BRENDAN FLEMING SOLICITORS,1273984:147759576,-39852,Legal Aid Payment Civil Representation
MINISTRY OF JUSTICE,LEGAL AID AGENCY,02/08/17,Higher Crime,LEGAL AID FUND,BRENDON MOORHOUSE,1268084:147695703,32733.34,Legal Aid Payment Higher Crime
MINISTRY OF JUSTICE,LEGAL AID AGENCY,02/08/17,Lower Crime,LEGAL AID FUND,BREYDONS SOLICITORS LTD,1267276:147686302,34018,Legal Aid Payment Lower Crime
MINISTRY OF JUSTICE,LEGAL AID AGENCY,02/08/17,Higher Crime,LEGAL AID FUND,BREYDONS SOLICITORS LTD,1267276:147697001,52119.6,Legal Aid Payment Higher Crime
MINISTRY OF JUSTICE,LEGAL AID AGENCY,30/08/17,Lower Crime,LEGAL AID FUND,BREYDONS SOLICITORS LTD,1284124:147886380,32324,Legal Aid Payment Lower Crime
MINISTRY OF JUSTICE,LEGAL AID AGENCY,30/08/17,Civil Representation,LEGAL AID FUND,BRIDGE MCFARLAND,1287604:3000001081140016,25531.4,Legal Aid Payment Civil Representation
MINISTRY OF JUSTICE,LEGAL AID AGENCY,02/08/17,Legal Help,LEGAL AID FUND,BRIGHTON HOUSING TRUST,1265876:147684763,43362,Legal Aid Payment Legal Help
MINISTRY OF JUSTICE,LEGAL AID AGENCY,30/08/17,Legal Help,LEGAL AID FUND,BRIGHTON HOUSING TRUST,1286216:147884817,39250,Legal Aid Payment Legal Help
MINISTRY OF JUSTICE,LEGAL AID AGENCY,02/08/17,Higher Crime,LEGAL AID FUND,BROOKLYN SOLICITORS LTD,1266181:147677369,36662.32,Legal Aid Payment Higher Crime
MINISTRY OF JUSTICE,LEGAL AID AGENCY,02/08/17,Higher Crime,LEGAL AID FUND,BROOKLYN SOLICITORS LTD,1266181:147697760,59231.04,Legal Aid Payment Higher Crime
MINISTRY OF JUSTICE,LEGAL AID AGENCY,02/08/17,Higher Crime,LEGAL AID FUND,BRUCE I STUART,1265215:147674771,44507.57,Legal Aid Payment Higher Crime
MINISTRY OF JUSTICE,LEGAL AID AGENCY,02/08/17,Lower Crime,LEGAL AID FUND,BULLIVANT LAW LTD,1266053:147686249,29400,Legal Aid Payment Lower Crime
MINISTRY OF JUSTICE,LEGAL AID AGENCY,30/08/17,Lower Crime,LEGAL AID FUND,BULLIVANT LAW LTD,1286722:147886351,29400,Legal Aid Payment Lower Crime
MINISTRY OF JUSTICE,LEGAL AID AGENCY,02/08/17,Legal Help,LEGAL AID FUND,BURKE NIAZI  LTD,1266656:147673555,108000,Legal Aid Payment Legal Help
MINISTRY OF JUSTICE,LEGAL AID AGENCY,30/08/17,Legal Help,LEGAL AID FUND,BURKE NIAZI  LTD,1287875:147875758,108000,Legal Aid Payment Legal Help
MINISTRY OF JUSTICE,LEGAL AID AGENCY,23/08/17,Higher Crime,LEGAL AID FUND,BURNLEY JONES BATE & CO-ADVOCATE,1279401:147840721,29109.7,Legal Aid Payment Higher Crime
MINISTRY OF JUSTICE,LEGAL AID AGENCY,02/08/17,Higher Crime,LEGAL AID FUND,BURTON COPELAND LLP,1269085:147677680,85162.8,Legal Aid Payment Higher Crime
MINISTRY OF JUSTICE,LEGAL AID AGENCY,02/08/17,Lower Crime,LEGAL AID FUND,BURTON COPELAND LLP,1269085:147686397,50224,Legal Aid Payment Lower Crime
MINISTRY OF JUSTICE,LEGAL AID AGENCY,30/08/17,Lower Crime,LEGAL AID FUND,BURTON COPELAND LLP,1287298:147886495,53920,Legal Aid Payment Lower Crime
MINISTRY OF JUSTICE,LEGAL AID AGENCY,02/08/17,Legal Help,LEGAL AID FUND,BUTLER & CO,1268790:147684757,36500,Legal Aid Payment Legal Help
MINISTRY OF JUSTICE,LEGAL AID AGENCY,30/08/17,Legal Help,LEGAL AID FUND,BUTLER & CO,1286840:147884815,36500,Legal Aid Payment Legal Help
MINISTRY OF JUSTICE,LEGAL AID AGENCY,02/08/17,Civil Representation,LEGAL AID FUND,CAMERON JONES HUSSELL & HOWE,1266666:3000000629640009,26461.07,Legal Aid Payment Civil Representation
MINISTRY OF JUSTICE,LEGAL AID AGENCY,23/08/17,Higher Crime,LEGAL AID FUND,CARLTON PLACE LAW,1282598:147833546,74979.26,Legal Aid Payment Higher Crime
MINISTRY OF JUSTICE,LEGAL AID AGENCY,02/08/17,Lower Crime,LEGAL AID FUND,CARR & CO,1266556:147686287,32800,Legal Aid Payment Lower Crime
MINISTRY OF JUSTICE,LEGAL AID AGENCY,30/08/17,Lower Crime,LEGAL AID FUND,CARR & CO,1287687:147886387,32800,Legal Aid Payment Lower Crime
MINISTRY OF JUSTICE,LEGAL AID AGENCY,30/08/17,Higher Crime,LEGAL AID FUND,CARR HEWITT,1286690:147871411,67789.47,Legal Aid Payment Higher Crime
MINISTRY OF JUSTICE,LEGAL AID AGENCY,02/08/17,Lower Crime,LEGAL AID FUND,CARRINGTONS SOLICITORS,1266048:147686441,200060,Legal Aid Payment Lower Crime
MINISTRY OF JUSTICE,LEGAL AID AGENCY,30/08/17,Lower Crime,LEGAL AID FUND,CARRINGTONS SOLICITORS,1286745:147886530,179740,Legal Aid Payment Lower Crime
MINISTRY OF JUSTICE,LEGAL AID AGENCY,16/08/17,Higher Crime,LEGAL AID FUND,CARTER MOORE SOLICITORS LTD,1275742:147676502,-62841.5,Legal Aid Payment Higher Crime
MINISTRY OF JUSTICE,LEGAL AID AGENCY,16/08/17,Higher Crime,LEGAL AID FUND,CARTER MOORE SOLICITORS LTD,1275742:147726619,31767.23,Legal Aid Payment Higher Crime
MINISTRY OF JUSTICE,LEGAL AID AGENCY,02/08/17,Lower Crime,LEGAL AID FUND,CARTER OSBORNE LTD,1269125:147686412,59150,Legal Aid Payment Lower Crime
MINISTRY OF JUSTICE,LEGAL AID AGENCY,30/08/17,Lower Crime,LEGAL AID FUND,CARTER OSBORNE LTD,1287426:147886517,75237,Legal Aid Payment Lower Crime
MINISTRY OF JUSTICE,LEGAL AID AGENCY,02/08/17,Lower Crime,LEGAL AID FUND,CARTWRIGHT KING LTD,1265851:147686308,34868,Legal Aid Payment Lower Crime
MINISTRY OF JUSTICE,LEGAL AID AGENCY,02/08/17,Lower Crime,LEGAL AID FUND,CARTWRIGHT KING LTD,1267254:147686211,26300,Legal Aid Payment Lower Crime
MINISTRY OF JUSTICE,LEGAL AID AGENCY,02/08/17,Legal Help,LEGAL AID FUND,CARTWRIGHT KING LTD,1268883:147684784,75885,Legal Aid Payment Legal Help
MINISTRY OF JUSTICE,LEGAL AID AGENCY,02/08/17,Lower Crime,LEGAL AID FUND,CARTWRIGHT KING LTD,1268883:147686387,47359,Legal Aid Payment Lower Crime
MINISTRY OF JUSTICE,LEGAL AID AGENCY,16/08/17,Higher Crime,LEGAL AID FUND,CARTWRIGHT KING LTD,1276542:147817983,30580.85,Legal Aid Payment Higher Crime
MINISTRY OF JUSTICE,LEGAL AID AGENCY,23/08/17,Higher Crime,LEGAL AID FUND,CARTWRIGHT KING LTD,1281128:147848214,88214.79,Legal Aid Payment Higher Crime
MINISTRY OF JUSTICE,LEGAL AID AGENCY,30/08/17,Lower Crime,LEGAL AID FUND,CARTWRIGHT KING LTD,1284012:147886308,26300,Legal Aid Payment Lower Crime
MINISTRY OF JUSTICE,LEGAL AID AGENCY,30/08/17,Lower Crime,LEGAL AID FUND,CARTWRIGHT KING LTD,1286922:147886315,26735,Legal Aid Payment Lower Crime
MINISTRY OF JUSTICE,LEGAL AID AGENCY,30/08/17,Legal Help,LEGAL AID FUND,CARTWRIGHT KING LTD,1286924:147884834,60029,Legal Aid Payment Legal Help
MINISTRY OF JUSTICE,LEGAL AID AGENCY,30/08/17,Lower Crime,LEGAL AID FUND,CARTWRIGHT KING LTD,1286924:147886384,32601,Legal Aid Payment Lower Crime
MINISTRY OF JUSTICE,LEGAL AID AGENCY,23/08/17,Civil Representation,LEGAL AID FUND,CATHERINE L PREEN,1280156:3000001913170024,38476.8,Legal Aid Payment Civil Representation
MINISTRY OF JUSTICE,LEGAL AID AGENCY,16/08/17,Higher Crime,LEGAL AID FUND,CAVEAT SOLICITORS,1274725:147771228,59060.41,Legal Aid Payment Higher Crime
MINISTRY OF JUSTICE,LEGAL AID AGENCY,15/08/17,Civil Representation,LEGAL AID FUND,CHANDLER RAY,1274277:146691287,-25468.76,Legal Aid Payment Civil Representation
MINISTRY OF JUSTICE,LEGAL AID AGENCY,02/08/17,Higher Crime,LEGAL AID FUND,CHARLES LANGLEY,1267883:147715476,40680.2,Legal Aid Payment Higher Crime
MINISTRY OF JUSTICE,LEGAL AID AGENCY,30/08/17,Higher Crime,LEGAL AID FUND,CHARTER SOLICITORS,1283885:147871185,89645.06,Legal Aid Payment Higher Crime
MINISTRY OF JUSTICE,LEGAL AID AGENCY,16/08/17,Civil Representation,LEGAL AID FUND,CHILD LAW PARTNERSHIP LTD,1275943:3000001879190006,31424.53,Legal Aid Payment Civil Representation
MINISTRY OF JUSTICE,LEGAL AID AGENCY,16/08/17,Civil Representation,LEGAL AID FUND,CHILD LAW PARTNERSHIP LTD,1276835:3000001017510009,29556.04,Legal Aid Payment Civil Representation
MINISTRY OF JUSTICE,LEGAL AID AGENCY,02/08/17,Lower Crime,LEGAL AID FUND,CHIVERS SOLICITORS,1268978:147686208,26003,Legal Aid Payment Lower Crime
MINISTRY OF JUSTICE,LEGAL AID AGENCY,23/08/17,Higher Crime,LEGAL AID FUND,CHOPRA & GILL SOLICITORS,1280240:147825830,63246.22,Legal Aid Payment Higher Crime
MINISTRY OF JUSTICE,LEGAL AID AGENCY,02/08/17,Higher Crime,LEGAL AID FUND,CHRISTOPHER A A SAAD,1264872:147718630,28370.83,Legal Aid Payment Higher Crime
MINISTRY OF JUSTICE,LEGAL AID AGENCY,23/08/17,Higher Crime,LEGAL AID FUND,CHRISTOPHER E SNELL,1281442:147857189,27551.3,Legal Aid Payment Higher Crime
MINISTRY OF JUSTICE,LEGAL AID AGENCY,16/08/17,Higher Crime,LEGAL AID FUND,CHRISTOPHER J AMIS,1277280:147775092,47778.73,Legal Aid Payment Higher Crime
MINISTRY OF JUSTICE,LEGAL AID AGENCY,16/08/17,Higher Crime,LEGAL AID FUND,CHRISTOPHER J AMIS,1277280:147775128,-47778.73,Legal Aid Payment Higher Crime
MINISTRY OF JUSTICE,LEGAL AID AGENCY,16/08/17,Higher Crime,LEGAL AID FUND,CHRISTOPHER J AMIS,1277280:147775221,42945.83,Legal Aid Payment Higher Crime
MINISTRY OF JUSTICE,LEGAL AID AGENCY,02/08/17,Lower Crime,LEGAL AID FUND,CHURCHERS SOLICITORS,1266060:147686197,25277,Legal Aid Payment Lower Crime
MINISTRY OF JUSTICE,LEGAL AID AGENCY,30/08/17,Lower Crime,LEGAL AID FUND,CHURCHERS SOLICITORS,1286667:147886335,28018,Legal Aid Payment Lower Crime
MINISTRY OF JUSTICE,LEGAL AID AGENCY,30/08/17,Higher Crime,LEGAL AID FUND,CITY LAW CHAMBERS LTD,1286534:147904780,53883.6,Legal Aid Payment Higher Crime
MINISTRY OF JUSTICE,LEGAL AID AGENCY,02/08/17,Legal Help,LEGAL AID FUND,CJCH SOLICITORS,1267268:147684756,36011,Legal Aid Payment Legal Help
MINISTRY OF JUSTICE,LEGAL AID AGENCY,30/08/17,Legal Help,LEGAL AID FUND,CJCH SOLICITORS,1284118:147884818,39295,Legal Aid Payment Legal Help
MINISTRY OF JUSTICE,LEGAL AID AGENCY,02/08/17,Lower Crime,LEGAL AID FUND,CJH GREENHILL COOPER SOLICITORS,1268982:147686207,25900,Legal Aid Payment Lower Crime
MINISTRY OF JUSTICE,LEGAL AID AGENCY,30/08/17,Lower Crime,LEGAL AID FUND,CJH GREENHILL COOPER SOLICITORS,1287107:147886301,25900,Legal Aid Payment Lower Crime
MINISTRY OF JUSTICE,LEGAL AID AGENCY,09/08/17,Civil Representation,LEGAL AID FUND,CLARE L GARNHAM,1272943:147726815,28317.6,Legal Aid Payment Civil Representation
MINISTRY OF JUSTICE,LEGAL AID AGENCY,16/08/17,Civil Representation,LEGAL AID FUND,CLARE L GARNHAM,1277426:3000001699870024,33048,Legal Aid Payment Civil Representation
MINISTRY OF JUSTICE,LEGAL AID AGENCY,02/08/17,Lower Crime,LEGAL AID FUND,CLARKE KIERNAN LLP,1268992:147686364,42971,Legal Aid Payment Lower Crime
MINISTRY OF JUSTICE,LEGAL AID AGENCY,30/08/17,Lower Crime,LEGAL AID FUND,CLARKE KIERNAN LLP,1287119:147886375,31498,Legal Aid Payment Lower Crime
MINISTRY OF JUSTICE,LEGAL AID AGENCY,02/08/17,Legal Help,LEGAL AID FUND,CMHT SOLICITORS,1266821:147673557,109457,Legal Aid Payment Legal Help
MINISTRY OF JUSTICE,LEGAL AID AGENCY,30/08/17,Legal Help,LEGAL AID FUND,CMHT SOLICITORS,1288030:147884791,25560,Legal Aid Payment Legal Help
MINISTRY OF JUSTICE,LEGAL AID AGENCY,02/08/17,Lower Crime,LEGAL AID FUND,COBAINS SOLICITORS,1268950:147686255,30000,Legal Aid Payment Lower Crime
MINISTRY OF JUSTICE,LEGAL AID AGENCY,30/08/17,Higher Crime,LEGAL AID FUND,COBAINS SOLICITORS,1287076:147870851,74979.26,Legal Aid Payment Higher Crime
MINISTRY OF JUSTICE,LEGAL AID AGENCY,30/08/17,Lower Crime,LEGAL AID FUND,COBAINS SOLICITORS,1287076:147886355,30000,Legal Aid Payment Lower Crime
MINISTRY OF JUSTICE,LEGAL AID AGENCY,02/08/17,Lower Crime,LEGAL AID FUND,COBLEYS SOLICITORS LTD,1269000:147686252,29832,Legal Aid Payment Lower Crime
MINISTRY OF JUSTICE,LEGAL AID AGENCY,02/08/17,Legal Help,LEGAL AID FUND,CONFREYS,1266802:147684753,35312,Legal Aid Payment Legal Help
MINISTRY OF JUSTICE,LEGAL AID AGENCY,30/08/17,Legal Help,LEGAL AID FUND,CONFREYS,1288103:147884811,35086,Legal Aid Payment Legal Help
MINISTRY OF JUSTICE,LEGAL AID AGENCY,02/08/17,Lower Crime,LEGAL AID FUND,CONNOR ROSS-BROWN SOLICITORS,1264873:147686313,35000,Legal Aid Payment Lower Crime
MINISTRY OF JUSTICE,LEGAL AID AGENCY,30/08/17,Lower Crime,LEGAL AID FUND,CONNOR ROSS-BROWN SOLICITORS,1284621:147886410,35000,Legal Aid Payment Lower Crime
MINISTRY OF JUSTICE,LEGAL AID AGENCY,23/08/17,Civil Representation,LEGAL AID FUND,COPPER STONE SOLICITORS LTD,1282427:147860073,25104.9,Legal Aid Payment Civil Representation
MINISTRY OF JUSTICE,LEGAL AID AGENCY,23/08/17,Legal Help,LEGAL AID FUND,CORAM CHILDREN'S LEGAL CENTRE,1282701:147845326,38701.34,Legal Aid Payment Legal Help
MINISTRY OF JUSTICE,LEGAL AID AGENCY,02/08/17,Higher Crime,LEGAL AID FUND,CORBETT JAMES LLP,1266127:147698210,41440.89,Legal Aid Payment Higher Crime
MINISTRY OF JUSTICE,LEGAL AID AGENCY,09/08/17,Higher Crime,LEGAL AID FUND,COURTENAY GRIFFITHS QC,1272246:147731654,27902.25,Legal Aid Payment Higher Crime
MINISTRY OF JUSTICE,LEGAL AID AGENCY,02/08/17,Lower Crime,LEGAL AID FUND,COUSINS TYRER SOLICITORS,1269291:147686226,27466,Legal Aid Payment Lower Crime
MINISTRY OF JUSTICE,LEGAL AID AGENCY,02/08/17,Legal Help,LEGAL AID FUND,COVENTRY LAW CENTRE LTD,1266214:147684733,27487,Legal Aid Payment Legal Help
MINISTRY OF JUSTICE,LEGAL AID AGENCY,02/08/17,Lower Crime,LEGAL AID FUND,CRIMINAL DEFENCE ASSOCIATES,1266044:147686184,25000,Legal Aid Payment Lower Crime
MINISTRY OF JUSTICE,LEGAL AID AGENCY,30/08/17,Lower Crime,LEGAL AID FUND,CRIMINAL DEFENCE ASSOCIATES,1286741:147886279,25000,Legal Aid Payment Lower Crime
MINISTRY OF JUSTICE,LEGAL AID AGENCY,02/08/17,Lower Crime,LEGAL AID FUND,CRIMINAL DEFENCE SOLICITORS,1268776:147686398,50500,Legal Aid Payment Lower Crime
MINISTRY OF JUSTICE,LEGAL AID AGENCY,30/08/17,Lower Crime,LEGAL AID FUND,CRIMINAL DEFENCE SOLICITORS,1286681:147886489,50500,Legal Aid Payment Lower Crime
MINISTRY OF JUSTICE,LEGAL AID AGENCY,02/08/17,Lower Crime,LEGAL AID FUND,CROWE HUMBLE WESENCRAFT,1266234:147681329,50700,Legal Aid Payment Lower Crime
MINISTRY OF JUSTICE,LEGAL AID AGENCY,30/08/17,Lower Crime,LEGAL AID FUND,CROWE HUMBLE WESENCRAFT,1287012:147886490,50700,Legal Aid Payment Lower Crime
MINISTRY OF JUSTICE,LEGAL AID AGENCY,30/08/17,Legal Help,LEGAL AID FUND,CROWN HOUSE SOLICITORS,1284049:147884826,46592,Legal Aid Payment Legal Help
MINISTRY OF JUSTICE,LEGAL AID AGENCY,30/08/17,Higher Crime,LEGAL AID FUND,CUNNINGHAMS LYTHGOE CAPLIN LTD,1287191:147866931,46595.17,Legal Aid Payment Higher Crime
MINISTRY OF JUSTICE,LEGAL AID AGENCY,30/08/17,Civil Representation,LEGAL AID FUND,CURWENS LLP,1288346:147578654,34636.61,Legal Aid Payment Civil Representation
MINISTRY OF JUSTICE,LEGAL AID AGENCY,30/08/17,Higher Crime,LEGAL AID FUND,CUTTLE & CO,1287294:147905130,54282.22,Legal Aid Payment Higher Crime
MINISTRY OF JUSTICE,LEGAL AID AGENCY,16/08/17,Civil Representation,LEGAL AID FUND,DACK PEARSON SOLICITORS,1275697:3000000357660029,29738.83,Legal Aid Payment Civil Representation
MINISTRY OF JUSTICE,LEGAL AID AGENCY,16/08/17,Higher Crime,LEGAL AID FUND,DALLAS & RICHARDSON SOLICITORS,1276816:147786343,57050.28,Legal Aid Payment Higher Crime
MINISTRY OF JUSTICE,LEGAL AID AGENCY,02/08/17,Lower Crime,LEGAL AID FUND,DALTON HOLMES GRAY,1269086:147686264,30474,Legal Aid Payment Lower Crime
MINISTRY OF JUSTICE,LEGAL AID AGENCY,30/08/17,Lower Crime,LEGAL AID FUND,DALTON HOLMES GRAY,1287209:147886402,34341,Legal Aid Payment Lower Crime
MINISTRY OF JUSTICE,LEGAL AID AGENCY,16/08/17,Higher Crime,LEGAL AID FUND,DANIEL E D MURRAY,1277067:147786708,28752.3,Legal Aid Payment Higher Crime
MINISTRY OF JUSTICE,LEGAL AID AGENCY,02/08/17,Higher Crime,LEGAL AID FUND,DANIEL J LISTER,1267639:147674770,29402.57,Legal Aid Payment Higher Crime
MINISTRY OF JUSTICE,LEGAL AID AGENCY,16/08/17,Higher Crime,LEGAL AID FUND,DAPINDERPAUL SINGH,1275317:147779205,26091.91,Legal Aid Payment Higher Crime
MINISTRY OF JUSTICE,LEGAL AID AGENCY,02/08/17,Lower Crime,LEGAL AID FUND,DARRYL INGRAM & CO,1266100:147686346,39200,Legal Aid Payment Lower Crime
MINISTRY OF JUSTICE,LEGAL AID AGENCY,16/08/17,Higher Crime,LEGAL AID FUND,DARRYL INGRAM & CO,1275797:147816723,25931.05,Legal Aid Payment Higher Crime
MINISTRY OF JUSTICE,LEGAL AID AGENCY,30/08/17,Lower Crime,LEGAL AID FUND,DARRYL INGRAM & CO,1286799:147886434,39200,Legal Aid Payment Lower Crime
MINISTRY OF JUSTICE,LEGAL AID AGENCY,16/08/17,Higher Crime,LEGAL AID FUND,DAVID  MILLER,1276707:147771170,31894.8,Legal Aid Payment Higher Crime
MINISTRY OF JUSTICE,LEGAL AID AGENCY,02/08/17,Lower Crime,LEGAL AID FUND,DAVID AKE & CO,1269292:147686218,27014,Legal Aid Payment Lower Crime
MINISTRY OF JUSTICE,LEGAL AID AGENCY,30/08/17,Lower Crime,LEGAL AID FUND,DAVID AKE & CO,1287591:147886322,27337,Legal Aid Payment Lower Crime
MINISTRY OF JUSTICE,LEGAL AID AGENCY,30/08/17,Legal Help,LEGAL AID FUND,DAVID GRAY LLP,1286871:147884829,49045,Legal Aid Payment Legal Help
MINISTRY OF JUSTICE,LEGAL AID AGENCY,02/08/17,Lower Crime,LEGAL AID FUND,DAVID SEDGWICK SOLICITORS LTD,1265994:147686269,30977,Legal Aid Payment Lower Crime
MINISTRY OF JUSTICE,LEGAL AID AGENCY,30/08/17,Lower Crime,LEGAL AID FUND,DAVID SEDGWICK SOLICITORS LTD,1286602:147886381,32396,Legal Aid Payment Lower Crime
MINISTRY OF JUSTICE,LEGAL AID AGENCY,02/08/17,Lower Crime,LEGAL AID FUND,DAVIES & JONES SOLICITORS,1269437:147686293,33300,Legal Aid Payment Lower Crime
MINISTRY OF JUSTICE,LEGAL AID AGENCY,30/08/17,Lower Crime,LEGAL AID FUND,DAVIES & JONES SOLICITORS,1288090:147886395,33300,Legal Aid Payment Lower Crime
MINISTRY OF JUSTICE,LEGAL AID AGENCY,09/08/17,Civil Representation,LEGAL AID FUND,DAVIS & SIMMONDS & DONAGHEY,1271404:147693876,47179.32,Legal Aid Payment Civil Representation
MINISTRY OF JUSTICE,LEGAL AID AGENCY,16/08/17,Civil Representation,LEGAL AID FUND,DAWSON CORNWELL,1278574:3000002189500023,25906.5,Legal Aid Payment Civil Representation
MINISTRY OF JUSTICE,LEGAL AID AGENCY,16/08/17,Higher Crime,LEGAL AID FUND,DDE LAW LTD,1275670:147771085,41440.89,Legal Aid Payment Higher Crime
MINISTRY OF JUSTICE,LEGAL AID AGENCY,02/08/17,Lower Crime,LEGAL AID FUND,DE MAIDS SOLICITORS & ADVOCATES,1266686:147686265,30500,Legal Aid Payment Lower Crime
MINISTRY OF JUSTICE,LEGAL AID AGENCY,09/08/17,Higher Crime,LEGAL AID FUND,DE MAIDS SOLICITORS & ADVOCATES,1271880:147722110,55265.61,Legal Aid Payment Higher Crime
MINISTRY OF JUSTICE,LEGAL AID AGENCY,30/08/17,Lower Crime,LEGAL AID FUND,DE MAIDS SOLICITORS & ADVOCATES,1288000:147886362,30500,Legal Aid Payment Lower Crime
MINISTRY OF JUSTICE,LEGAL AID AGENCY,02/08/17,Lower Crime,LEGAL AID FUND,DEFENCE LAW LTD,1265856:147686206,25870,Legal Aid Payment Lower Crime
MINISTRY OF JUSTICE,LEGAL AID AGENCY,30/08/17,Lower Crime,LEGAL AID FUND,DEFENCE LAW LTD,1286385:147886320,27145,Legal Aid Payment Lower Crime
MINISTRY OF JUSTICE,LEGAL AID AGENCY,16/08/17,Civil Representation,LEGAL AID FUND,DESOR & CO,1278557:147781570,30960.5,Legal Aid Payment Civil Representation
MINISTRY OF JUSTICE,LEGAL AID AGENCY,23/08/17,Legal Help,LEGAL AID FUND,DIRECT HELP & ADVICE LTD,1280384:147845394,25239,Legal Aid Payment Legal Help
MINISTRY OF JUSTICE,LEGAL AID AGENCY,02/08/17,Lower Crime,LEGAL AID FUND,DJMS SOLICITORS LTD,1265920:147686347,39837,Legal Aid Payment Lower Crime
MINISTRY OF JUSTICE,LEGAL AID AGENCY,30/08/17,Higher Crime,LEGAL AID FUND,DJMS SOLICITORS LTD,1283969:147864315,35272.56,Legal Aid Payment Higher Crime
MINISTRY OF JUSTICE,LEGAL AID AGENCY,30/08/17,Lower Crime,LEGAL AID FUND,DJMS SOLICITORS LTD,1284690:147886302,25932,Legal Aid Payment Lower Crime
MINISTRY OF JUSTICE,LEGAL AID AGENCY,30/08/17,Lower Crime,LEGAL AID FUND,DJMS SOLICITORS LTD,1286445:147886394,33280,Legal Aid Payment Lower Crime
MINISTRY OF JUSTICE,LEGAL AID AGENCY,30/08/17,Higher Crime,LEGAL AID FUND,DOBSON FISHER LLP,1283480:147905097,41440.89,Legal Aid Payment Higher Crime
MINISTRY OF JUSTICE,LEGAL AID AGENCY,02/08/17,Lower Crime,LEGAL AID FUND,DOBSONS,1269616:147686309,35000,Legal Aid Payment Lower Crime
MINISTRY OF JUSTICE,LEGAL AID AGENCY,30/08/17,Lower Crime,LEGAL AID FUND,DOBSONS,1288382:147886406,35000,Legal Aid Payment Lower Crime
MINISTRY OF JUSTICE,LEGAL AID AGENCY,02/08/17,Civil Representation,LEGAL AID FUND,DODDS SOLICITORS LLP,1269187:147406501,-150254.08,Legal Aid Payment Civil Representation
MINISTRY OF JUSTICE,LEGAL AID AGENCY,02/08/17,Civil Representation,LEGAL AID FUND,DODDS SOLICITORS LLP,1269187:3000000372850016,27910.89,Legal Aid Payment Civil Representation
MINISTRY OF JUSTICE,LEGAL AID AGENCY,30/08/17,Legal Help,LEGAL AID FUND,DONOVAN NEWTON SOLICITORS,1286631:147884825,44527,Legal Aid Payment Legal Help
MINISTRY OF JUSTICE,LEGAL AID AGENCY,02/08/17,Lower Crime,LEGAL AID FUND,DPP LAW LTD,1269001:147686240,28400,Legal Aid Payment Lower Crime
MINISTRY OF JUSTICE,LEGAL AID AGENCY,02/08/17,Lower Crime,LEGAL AID FUND,DPP LAW LTD,1269002:147686231,27800,Legal Aid Payment Lower Crime
MINISTRY OF JUSTICE,LEGAL AID AGENCY,16/08/17,Higher Crime,LEGAL AID FUND,DPP LAW LTD,1275874:147794532,35246.97,Legal Aid Payment Higher Crime
MINISTRY OF JUSTICE,LEGAL AID AGENCY,30/08/17,Higher Crime,LEGAL AID FUND,DPP LAW LTD,1286650:147864467,88214.79,Legal Aid Payment Higher Crime
MINISTRY OF JUSTICE,LEGAL AID AGENCY,30/08/17,Lower Crime,LEGAL AID FUND,DPP LAW LTD,1287129:147886338,28400,Legal Aid Payment Lower Crime
MINISTRY OF JUSTICE,LEGAL AID AGENCY,30/08/17,Lower Crime,LEGAL AID FUND,DPP LAW LTD,1287130:147886328,27800,Legal Aid Payment Lower Crime
MINISTRY OF JUSTICE,LEGAL AID AGENCY,02/08/17,Higher Crime,LEGAL AID FUND,DRAYCOTT BROWNE LTD,1266383:147697074,42530.99,Legal Aid Payment Higher Crime
MINISTRY OF JUSTICE,LEGAL AID AGENCY,02/08/17,Lower Crime,LEGAL AID FUND,DRISCOLL YOUNG SOLICITORS LTD,1268981:147686227,27553,Legal Aid Payment Lower Crime
MINISTRY OF JUSTICE,LEGAL AID AGENCY,30/08/17,Lower Crime,LEGAL AID FUND,DRISCOLL YOUNG SOLICITORS LTD,1287106:147886361,30264,Legal Aid Payment Lower Crime
MINISTRY OF JUSTICE,LEGAL AID AGENCY,16/08/17,Higher Crime,LEGAL AID FUND,DUNCAN JONES,1274530:147785959,27061.3,Legal Aid Payment Higher Crime
MINISTRY OF JUSTICE,LEGAL AID AGENCY,02/08/17,Legal Help,LEGAL AID FUND,DUNCAN LEWIS SOLICITORS  LTD,1267391:147684775,59300,Legal Aid Payment Legal Help
MINISTRY OF JUSTICE,LEGAL AID AGENCY,02/08/17,Legal Help,LEGAL AID FUND,DUNCAN LEWIS SOLICITORS  LTD,1268959:147673553,268400,Legal Aid Payment Legal Help
MINISTRY OF JUSTICE,LEGAL AID AGENCY,02/08/17,Lower Crime,LEGAL AID FUND,DUNCAN LEWIS SOLICITORS  LTD,1268959:147686415,60800,Legal Aid Payment Lower Crime
MINISTRY OF JUSTICE,LEGAL AID AGENCY,02/08/17,Legal Help,LEGAL AID FUND,DUNCAN LEWIS SOLICITORS  LTD,1268960:147673552,400000,Legal Aid Payment Legal Help
MINISTRY OF JUSTICE,LEGAL AID AGENCY,02/08/17,Lower Crime,LEGAL AID FUND,DUNCAN LEWIS SOLICITORS  LTD,1268960:147686408,55742,Legal Aid Payment Lower Crime
MINISTRY OF JUSTICE,LEGAL AID AGENCY,09/08/17,Higher Crime,LEGAL AID FUND,DUNCAN LEWIS SOLICITORS  LTD,1273549:147722278,49375.94,Legal Aid Payment Higher Crime
MINISTRY OF JUSTICE,LEGAL AID AGENCY,09/08/17,Higher Crime,LEGAL AID FUND,DUNCAN LEWIS SOLICITORS  LTD,1273549:147722735,36080.94,Legal Aid Payment Higher Crime
MINISTRY OF JUSTICE,LEGAL AID AGENCY,09/08/17,Higher Crime,LEGAL AID FUND,DUNCAN LEWIS SOLICITORS  LTD,1273549:147730470,70191.78,Legal Aid Payment Higher Crime
MINISTRY OF JUSTICE,LEGAL AID AGENCY,09/08/17,Higher Crime,LEGAL AID FUND,DUNCAN LEWIS SOLICITORS  LTD,1273549:147730905,52093.49,Legal Aid Payment Higher Crime
MINISTRY OF JUSTICE,LEGAL AID AGENCY,09/08/17,Civil Representation,LEGAL AID FUND,DUNCAN LEWIS SOLICITORS  LTD,1273549:3000001664630018,25927.15,Legal Aid Payment Civil Representation
MINISTRY OF JUSTICE,LEGAL AID AGENCY,30/08/17,Legal Help,LEGAL AID FUND,DUNCAN LEWIS SOLICITORS  LTD,1284223:147884833,59300,Legal Aid Payment Legal Help
MINISTRY OF JUSTICE,LEGAL AID AGENCY,30/08/17,Legal Help,LEGAL AID FUND,DUNCAN LEWIS SOLICITORS  LTD,1287085:147875757,268400,Legal Aid Payment Legal Help
MINISTRY OF JUSTICE,LEGAL AID AGENCY,30/08/17,Lower Crime,LEGAL AID FUND,DUNCAN LEWIS SOLICITORS  LTD,1287085:147886507,60800,Legal Aid Payment Lower Crime
MINISTRY OF JUSTICE,LEGAL AID AGENCY,30/08/17,Legal Help,LEGAL AID FUND,DUNCAN LEWIS SOLICITORS  LTD,1287086:147875754,400000,Legal Aid Payment Legal Help
MINISTRY OF JUSTICE,LEGAL AID AGENCY,30/08/17,Lower Crime,LEGAL AID FUND,DUNCAN LEWIS SOLICITORS  LTD,1287086:147886463,44882,Legal Aid Payment Lower Crime
MINISTRY OF JUSTICE,LEGAL AID AGENCY,02/08/17,Lower Crime,LEGAL AID FUND,EBR ATTRIDGE LLP,1268738:147686321,35400,Legal Aid Payment Lower Crime
MINISTRY OF JUSTICE,LEGAL AID AGENCY,02/08/17,Lower Crime,LEGAL AID FUND,EBR ATTRIDGE LLP,1268739:147686411,58100,Legal Aid Payment Lower Crime
MINISTRY OF JUSTICE,LEGAL AID AGENCY,02/08/17,Higher Crime,LEGAL AID FUND,EBR ATTRIDGE LLP,1268739:147713864,33517.76,Legal Aid Payment Higher Crime
MINISTRY OF JUSTICE,LEGAL AID AGENCY,02/08/17,Higher Crime,LEGAL AID FUND,EBR ATTRIDGE LLP,1268739:147713942,57134.12,Legal Aid Payment Higher Crime
MINISTRY OF JUSTICE,LEGAL AID AGENCY,16/08/17,Higher Crime,LEGAL AID FUND,EBR ATTRIDGE LLP,1275821:147771925,27387.59,Legal Aid Payment Higher Crime
MINISTRY OF JUSTICE,LEGAL AID AGENCY,16/08/17,Higher Crime,LEGAL AID FUND,EBR ATTRIDGE LLP,1275821:147772098,77093.12,Legal Aid Payment Higher Crime
MINISTRY OF JUSTICE,LEGAL AID AGENCY,30/08/17,Lower Crime,LEGAL AID FUND,EBR ATTRIDGE LLP,1286696:147886415,35400,Legal Aid Payment Lower Crime
MINISTRY OF JUSTICE,LEGAL AID AGENCY,30/08/17,Lower Crime,LEGAL AID FUND,EBR ATTRIDGE LLP,1286697:147886503,58100,Legal Aid Payment Lower Crime
MINISTRY OF JUSTICE,LEGAL AID AGENCY,09/08/17,Higher Crime,LEGAL AID FUND,EDMUND B B VICKERS QC,1273255:147731421,42753.42,Legal Aid Payment Higher Crime
MINISTRY OF JUSTICE,LEGAL AID AGENCY,02/08/17,Lower Crime,LEGAL AID FUND,EDWARD FAIL BRADSHAW & WATERSON,1269610:147686323,35731,Legal Aid Payment Lower Crime
MINISTRY OF JUSTICE,LEGAL AID AGENCY,16/08/17,Higher Crime,LEGAL AID FUND,EDWARD FAIL BRADSHAW & WATERSON,1278549:147816973,35671.66,Legal Aid Payment Higher Crime
MINISTRY OF JUSTICE,LEGAL AID AGENCY,30/08/17,Higher Crime,LEGAL AID FUND,EDWARD FAIL BRADSHAW & WATERSON,1288350:147878012,74979.26,Legal Aid Payment Higher Crime
MINISTRY OF JUSTICE,LEGAL AID AGENCY,16/08/17,Higher Crime,LEGAL AID FUND,EDWARD HAYES LLP,1278227:147794078,38908.17,Legal Aid Payment Higher Crime
MINISTRY OF JUSTICE,LEGAL AID AGENCY,02/08/17,Lower Crime,LEGAL AID FUND,EDWARDS DUTHIE,1266916:147686283,32351,Legal Aid Payment Lower Crime
MINISTRY OF JUSTICE,LEGAL AID AGENCY,16/08/17,Higher Crime,LEGAL AID FUND,EDWARDS DUTHIE,1276350:147770944,56438.92,Legal Aid Payment Higher Crime
MINISTRY OF JUSTICE,LEGAL AID AGENCY,30/08/17,Legal Help,LEGAL AID FUND,EDWARDS DUTHIE,1288218:147884800,30367,Legal Aid Payment Legal Help
MINISTRY OF JUSTICE,LEGAL AID AGENCY,30/08/17,Lower Crime,LEGAL AID FUND,EDWARDS DUTHIE,1288218:147886416,35637,Legal Aid Payment Lower Crime
MINISTRY OF JUSTICE,LEGAL AID AGENCY,23/08/17,Higher Crime,LEGAL AID FUND,EDWARDS VAZIRANEY,1280323:147825994,38509.09,Legal Aid Payment Higher Crime
MINISTRY OF JUSTICE,LEGAL AID AGENCY,02/08/17,Lower Crime,LEGAL AID FUND,EHB LEGAL,1266980:147686303,34021,Legal Aid Payment Lower Crime
MINISTRY OF JUSTICE,LEGAL AID AGENCY,30/08/17,Lower Crime,LEGAL AID FUND,EHB LEGAL,1283557:147886348,29169,Legal Aid Payment Lower Crime
MINISTRY OF JUSTICE,LEGAL AID AGENCY,02/08/17,Legal Help,LEGAL AID FUND,ELDER RAHIMI LIMITED,1265047:147684759,37568,Legal Aid Payment Legal Help
MINISTRY OF JUSTICE,LEGAL AID AGENCY,02/08/17,Legal Help,LEGAL AID FUND,ELDER RAHIMI LIMITED,1266441:147684746,33532,Legal Aid Payment Legal Help
MINISTRY OF JUSTICE,LEGAL AID AGENCY,30/08/17,Legal Help,LEGAL AID FUND,ELDER RAHIMI LIMITED,1284748:147884793,26092,Legal Aid Payment Legal Help
MINISTRY OF JUSTICE,LEGAL AID AGENCY,30/08/17,Legal Help,LEGAL AID FUND,ELDER RAHIMI LIMITED,1287302:147884805,32721,Legal Aid Payment Legal Help
MINISTRY OF JUSTICE,LEGAL AID AGENCY,23/08/17,Civil Representation,LEGAL AID FUND,ELIZABETH ISAACS QC,1280104:3000002164890007,33307.2,Legal Aid Payment Civil Representation
MINISTRY OF JUSTICE,LEGAL AID AGENCY,09/08/17,Civil Representation,LEGAL AID FUND,ELIZABETH MCGRATH QC,1272659:147579720,-30048,Legal Aid Payment Civil Representation
MINISTRY OF JUSTICE,LEGAL AID AGENCY,09/08/17,Civil Representation,LEGAL AID FUND,ELIZABETH MCGRATH QC,1272659:147736245,51516,Legal Aid Payment Civil Representation
MINISTRY OF JUSTICE,LEGAL AID AGENCY,09/08/17,Civil Representation,LEGAL AID FUND,ELIZABETH MCGRATH QC,1272659:147759563,-43286.4,Legal Aid Payment Civil Representation
MINISTRY OF JUSTICE,LEGAL AID AGENCY,16/08/17,Civil Representation,LEGAL AID FUND,ELIZABETH MCGRATH QC,1274921:3000001106300014,28447.2,Legal Aid Payment Civil Representation
MINISTRY OF JUSTICE,LEGAL AID AGENCY,02/08/17,Lower Crime,LEGAL AID FUND,ELLIOT MATHER LLP,1266462:147686304,34200,Legal Aid Payment Lower Crime
MINISTRY OF JUSTICE,LEGAL AID AGENCY,30/08/17,Lower Crime,LEGAL AID FUND,ELLIOT MATHER LLP,1287611:147886401,34200,Legal Aid Payment Lower Crime
MINISTRY OF JUSTICE,LEGAL AID AGENCY,16/08/17,Higher Crime,LEGAL AID FUND,ELYAS M PATEL,1277107:147817618,27491.38,Legal Aid Payment Higher Crime
MINISTRY OF JUSTICE,LEGAL AID AGENCY,09/08/17,Higher Crime,LEGAL AID FUND,ENNON & CO LTD,1271337:147746668,39873.33,Legal Aid Payment Higher Crime
MINISTRY OF JUSTICE,LEGAL AID AGENCY,02/08/17,Lower Crime,LEGAL AID FUND,ERIC ROBINSON SOLICITORS,1269499:147686388,47900,Legal Aid Payment Lower Crime
MINISTRY OF JUSTICE,LEGAL AID AGENCY,30/08/17,Lower Crime,LEGAL AID FUND,ERIC ROBINSON SOLICITORS,1288146:147886480,47900,Legal Aid Payment Lower Crime
MINISTRY OF JUSTICE,LEGAL AID AGENCY,02/08/17,Higher Crime,LEGAL AID FUND,ERIMNAZ MUSHTAQ,1267961:147668977,29514.3,Legal Aid Payment Higher Crime
MINISTRY OF JUSTICE,LEGAL AID AGENCY,16/08/17,Civil Representation,LEGAL AID FUND,ESKINAZI & CO,1276076:3000001318460017,32001.07,Legal Aid Payment Civil Representation
MINISTRY OF JUSTICE,LEGAL AID AGENCY,30/08/17,Civil Representation,LEGAL AID FUND,ESTHER A MACLACHLAN,1285662:3000000759190009,36930.6,Legal Aid Payment Civil Representation
MINISTRY OF JUSTICE,LEGAL AID AGENCY,02/08/17,Lower Crime,LEGAL AID FUND,EWINGS & CO,1269581:147686273,31300,Legal Aid Payment Lower Crime
MINISTRY OF JUSTICE,LEGAL AID AGENCY,02/08/17,Higher Crime,LEGAL AID FUND,EWINGS & CO,1269581:147698147,48157.29,Legal Aid Payment Higher Crime
MINISTRY OF JUSTICE,LEGAL AID AGENCY,30/08/17,Lower Crime,LEGAL AID FUND,EWINGS & CO,1288130:147886371,31300,Legal Aid Payment Lower Crime
MINISTRY OF JUSTICE,LEGAL AID AGENCY,30/08/17,Civil Representation,LEGAL AID FUND,EWINGS & CO,1288130:3000000453540002,29465.06,Legal Aid Payment Civil Representation
MINISTRY OF JUSTICE,LEGAL AID AGENCY,02/08/17,Legal Help,LEGAL AID FUND,FADIGA & CO LTD,1269337:147684738,28550,Legal Aid Payment Legal Help
MINISTRY OF JUSTICE,LEGAL AID AGENCY,23/08/17,Civil Representation,LEGAL AID FUND,FAHRI JACOB,1283142:3000001869610013,58444.44,Legal Aid Payment Civil Representation
MINISTRY OF JUSTICE,LEGAL AID AGENCY,30/08/17,Civil Representation,LEGAL AID FUND,FAREHA I CHOUDHURY,1285589:3000000911550027,28771.2,Legal Aid Payment Civil Representation
MINISTRY OF JUSTICE,LEGAL AID AGENCY,09/08/17,Higher Crime,LEGAL AID FUND,FARLEYS SOLICITORS LLP,1273900:147731562,32133.99,Legal Aid Payment Higher Crime
MINISTRY OF JUSTICE,LEGAL AID AGENCY,16/08/17,Higher Crime,LEGAL AID FUND,FARLEYS SOLICITORS LLP,1276183:147816245,78408.08,Legal Aid Payment Higher Crime
MINISTRY OF JUSTICE,LEGAL AID AGENCY,09/08/17,Civil Representation,LEGAL AID FUND,FDR LAW,1273879:147718896,27769.68,Legal Aid Payment Civil Representation
MINISTRY OF JUSTICE,LEGAL AID AGENCY,09/08/17,Higher Crime,LEGAL AID FUND,FELICITY R GERRY QC,1273007:147746452,53855.79,Legal Aid Payment Higher Crime
MINISTRY OF JUSTICE,LEGAL AID AGENCY,02/08/17,Civil Representation,LEGAL AID FUND,FLG LTD,1266057:3000000830110009,33938.35,Legal Aid Payment Civil Representation
MINISTRY OF JUSTICE,LEGAL AID AGENCY,09/08/17,Civil Representation,LEGAL AID FUND,FLG LTD,1272202:3000002107570011,44400,Legal Aid Payment Civil Representation
MINISTRY OF JUSTICE,LEGAL AID AGENCY,09/08/17,Civil Representation,LEGAL AID FUND,FLG LTD,1273380:3000001492780008,27148.8,Legal Aid Payment Civil Representation
MINISTRY OF JUSTICE,LEGAL AID AGENCY,02/08/17,Lower Crime,LEGAL AID FUND,FMW LAW LTD,1269423:147686426,74100,Legal Aid Payment Lower Crime
MINISTRY OF JUSTICE,LEGAL AID AGENCY,30/08/17,Lower Crime,LEGAL AID FUND,FMW LAW LTD,1288077:147886494,53600,Legal Aid Payment Lower Crime
MINISTRY OF JUSTICE,LEGAL AID AGENCY,02/08/17,Lower Crime,LEGAL AID FUND,FORBES SOLICITORS,1266320:147686195,25200,Legal Aid Payment Lower Crime
MINISTRY OF JUSTICE,LEGAL AID AGENCY,02/08/17,Lower Crime,LEGAL AID FUND,FORBES SOLICITORS,1266321:147686331,37000,Legal Aid Payment Lower Crime
MINISTRY OF JUSTICE,LEGAL AID AGENCY,30/08/17,Lower Crime,LEGAL AID FUND,FORBES SOLICITORS,1287185:147886290,25200,Legal Aid Payment Lower Crime
MINISTRY OF JUSTICE,LEGAL AID AGENCY,30/08/17,Lower Crime,LEGAL AID FUND,FORBES SOLICITORS,1287186:147886421,37000,Legal Aid Payment Lower Crime
MINISTRY OF JUSTICE,LEGAL AID AGENCY,30/08/17,Higher Crime,LEGAL AID FUND,FORBES SOLICITORS,1287186:147905109,37515.77,Legal Aid Payment Higher Crime
MINISTRY OF JUSTICE,LEGAL AID AGENCY,02/08/17,Legal Help,LEGAL AID FUND,FOUNTAIN SOLICITORS LTD,1265998:147673551,124000,Legal Aid Payment Legal Help
MINISTRY OF JUSTICE,LEGAL AID AGENCY,30/08/17,Legal Help,LEGAL AID FUND,FOUNTAIN SOLICITORS LTD,1286607:147875752,124000,Legal Aid Payment Legal Help
MINISTRY OF JUSTICE,LEGAL AID AGENCY,23/08/17,Civil Representation,LEGAL AID FUND,FRANCES J JUDD,1281953:3000001561320010,47703.6,Legal Aid Payment Civil Representation
MINISTRY OF JUSTICE,LEGAL AID AGENCY,09/08/17,Civil Representation,LEGAL AID FUND,FRANCIS CASSIDY,1270920:147719223,52747.2,Legal Aid Payment Civil Representation
MINISTRY OF JUSTICE,LEGAL AID AGENCY,02/08/17,Civil Representation,LEGAL AID FUND,FRANK BRAZELL & PARTNERS LTD,1266179:146278285,29900,Legal Aid Payment Civil Representation
MINISTRY OF JUSTICE,LEGAL AID AGENCY,23/08/17,Civil Representation,LEGAL AID FUND,FRANK T FEEHAN QC,1281986:3000001376470014,85340.16,Legal Aid Payment Civil Representation
MINISTRY OF JUSTICE,LEGAL AID AGENCY,02/08/17,Lower Crime,LEGAL AID FUND,FREEMANS SOLICITORS,1266844:147686235,27900,Legal Aid Payment Lower Crime
MINISTRY OF JUSTICE,LEGAL AID AGENCY,30/08/17,Lower Crime,LEGAL AID FUND,FREEMANS SOLICITORS,1288240:147886331,27900,Legal Aid Payment Lower Crime
MINISTRY OF JUSTICE,LEGAL AID AGENCY,16/08/17,Civil Representation,LEGAL AID FUND,FREETHS LLP,1274432:147810593,26784.71,Legal Aid Payment Civil Representation
MINISTRY OF JUSTICE,LEGAL AID AGENCY,16/08/17,Civil Representation,LEGAL AID FUND,FREETHS LLP,1274432:147810677,31987,Legal Aid Payment Civil Representation
MINISTRY OF JUSTICE,LEGAL AID AGENCY,02/08/17,Lower Crime,LEGAL AID FUND,G T STEWART LTD,1265906:147686393,49528,Legal Aid Payment Lower Crime
MINISTRY OF JUSTICE,LEGAL AID AGENCY,02/08/17,Lower Crime,LEGAL AID FUND,G T STEWART LTD,1265911:147686389,48002,Legal Aid Payment Lower Crime
MINISTRY OF JUSTICE,LEGAL AID AGENCY,02/08/17,Lower Crime,LEGAL AID FUND,G T STEWART LTD,1268760:147686399,50883,Legal Aid Payment Lower Crime
MINISTRY OF JUSTICE,LEGAL AID AGENCY,30/08/17,Lower Crime,LEGAL AID FUND,G T STEWART LTD,1286431:147886508,62548,Legal Aid Payment Lower Crime
MINISTRY OF JUSTICE,LEGAL AID AGENCY,30/08/17,Lower Crime,LEGAL AID FUND,G T STEWART LTD,1286437:147886456,43638,Legal Aid Payment Lower Crime
MINISTRY OF JUSTICE,LEGAL AID AGENCY,30/08/17,Lower Crime,LEGAL AID FUND,G T STEWART LTD,1286718:147886500,56182,Legal Aid Payment Lower Crime
MINISTRY OF JUSTICE,LEGAL AID AGENCY,02/08/17,Lower Crime,LEGAL AID FUND,GALBRAITH BRANLEY SOLICITORS,1269029:147686239,28265,Legal Aid Payment Lower Crime
MINISTRY OF JUSTICE,LEGAL AID AGENCY,02/08/17,Lower Crime,LEGAL AID FUND,GAMMON PIERCY & GAIGER,1266884:147686407,55719,Legal Aid Payment Lower Crime
MINISTRY OF JUSTICE,LEGAL AID AGENCY,16/08/17,Higher Crime,LEGAL AID FUND,GAMMON PIERCY & GAIGER,1278493:147816872,55618.04,Legal Aid Payment Higher Crime
MINISTRY OF JUSTICE,LEGAL AID AGENCY,30/08/17,Lower Crime,LEGAL AID FUND,GAMMON PIERCY & GAIGER,1288370:147886481,48861,Legal Aid Payment Lower Crime
MINISTRY OF JUSTICE,LEGAL AID AGENCY,02/08/17,Civil Representation,LEGAL AID FUND,GARFIELD Z BRAITHWAITE,1265449:3000000875290024,41952,Legal Aid Payment Civil Representation
MINISTRY OF JUSTICE,LEGAL AID AGENCY,09/08/17,Civil Representation,LEGAL AID FUND,GARY JACOBS & CO LTD,1273651:3000001168380012,41202.5,Legal Aid Payment Civil Representation
MINISTRY OF JUSTICE,LEGAL AID AGENCY,16/08/17,Higher Crime,LEGAL AID FUND,GARY T BELL QC,1275171:147771332,51855.49,Legal Aid Payment Higher Crime
MINISTRY OF JUSTICE,LEGAL AID AGENCY,02/08/17,Civil Representation,LEGAL AID FUND,GCA SOLICITORS,1269133:147710467,28757.67,Legal Aid Payment Civil Representation
MINISTRY OF JUSTICE,LEGAL AID AGENCY,02/08/17,Lower Crime,LEGAL AID FUND,GEOFF WHITE & CO,1268720:147686385,46932,Legal Aid Payment Lower Crime
MINISTRY OF JUSTICE,LEGAL AID AGENCY,30/08/17,Lower Crime,LEGAL AID FUND,GEOFF WHITE & CO,1286491:147886439,40189,Legal Aid Payment Lower Crime
MINISTRY OF JUSTICE,LEGAL AID AGENCY,02/08/17,Lower Crime,LEGAL AID FUND,GEOFFREY FORRESTER & CO,1266639:147686384,46700,Legal Aid Payment Lower Crime
MINISTRY OF JUSTICE,LEGAL AID AGENCY,16/08/17,Higher Crime,LEGAL AID FUND,GEOFFREY FORRESTER & CO,1278269:147794220,56234.44,Legal Aid Payment Higher Crime
MINISTRY OF JUSTICE,LEGAL AID AGENCY,30/08/17,Lower Crime,LEGAL AID FUND,GEOFFREY FORRESTER & CO,1287676:147886472,46700,Legal Aid Payment Lower Crime
MINISTRY OF JUSTICE,LEGAL AID AGENCY,23/08/17,Civil Representation,LEGAL AID FUND,GEORGE V BUTLER,1279712:3000001417270007,26268.65,Legal Aid Payment Civil Representation
MINISTRY OF JUSTICE,LEGAL AID AGENCY,02/08/17,Lower Crime,LEGAL AID FUND,GHP LEGAL,1266353:147686220,27100,Legal Aid Payment Lower Crime
MINISTRY OF JUSTICE,LEGAL AID AGENCY,30/08/17,Lower Crime,LEGAL AID FUND,GHP LEGAL,1287221:147886319,27100,Legal Aid Payment Lower Crime
MINISTRY OF JUSTICE,LEGAL AID AGENCY,23/08/17,Civil Representation,LEGAL AID FUND,GILLIAN GEDDES,1281293:3000000469850020RC,-37735.01,Legal Aid Payment Civil Representation
MINISTRY OF JUSTICE,LEGAL AID AGENCY,23/08/17,Civil Representation,LEGAL AID FUND,GILLIAN GEDDES,1281293:3000000469850026,39375.93,Legal Aid Payment Civil Representation
MINISTRY OF JUSTICE,LEGAL AID AGENCY,16/08/17,Higher Crime,LEGAL AID FUND,GILLIAN H JONES QC,1277413:147778611,25823.22,Legal Aid Payment Higher Crime
MINISTRY OF JUSTICE,LEGAL AID AGENCY,16/08/17,Civil Representation,LEGAL AID FUND,GINA ALLWOOD,1277114:3000001600560015,28352.9,Legal Aid Payment Civil Representation
MINISTRY OF JUSTICE,LEGAL AID AGENCY,02/08/17,Legal Help,LEGAL AID FUND,GLEDHILL SOLICITORS,1269557:147684743,31418,Legal Aid Payment Legal Help
MINISTRY OF JUSTICE,LEGAL AID AGENCY,30/08/17,Legal Help,LEGAL AID FUND,GLEDHILL SOLICITORS,1288277:147884842,85420,Legal Aid Payment Legal Help
MINISTRY OF JUSTICE,LEGAL AID AGENCY,09/08/17,Higher Crime,LEGAL AID FUND,GLP SOLICITORS,1273695:147723236,51385.74,Legal Aid Payment Higher Crime
MINISTRY OF JUSTICE,LEGAL AID AGENCY,16/08/17,Higher Crime,LEGAL AID FUND,GLP SOLICITORS,1275965:147793409,35211.27,Legal Aid Payment Higher Crime
MINISTRY OF JUSTICE,LEGAL AID AGENCY,30/08/17,Higher Crime,LEGAL AID FUND,GLP SOLICITORS,1287301:147871378,33894.74,Legal Aid Payment Higher Crime
MINISTRY OF JUSTICE,LEGAL AID AGENCY,16/08/17,Higher Crime,LEGAL AID FUND,GOLDKORNS,1275650:147778860,56878.36,Legal Aid Payment Higher Crime
MINISTRY OF JUSTICE,LEGAL AID AGENCY,23/08/17,Higher Crime,LEGAL AID FUND,GOLDKORNS,1280247:147856101,42713.26,Legal Aid Payment Higher Crime
MINISTRY OF JUSTICE,LEGAL AID AGENCY,02/08/17,Lower Crime,LEGAL AID FUND,GOLDSTONES SOLICITORS LTD,1266833:147686278,31700,Legal Aid Payment Lower Crime
MINISTRY OF JUSTICE,LEGAL AID AGENCY,30/08/17,Lower Crime,LEGAL AID FUND,GOLDSTONES SOLICITORS LTD,1288042:147886376,31700,Legal Aid Payment Lower Crime
MINISTRY OF JUSTICE,LEGAL AID AGENCY,02/08/17,Lower Crime,LEGAL AID FUND,GOODHAND & FORSYTH SOLICITORS,1268600:147686193,25003,Legal Aid Payment Lower Crime
MINISTRY OF JUSTICE,LEGAL AID AGENCY,30/08/17,Lower Crime,LEGAL AID FUND,GOODHAND & FORSYTH SOLICITORS,1286469:147886298,25802,Legal Aid Payment Lower Crime
MINISTRY OF JUSTICE,LEGAL AID AGENCY,23/08/17,Civil Representation,LEGAL AID FUND,GORDON E SHELTON,1282327:3000001675330032,32254.2,Legal Aid Payment Civil Representation
MINISTRY OF JUSTICE,LEGAL AID AGENCY,02/08/17,Higher Crime,LEGAL AID FUND,GQS SOLICITORS,1265987:147687997,29965.81,Legal Aid Payment Higher Crime
MINISTRY OF JUSTICE,LEGAL AID AGENCY,16/08/17,Higher Crime,LEGAL AID FUND,GRAHAME H JAMES,1275158:147786558,41114.1,Legal Aid Payment Higher Crime
MINISTRY OF JUSTICE,LEGAL AID AGENCY,30/08/17,Lower Crime,LEGAL AID FUND,GRAHAME STOWE BATESON,1284125:147886295,25604,Legal Aid Payment Lower Crime
MINISTRY OF JUSTICE,LEGAL AID AGENCY,30/08/17,Civil Representation,LEGAL AID FUND,GRAHAME STOWE BATESON,1286890:147875376,29505.71,Legal Aid Payment Civil Representation
MINISTRY OF JUSTICE,LEGAL AID AGENCY,02/08/17,Lower Crime,LEGAL AID FUND,GRAY & CO SOLICITORS LTD,1265018:147686274,31379,Legal Aid Payment Lower Crime
MINISTRY OF JUSTICE,LEGAL AID AGENCY,30/08/17,Legal Help,LEGAL AID FUND,GREATER MANCHESTER IMMIGRATION UNIT,1287417:147884801,31037,Legal Aid Payment Legal Help
MINISTRY OF JUSTICE,LEGAL AID AGENCY,02/08/17,Lower Crime,LEGAL AID FUND,GRECH GOODEN SOLICITORS LTD,1268692:147686354,41064,Legal Aid Payment Lower Crime
MINISTRY OF JUSTICE,LEGAL AID AGENCY,30/08/17,Lower Crime,LEGAL AID FUND,GRECH GOODEN SOLICITORS LTD,1286554:147886417,35982,Legal Aid Payment Lower Crime
MINISTRY OF JUSTICE,LEGAL AID AGENCY,02/08/17,Legal Help,LEGAL AID FUND,GUILE NICHOLAS-INC DONALD GALBRAITH & CO,1264675:147684767,44012,Legal Aid Payment Legal Help
MINISTRY OF JUSTICE,LEGAL AID AGENCY,02/08/17,Legal Help,LEGAL AID FUND,GUILE NICHOLAS-INC DONALD GALBRAITH & CO,1266000:147684782,73400,Legal Aid Payment Legal Help
MINISTRY OF JUSTICE,LEGAL AID AGENCY,30/08/17,Legal Help,LEGAL AID FUND,GUILE NICHOLAS-INC DONALD GALBRAITH & CO,1284059:147884820,40293,Legal Aid Payment Legal Help
MINISTRY OF JUSTICE,LEGAL AID AGENCY,30/08/17,Legal Help,LEGAL AID FUND,GUILE NICHOLAS-INC DONALD GALBRAITH & CO,1286610:147884841,73400,Legal Aid Payment Legal Help
MINISTRY OF JUSTICE,LEGAL AID AGENCY,02/08/17,Lower Crime,LEGAL AID FUND,GURNEY HARDEN SOLICITORS,1267164:147686203,25732,Legal Aid Payment Lower Crime
MINISTRY OF JUSTICE,LEGAL AID AGENCY,02/08/17,Lower Crime,LEGAL AID FUND,GURNEY HARDEN SOLICITORS,1268726:147686368,43548,Legal Aid Payment Lower Crime
MINISTRY OF JUSTICE,LEGAL AID AGENCY,30/08/17,Lower Crime,LEGAL AID FUND,GURNEY HARDEN SOLICITORS,1286496:147886446,41742,Legal Aid Payment Lower Crime
MINISTRY OF JUSTICE,LEGAL AID AGENCY,02/08/17,Lower Crime,LEGAL AID FUND,GWB HARTHILLS LLP,1268656:147686228,27562,Legal Aid Payment Lower Crime
MINISTRY OF JUSTICE,LEGAL AID AGENCY,02/08/17,Lower Crime,LEGAL AID FUND,GWB HARTHILLS LLP,1268915:147686351,40328,Legal Aid Payment Lower Crime
MINISTRY OF JUSTICE,LEGAL AID AGENCY,30/08/17,Lower Crime,LEGAL AID FUND,GWB HARTHILLS LLP,1286864:147886450,42431,Legal Aid Payment Lower Crime
MINISTRY OF JUSTICE,LEGAL AID AGENCY,16/08/17,Civil Representation,LEGAL AID FUND,H E THOMAS & CO,1278548:147790886,28644.88,Legal Aid Payment Civil Representation
MINISTRY OF JUSTICE,LEGAL AID AGENCY,30/08/17,Higher Crime,LEGAL AID FUND,H MICHAEL SPRING,1288005:147863807,73361.56,Legal Aid Payment Higher Crime
MINISTRY OF JUSTICE,LEGAL AID AGENCY,02/08/17,Lower Crime,LEGAL AID FUND,H P GOWER SOLICITORS,1265963:147686414,60156,Legal Aid Payment Lower Crime
MINISTRY OF JUSTICE,LEGAL AID AGENCY,30/08/17,Lower Crime,LEGAL AID FUND,H P GOWER SOLICITORS,1286393:147886466,45507,Legal Aid Payment Lower Crime
MINISTRY OF JUSTICE,LEGAL AID AGENCY,09/08/17,Higher Crime,LEGAL AID FUND,HADAWAY & HADAWAY SOLICITORS LLP,1273759:147731757,37452.85,Legal Aid Payment Higher Crime
MINISTRY OF JUSTICE,LEGAL AID AGENCY,02/08/17,Legal Help,LEGAL AID FUND,HALLIDAY REEVES LAW FIRM,1265830:147684735,27837,Legal Aid Payment Legal Help
MINISTRY OF JUSTICE,LEGAL AID AGENCY,30/08/17,Legal Help,LEGAL AID FUND,HALLIDAY REEVES LAW FIRM,1286266:147884792,25939,Legal Aid Payment Legal Help
MINISTRY OF JUSTICE,LEGAL AID AGENCY,16/08/17,Higher Crime,LEGAL AID FUND,HALLINAN BLACKBURN GITTINGS & NOTT,1278572:147778950,29002.13,Legal Aid Payment Higher Crime
MINISTRY OF JUSTICE,LEGAL AID AGENCY,30/08/17,Higher Crime,LEGAL AID FUND,HALLINAN BLACKBURN GITTINGS & NOTT,1288205:147904785,32172.24,Legal Aid Payment Higher Crime
MINISTRY OF JUSTICE,LEGAL AID AGENCY,02/08/17,Lower Crime,LEGAL AID FUND,HAMER CHILDS,1266705:147686260,30000,Legal Aid Payment Lower Crime
MINISTRY OF JUSTICE,LEGAL AID AGENCY,30/08/17,Lower Crime,LEGAL AID FUND,HAMER CHILDS,1287922:147886359,30000,Legal Aid Payment Lower Crime
MINISTRY OF JUSTICE,LEGAL AID AGENCY,30/08/17,Higher Crime,LEGAL AID FUND,HAMPTON SOLICITORS,1283865:147886984,67789.47,Legal Aid Payment Higher Crime
MINISTRY OF JUSTICE,LEGAL AID AGENCY,09/08/17,Civil Representation,LEGAL AID FUND,HANNE & CO,1274042:147735155,26962.92,Legal Aid Payment Civil Representation
MINISTRY OF JUSTICE,LEGAL AID AGENCY,09/08/17,Civil Representation,LEGAL AID FUND,HANNE & CO,1274042:147735157,-27011.46,Legal Aid Payment Civil Representation
MINISTRY OF JUSTICE,LEGAL AID AGENCY,30/08/17,Lower Crime,LEGAL AID FUND,HARRINGTONS SOLICITORS LTD,1286908:147886317,26800,Legal Aid Payment Lower Crime
MINISTRY OF JUSTICE,LEGAL AID AGENCY,02/08/17,Lower Crime,LEGAL AID FUND,HARRIS CUFFARO & NICHOLS,1269385:147686345,39200,Legal Aid Payment Lower Crime
MINISTRY OF JUSTICE,LEGAL AID AGENCY,30/08/17,Lower Crime,LEGAL AID FUND,HARRIS CUFFARO & NICHOLS,1287763:147886433,39200,Legal Aid Payment Lower Crime
MINISTRY OF JUSTICE,LEGAL AID AGENCY,02/08/17,Lower Crime,LEGAL AID FUND,HARRIS SOLICITORS LTD,1268588:147686221,27168,Legal Aid Payment Lower Crime
MINISTRY OF JUSTICE,LEGAL AID AGENCY,16/08/17,Higher Crime,LEGAL AID FUND,HARRIS SOLICITORS LTD,1275711:147779410,74979.26,Legal Aid Payment Higher Crime
MINISTRY OF JUSTICE,LEGAL AID AGENCY,30/08/17,Higher Crime,LEGAL AID FUND,HARRIS SOLICITORS LTD,1286362:147877989,51855.64,Legal Aid Payment Higher Crime
MINISTRY OF JUSTICE,LEGAL AID AGENCY,16/08/17,Civil Representation,LEGAL AID FUND,HARRIS TEMPERLEY LLP,1278165:147776802,93603.28,Legal Aid Payment Civil Representation
MINISTRY OF JUSTICE,LEGAL AID AGENCY,16/08/17,Civil Representation,LEGAL AID FUND,HARRIS TEMPERLEY LLP,1278165:147782151,-56059.2,Legal Aid Payment Civil Representation
MINISTRY OF JUSTICE,LEGAL AID AGENCY,16/08/17,Civil Representation,LEGAL AID FUND,HARRIS TEMPERLEY LLP,1278165:147782155,-27648,Legal Aid Payment Civil Representation
MINISTRY OF JUSTICE,LEGAL AID AGENCY,21/08/17,Civil Representation,LEGAL AID FUND,HARRISON CLARK LLP,1278770:2000000000004434,104637.18,Legal Aid Payment Civil Representation
MINISTRY OF JUSTICE,LEGAL AID AGENCY,02/08/17,Lower Crime,LEGAL AID FUND,HASKELL & CO,1265990:147686327,36110,Legal Aid Payment Lower Crime
MINISTRY OF JUSTICE,LEGAL AID AGENCY,30/08/17,Lower Crime,LEGAL AID FUND,HASKELL & CO,1286598:147886467,45730,Legal Aid Payment Lower Crime
MINISTRY OF JUSTICE,LEGAL AID AGENCY,30/08/17,Lower Crime,LEGAL AID FUND,HAY & KILNER,1287618:147886312,26478,Legal Aid Payment Lower Crime
MINISTRY OF JUSTICE,LEGAL AID AGENCY,23/08/17,Higher Crime,LEGAL AID FUND,HAYES LAW SOLICITORS AND ADVOCATES LLP,1279264:147857203,29206.88,Legal Aid Payment Higher Crime
MINISTRY OF JUSTICE,LEGAL AID AGENCY,02/08/17,Higher Crime,LEGAL AID FUND,HAYWOOD LUNN & ALLEN SOLICITORS,1265969:147697466,36934.8,Legal Aid Payment Higher Crime
MINISTRY OF JUSTICE,LEGAL AID AGENCY,02/08/17,Lower Crime,LEGAL AID FUND,HDH LAW,1268606:147686237,28000,Legal Aid Payment Lower Crime
MINISTRY OF JUSTICE,LEGAL AID AGENCY,09/08/17,Higher Crime,LEGAL AID FUND,HDH LAW,1271255:147763473,31197.47,Legal Aid Payment Higher Crime
MINISTRY OF JUSTICE,LEGAL AID AGENCY,30/08/17,Higher Crime,LEGAL AID FUND,HDH LAW,1286475:147877069,38181.43,Legal Aid Payment Higher Crime
MINISTRY OF JUSTICE,LEGAL AID AGENCY,30/08/17,Lower Crime,LEGAL AID FUND,HDH LAW,1286475:147886333,28000,Legal Aid Payment Lower Crime
MINISTRY OF JUSTICE,LEGAL AID AGENCY,02/08/17,Lower Crime,LEGAL AID FUND,HE LAW LTD,1268569:147686223,27387,Legal Aid Payment Lower Crime
MINISTRY OF JUSTICE,LEGAL AID AGENCY,30/08/17,Higher Crime,LEGAL AID FUND,HE LAW LTD,1286342:147878317,73601.69,Legal Aid Payment Higher Crime
MINISTRY OF JUSTICE,LEGAL AID AGENCY,30/08/17,Lower Crime,LEGAL AID FUND,HE LAW LTD,1286342:147886393,33073,Legal Aid Payment Lower Crime
MINISTRY OF JUSTICE,LEGAL AID AGENCY,02/08/17,Lower Crime,LEGAL AID FUND,HEALEY COLBON,1268660:147686222,27300,Legal Aid Payment Lower Crime
MINISTRY OF JUSTICE,LEGAL AID AGENCY,30/08/17,Lower Crime,LEGAL AID FUND,HEALEY COLBON,1286525:147886321,27300,Legal Aid Payment Lower Crime
MINISTRY OF JUSTICE,LEGAL AID AGENCY,16/08/17,Higher Crime,LEGAL AID FUND,HEALEY COLBON [ADVOCATE],1276967:147771778,29098.54,Legal Aid Payment Higher Crime
MINISTRY OF JUSTICE,LEGAL AID AGENCY,16/08/17,Civil Representation,LEGAL AID FUND,HEATHER HOBSON,1277373:3000001409100068,35596.8,Legal Aid Payment Civil Representation
MINISTRY OF JUSTICE,LEGAL AID AGENCY,02/08/17,Higher Crime,LEGAL AID FUND,HEDLEY SOLICITORS,1265848:147713962,26373.05,Legal Aid Payment Higher Crime
MINISTRY OF JUSTICE,LEGAL AID AGENCY,09/08/17,Higher Crime,LEGAL AID FUND,HEDLEY SOLICITORS,1271292:147722926,35009.67,Legal Aid Payment Higher Crime
MINISTRY OF JUSTICE,LEGAL AID AGENCY,09/08/17,Higher Crime,LEGAL AID FUND,HEDLEY SOLICITORS,1271292:147746349,84134.65,Legal Aid Payment Higher Crime
MINISTRY OF JUSTICE,LEGAL AID AGENCY,16/08/17,Civil Representation,LEGAL AID FUND,HELEN ROBBINS SOLICITORS,1277912:3000001759320030,25712.46,Legal Aid Payment Civil Representation
MINISTRY OF JUSTICE,LEGAL AID AGENCY,02/08/17,Lower Crime,LEGAL AID FUND,HENNESSY & HAMMUDI,1266067:147686395,50000,Legal Aid Payment Lower Crime
MINISTRY OF JUSTICE,LEGAL AID AGENCY,30/08/17,Lower Crime,LEGAL AID FUND,HENNESSY & HAMMUDI,1286580:147886485,50000,Legal Aid Payment Lower Crime
MINISTRY OF JUSTICE,LEGAL AID AGENCY,09/08/17,Higher Crime,LEGAL AID FUND,HENRY BLAXLAND QC,1272369:147739226,31070.98,Legal Aid Payment Higher Crime
MINISTRY OF JUSTICE,LEGAL AID AGENCY,02/08/17,Lower Crime,LEGAL AID FUND,HENRY HYAMS,1269206:147686342,38543,Legal Aid Payment Lower Crime
MINISTRY OF JUSTICE,LEGAL AID AGENCY,30/08/17,Lower Crime,LEGAL AID FUND,HENRY HYAMS,1287693:147886492,52570,Legal Aid Payment Lower Crime
MINISTRY OF JUSTICE,LEGAL AID AGENCY,02/08/17,Lower Crime,LEGAL AID FUND,HENRY'S SOLICITORS LTD,1266246:147686238,28057,Legal Aid Payment Lower Crime
MINISTRY OF JUSTICE,LEGAL AID AGENCY,30/08/17,Lower Crime,LEGAL AID FUND,HENRY'S SOLICITORS LTD,1287031:147886367,30817,Legal Aid Payment Lower Crime
MINISTRY OF JUSTICE,LEGAL AID AGENCY,09/08/17,Civil Representation,LEGAL AID FUND,HEPBURN DELANEY,1273632:147727952,30659.81,Legal Aid Payment Civil Representation
MINISTRY OF JUSTICE,LEGAL AID AGENCY,02/08/17,Lower Crime,LEGAL AID FUND,HGH CRIMINAL DEFENCE SOLICITORS,1266017:147686307,34786,Legal Aid Payment Lower Crime
MINISTRY OF JUSTICE,LEGAL AID AGENCY,09/08/17,Civil Representation,LEGAL AID FUND,HIGGINS MILLER SOLICITORS LTD,1271831:3000000753210005,34696.5,Legal Aid Payment Civil Representation
MINISTRY OF JUSTICE,LEGAL AID AGENCY,16/08/17,Higher Crime,LEGAL AID FUND,HIGHFIELD SOLICITORS LTD,1276520:147785554,40010.71,Legal Aid Payment Higher Crime
MINISTRY OF JUSTICE,LEGAL AID AGENCY,02/08/17,Lower Crime,LEGAL AID FUND,HILL TWINE,1267330:147686341,38395,Legal Aid Payment Lower Crime
MINISTRY OF JUSTICE,LEGAL AID AGENCY,30/08/17,Lower Crime,LEGAL AID FUND,HILL TWINE,1284160:147886392,33028,Legal Aid Payment Lower Crime
MINISTRY OF JUSTICE,LEGAL AID AGENCY,02/08/17,Lower Crime,LEGAL AID FUND,HINE SOLICITORS,1265916:147686295,33382,Legal Aid Payment Lower Crime
MINISTRY OF JUSTICE,LEGAL AID AGENCY,02/08/17,Lower Crime,LEGAL AID FUND,HINE SOLICITORS,1265917:147686375,44174,Legal Aid Payment Lower Crime
MINISTRY OF JUSTICE,LEGAL AID AGENCY,02/08/17,Lower Crime,LEGAL AID FUND,HINE SOLICITORS,1265919:147686243,28691,Legal Aid Payment Lower Crime
MINISTRY OF JUSTICE,LEGAL AID AGENCY,02/08/17,Lower Crime,LEGAL AID FUND,HINE SOLICITORS,1268577:147686348,39918,Legal Aid Payment Lower Crime
MINISTRY OF JUSTICE,LEGAL AID AGENCY,02/08/17,Lower Crime,LEGAL AID FUND,HINE SOLICITORS,1268578:147686289,32834,Legal Aid Payment Lower Crime
MINISTRY OF JUSTICE,LEGAL AID AGENCY,30/08/17,Lower Crime,LEGAL AID FUND,HINE SOLICITORS,1286352:147886487,50165,Legal Aid Payment Lower Crime
MINISTRY OF JUSTICE,LEGAL AID AGENCY,30/08/17,Lower Crime,LEGAL AID FUND,HINE SOLICITORS,1286353:147886484,49937,Legal Aid Payment Lower Crime
MINISTRY OF JUSTICE,LEGAL AID AGENCY,30/08/17,Lower Crime,LEGAL AID FUND,HINE SOLICITORS,1286442:147886370,31048,Legal Aid Payment Lower Crime
MINISTRY OF JUSTICE,LEGAL AID AGENCY,30/08/17,Lower Crime,LEGAL AID FUND,HINE SOLICITORS,1286443:147886293,25325,Legal Aid Payment Lower Crime
MINISTRY OF JUSTICE,LEGAL AID AGENCY,02/08/17,Legal Help,LEGAL AID FUND,HODGE JONES & ALLEN LLP,1266747:147684731,26864,Legal Aid Payment Legal Help
MINISTRY OF JUSTICE,LEGAL AID AGENCY,02/08/17,Lower Crime,LEGAL AID FUND,HODGE JONES & ALLEN LLP,1266747:147686436,108965,Legal Aid Payment Lower Crime
MINISTRY OF JUSTICE,LEGAL AID AGENCY,02/08/17,Higher Crime,LEGAL AID FUND,HODGE JONES & ALLEN LLP,1266747:147714144,38572.18,Legal Aid Payment Higher Crime
MINISTRY OF JUSTICE,LEGAL AID AGENCY,30/08/17,Lower Crime,LEGAL AID FUND,HODGE JONES & ALLEN LLP,1288051:147886520,77990,Legal Aid Payment Lower Crime
MINISTRY OF JUSTICE,LEGAL AID AGENCY,02/08/17,Higher Crime,LEGAL AID FUND,HOGAN BROWN SOLICITORS,1266167:147677683,37604.14,Legal Aid Payment Higher Crime
MINISTRY OF JUSTICE,LEGAL AID AGENCY,16/08/17,Higher Crime,LEGAL AID FUND,HOGAN BROWN SOLICITORS,1275778:147785531,26511.74,Legal Aid Payment Higher Crime
MINISTRY OF JUSTICE,LEGAL AID AGENCY,23/08/17,Higher Crime,LEGAL AID FUND,HOGAN BROWN SOLICITORS,1282505:147840364,60418.03,Legal Aid Payment Higher Crime
MINISTRY OF JUSTICE,LEGAL AID AGENCY,02/08/17,Lower Crime,LEGAL AID FUND,HORSMAN SOLICITORS LTD,1266611:147686282,32229,Legal Aid Payment Lower Crime
MINISTRY OF JUSTICE,LEGAL AID AGENCY,23/08/17,Higher Crime,LEGAL AID FUND,HORSMAN SOLICITORS LTD,1282969:147833672,65127.04,Legal Aid Payment Higher Crime
MINISTRY OF JUSTICE,LEGAL AID AGENCY,23/08/17,Higher Crime,LEGAL AID FUND,HORSMAN SOLICITORS LTD [ADVOCATE],1281532:147840540,34334.1,Legal Aid Payment Higher Crime
MINISTRY OF JUSTICE,LEGAL AID AGENCY,02/08/17,Lower Crime,LEGAL AID FUND,HOWARD & BYRNE SOLICITORS,1266147:147686391,49000,Legal Aid Payment Lower Crime
MINISTRY OF JUSTICE,LEGAL AID AGENCY,30/08/17,Lower Crime,LEGAL AID FUND,HOWARD & BYRNE SOLICITORS,1286939:147886504,58700,Legal Aid Payment Lower Crime
MINISTRY OF JUSTICE,LEGAL AID AGENCY,02/08/17,Lower Crime,LEGAL AID FUND,HOWARD & CO,1269164:147686187,25000,Legal Aid Payment Lower Crime
MINISTRY OF JUSTICE,LEGAL AID AGENCY,30/08/17,Lower Crime,LEGAL AID FUND,HOWARD & CO,1287468:147886282,25000,Legal Aid Payment Lower Crime
MINISTRY OF JUSTICE,LEGAL AID AGENCY,02/08/17,Higher Crime,LEGAL AID FUND,HOWARD BERNSTEIN SOLICITORS,1268584:147714713,67789.47,Legal Aid Payment Higher Crime
MINISTRY OF JUSTICE,LEGAL AID AGENCY,02/08/17,Legal Help,LEGAL AID FUND,HOWE & CO,1268916:147684779,67869,Legal Aid Payment Legal Help
MINISTRY OF JUSTICE,LEGAL AID AGENCY,30/08/17,Legal Help,LEGAL AID FUND,HOWE & CO,1286865:147884831,49959,Legal Aid Payment Legal Help
MINISTRY OF JUSTICE,LEGAL AID AGENCY,02/08/17,Lower Crime,LEGAL AID FUND,HOWELLS LLP,1269283:147686377,44300,Legal Aid Payment Lower Crime
MINISTRY OF JUSTICE,LEGAL AID AGENCY,30/08/17,Lower Crime,LEGAL AID FUND,HOWELLS LLP,1287584:147886459,44300,Legal Aid Payment Lower Crime
MINISTRY OF JUSTICE,LEGAL AID AGENCY,02/08/17,Lower Crime,LEGAL AID FUND,HUMPHRYS DAWSON,1266226:147686290,32882,Legal Aid Payment Lower Crime
MINISTRY OF JUSTICE,LEGAL AID AGENCY,30/08/17,Lower Crime,LEGAL AID FUND,HUMPHRYS DAWSON,1287004:147886363,30650,Legal Aid Payment Lower Crime
MINISTRY OF JUSTICE,LEGAL AID AGENCY,02/08/17,Legal Help,LEGAL AID FUND,HUNT & COOMBS LLP,1269146:147684734,27491,Legal Aid Payment Legal Help
MINISTRY OF JUSTICE,LEGAL AID AGENCY,30/08/17,Legal Help,LEGAL AID FUND,HUNT & COOMBS LLP,1287450:147884799,29231,Legal Aid Payment Legal Help
MINISTRY OF JUSTICE,LEGAL AID AGENCY,16/08/17,Higher Crime,LEGAL AID FUND,HUSSAIN SOLICITORS LTD,1277963:147816222,89645.06,Legal Aid Payment Higher Crime
MINISTRY OF JUSTICE,LEGAL AID AGENCY,02/08/17,Civil Representation,LEGAL AID FUND,HUTCHINSON THOMAS,1266339:147673868,27184.36,Legal Aid Payment Civil Representation
MINISTRY OF JUSTICE,LEGAL AID AGENCY,02/08/17,Civil Representation,LEGAL AID FUND,HUW LIPPIATT,1268414:3000001410860012,67564.8,Legal Aid Payment Civil Representation
MINISTRY OF JUSTICE,LEGAL AID AGENCY,02/08/17,Lower Crime,LEGAL AID FUND,I B B SOLICITORS,1266098:147686428,76600,Legal Aid Payment Lower Crime
MINISTRY OF JUSTICE,LEGAL AID AGENCY,02/08/17,Higher Crime,LEGAL AID FUND,I B B SOLICITORS,1266098:147718739,43256.21,Legal Aid Payment Higher Crime
MINISTRY OF JUSTICE,LEGAL AID AGENCY,16/08/17,Higher Crime,LEGAL AID FUND,I B B SOLICITORS,1275795:147794209,31362.96,Legal Aid Payment Higher Crime
MINISTRY OF JUSTICE,LEGAL AID AGENCY,23/08/17,Higher Crime,LEGAL AID FUND,I B B SOLICITORS,1282516:147833791,74979.26,Legal Aid Payment Higher Crime
MINISTRY OF JUSTICE,LEGAL AID AGENCY,23/08/17,Higher Crime,LEGAL AID FUND,I B B SOLICITORS,1282516:147833896,29315,Legal Aid Payment Higher Crime
MINISTRY OF JUSTICE,LEGAL AID AGENCY,30/08/17,Lower Crime,LEGAL AID FUND,I B B SOLICITORS,1286797:147886518,76600,Legal Aid Payment Lower Crime
MINISTRY OF JUSTICE,LEGAL AID AGENCY,09/08/17,Higher Crime,LEGAL AID FUND,IAIN R O SUGGETT,1271127:147739913,32141.8,Legal Aid Payment Higher Crime
MINISTRY OF JUSTICE,LEGAL AID AGENCY,02/08/17,Higher Crime,LEGAL AID FUND,IAN  MULLARKEY,1267798:147677082,27196.91,Legal Aid Payment Higher Crime
MINISTRY OF JUSTICE,LEGAL AID AGENCY,30/08/17,Higher Crime,LEGAL AID FUND,IBITAYO A ADEBAYO,1285871:147864475,32515.6,Legal Aid Payment Higher Crime
MINISTRY OF JUSTICE,LEGAL AID AGENCY,02/08/17,Legal Help,LEGAL AID FUND,IMMIGRATION ADVICE SERVICE,1267367:147684785,87493,Legal Aid Payment Legal Help
MINISTRY OF JUSTICE,LEGAL AID AGENCY,02/08/17,Lower Crime,LEGAL AID FUND,INSTALAW,1264497:147686424,70885,Legal Aid Payment Lower Crime
MINISTRY OF JUSTICE,LEGAL AID AGENCY,30/08/17,Lower Crime,LEGAL AID FUND,INSTALAW,1283899:147886499,55844,Legal Aid Payment Lower Crime
MINISTRY OF JUSTICE,LEGAL AID AGENCY,02/08/17,Legal Help,LEGAL AID FUND,IRIS LAW SOLICITORS,1265827:147684726,25500,Legal Aid Payment Legal Help
MINISTRY OF JUSTICE,LEGAL AID AGENCY,30/08/17,Legal Help,LEGAL AID FUND,IRIS LAW SOLICITORS,1286263:147884810,34730,Legal Aid Payment Legal Help
MINISTRY OF JUSTICE,LEGAL AID AGENCY,02/08/17,Lower Crime,LEGAL AID FUND,IRVINE THANVI NATAS SOLICITORS,1266253:147686423,70400,Legal Aid Payment Lower Crime
MINISTRY OF JUSTICE,LEGAL AID AGENCY,02/08/17,Higher Crime,LEGAL AID FUND,IRVINE THANVI NATAS SOLICITORS,1266253:147714043,45087.81,Legal Aid Payment Higher Crime
MINISTRY OF JUSTICE,LEGAL AID AGENCY,16/08/17,Higher Crime,LEGAL AID FUND,IRVINE THANVI NATAS SOLICITORS,1275900:147794080,30716.37,Legal Aid Payment Higher Crime
MINISTRY OF JUSTICE,LEGAL AID AGENCY,30/08/17,Lower Crime,LEGAL AID FUND,IRVINE THANVI NATAS SOLICITORS,1287038:147886516,70400,Legal Aid Payment Lower Crime
MINISTRY OF JUSTICE,LEGAL AID AGENCY,23/08/17,Higher Crime,LEGAL AID FUND,IRWIN MITCHELL LLP,1280678:147832313,74979.26,Legal Aid Payment Higher Crime
MINISTRY OF JUSTICE,LEGAL AID AGENCY,23/08/17,Civil Representation,LEGAL AID FUND,IRWIN MITCHELL LLP,1282366:147773667,-46860.58,Legal Aid Payment Civil Representation
MINISTRY OF JUSTICE,LEGAL AID AGENCY,23/08/17,Higher Crime,LEGAL AID FUND,ISABELLA L FORSHALL QC,1281759:147840819,26411.65,Legal Aid Payment Higher Crime
MINISTRY OF JUSTICE,LEGAL AID AGENCY,02/08/17,Lower Crime,LEGAL AID FUND,ISON HARRISON LTD,1268851:147686209,26200,Legal Aid Payment Lower Crime
MINISTRY OF JUSTICE,LEGAL AID AGENCY,30/08/17,Lower Crime,LEGAL AID FUND,ISON HARRISON LTD,1286896:147886306,26200,Legal Aid Payment Lower Crime
MINISTRY OF JUSTICE,LEGAL AID AGENCY,02/08/17,Lower Crime,LEGAL AID FUND,J D SOLICITORS,1264359:147686325,35935,Legal Aid Payment Lower Crime
MINISTRY OF JUSTICE,LEGAL AID AGENCY,09/08/17,Higher Crime,LEGAL AID FUND,J D SOLICITORS,1273493:147739121,39575.45,Legal Aid Payment Higher Crime
MINISTRY OF JUSTICE,LEGAL AID AGENCY,30/08/17,Lower Crime,LEGAL AID FUND,J D SOLICITORS,1283583:147886326,27693,Legal Aid Payment Lower Crime
MINISTRY OF JUSTICE,LEGAL AID AGENCY,02/08/17,Legal Help,LEGAL AID FUND,J D SPICER ZEB,1266749:147684758,36835,Legal Aid Payment Legal Help
MINISTRY OF JUSTICE,LEGAL AID AGENCY,02/08/17,Legal Help,LEGAL AID FUND,J D SPICER ZEB,1266750:147684739,28744,Legal Aid Payment Legal Help
MINISTRY OF JUSTICE,LEGAL AID AGENCY,02/08/17,Lower Crime,LEGAL AID FUND,J D SPICER ZEB,1266750:147686434,94077,Legal Aid Payment Lower Crime
MINISTRY OF JUSTICE,LEGAL AID AGENCY,02/08/17,Higher Crime,LEGAL AID FUND,J D SPICER ZEB,1267376:147719129,48543.35,Legal Aid Payment Higher Crime
MINISTRY OF JUSTICE,LEGAL AID AGENCY,09/08/17,Higher Crime,LEGAL AID FUND,J D SPICER ZEB,1271251:147731390,74979.26,Legal Aid Payment Higher Crime
MINISTRY OF JUSTICE,LEGAL AID AGENCY,09/08/17,Higher Crime,LEGAL AID FUND,J D SPICER ZEB,1273911:147721963,74979.26,Legal Aid Payment Higher Crime
MINISTRY OF JUSTICE,LEGAL AID AGENCY,30/08/17,Lower Crime,LEGAL AID FUND,J D SPICER ZEB,1288054:147886525,97391,Legal Aid Payment Lower Crime
MINISTRY OF JUSTICE,LEGAL AID AGENCY,02/08/17,Legal Help,LEGAL AID FUND,JACKSON LEES GROUP LTD,1265036:147684783,74371,Legal Aid Payment Legal Help
MINISTRY OF JUSTICE,LEGAL AID AGENCY,02/08/17,Lower Crime,LEGAL AID FUND,JACKSON LEES GROUP LTD,1265036:147686378,44510,Legal Aid Payment Lower Crime
MINISTRY OF JUSTICE,LEGAL AID AGENCY,02/08/17,Legal Help,LEGAL AID FUND,JACKSON LEES GROUP LTD,1266674:147684732,27364,Legal Aid Payment Legal Help
MINISTRY OF JUSTICE,LEGAL AID AGENCY,30/08/17,Legal Help,LEGAL AID FUND,JACKSON LEES GROUP LTD,1284193:147884796,28250,Legal Aid Payment Legal Help
MINISTRY OF JUSTICE,LEGAL AID AGENCY,30/08/17,Legal Help,LEGAL AID FUND,JACKSON LEES GROUP LTD,1284734:147884823,42902,Legal Aid Payment Legal Help
MINISTRY OF JUSTICE,LEGAL AID AGENCY,30/08/17,Lower Crime,LEGAL AID FUND,JACKSON LEES GROUP LTD,1284734:147886478,47365,Legal Aid Payment Lower Crime
MINISTRY OF JUSTICE,LEGAL AID AGENCY,30/08/17,Legal Help,LEGAL AID FUND,JACKSON LEES GROUP LTD,1287988:147884821,42409,Legal Aid Payment Legal Help
MINISTRY OF JUSTICE,LEGAL AID AGENCY,02/08/17,Civil Representation,LEGAL AID FUND,JACKSON QUINN,1268912:3000001081030011,26300.4,Legal Aid Payment Civil Representation
MINISTRY OF JUSTICE,LEGAL AID AGENCY,02/08/17,Higher Crime,LEGAL AID FUND,JAMES A D WOOD QC,1267915:147669478,50206.79,Legal Aid Payment Higher Crime
MINISTRY OF JUSTICE,LEGAL AID AGENCY,16/08/17,Higher Crime,LEGAL AID FUND,JAMES D MCCRINDELL,1275441:147771036,33748.2,Legal Aid Payment Higher Crime
MINISTRY OF JUSTICE,LEGAL AID AGENCY,02/08/17,Civil Representation,LEGAL AID FUND,JAMES J HARGAN,1265642:3000001950860013,29683.91,Legal Aid Payment Civil Representation
MINISTRY OF JUSTICE,LEGAL AID AGENCY,30/08/17,Lower Crime,LEGAL AID FUND,JAMES MURRAY SOLICITORS,1287171:147886368,30843,Legal Aid Payment Lower Crime
MINISTRY OF JUSTICE,LEGAL AID AGENCY,09/08/17,Higher Crime,LEGAL AID FUND,JAMES P HINES,1271193:147760412,56443.75,Legal Aid Payment Higher Crime
MINISTRY OF JUSTICE,LEGAL AID AGENCY,02/08/17,Higher Crime,LEGAL AID FUND,JAMES S ADKIN,1265657:147669319,28503.9,Legal Aid Payment Higher Crime
MINISTRY OF JUSTICE,LEGAL AID AGENCY,30/08/17,Higher Crime,LEGAL AID FUND,JAMES T N SCOBIE QC,1284372:147870455,46251.92,Legal Aid Payment Higher Crime
MINISTRY OF JUSTICE,LEGAL AID AGENCY,09/08/17,Higher Crime,LEGAL AID FUND,JANES SOLICITORS,1273819:147727985,133874.21,Legal Aid Payment Higher Crime
MINISTRY OF JUSTICE,LEGAL AID AGENCY,09/08/17,Civil Representation,LEGAL AID FUND,JANES SOLICITORS,1273819:147727985,26774.84,Legal Aid Payment Civil Representation
MINISTRY OF JUSTICE,LEGAL AID AGENCY,09/08/17,Civil Representation,LEGAL AID FUND,JANET N PLANGE,1270790:147742047,32011.2,Legal Aid Payment Civil Representation
MINISTRY OF JUSTICE,LEGAL AID AGENCY,30/08/17,Lower Crime,LEGAL AID FUND,JASON NICHOLSON,1283511:147886299,25843,Legal Aid Payment Lower Crime
MINISTRY OF JUSTICE,LEGAL AID AGENCY,09/08/17,Higher Crime,LEGAL AID FUND,JASON TAYLOR,1273040:147731254,27235.8,Legal Aid Payment Higher Crime
MINISTRY OF JUSTICE,LEGAL AID AGENCY,02/08/17,Higher Crime,LEGAL AID FUND,JBR MORGAN LTD,1268557:147697361,43572.96,Legal Aid Payment Higher Crime
MINISTRY OF JUSTICE,LEGAL AID AGENCY,23/08/17,Higher Crime,LEGAL AID FUND,JEFFREY A ISRAEL,1281858:147832878,25233.1,Legal Aid Payment Higher Crime
MINISTRY OF JUSTICE,LEGAL AID AGENCY,02/08/17,Higher Crime,LEGAL AID FUND,JEMMA LEVINSON,1265303:147688093,27797.68,Legal Aid Payment Higher Crime
MINISTRY OF JUSTICE,LEGAL AID AGENCY,23/08/17,Higher Crime,LEGAL AID FUND,JEREMY BARTON,1281853:147841228,29559.1,Legal Aid Payment Higher Crime
MINISTRY OF JUSTICE,LEGAL AID AGENCY,16/08/17,Civil Representation,LEGAL AID FUND,JEREMY J HALL,1277608:3000001141440026,42452.64,Legal Aid Payment Civil Representation
MINISTRY OF JUSTICE,LEGAL AID AGENCY,02/08/17,Lower Crime,LEGAL AID FUND,JERMAN SAMUELS & PEARSON LLP,1264336:147686314,35000,Legal Aid Payment Lower Crime
MINISTRY OF JUSTICE,LEGAL AID AGENCY,02/08/17,Lower Crime,LEGAL AID FUND,JERMAN SAMUELS & PEARSON LLP,1264336:147693654,30000,Legal Aid Payment Lower Crime
MINISTRY OF JUSTICE,LEGAL AID AGENCY,02/08/17,Lower Crime,LEGAL AID FUND,JERMAN SAMUELS & PEARSON LLP,1269671:147686337,37600,Legal Aid Payment Lower Crime
MINISTRY OF JUSTICE,LEGAL AID AGENCY,02/08/17,Lower Crime,LEGAL AID FUND,JERMAN SAMUELS & PEARSON LLP,1269671:147693653,-37600,Legal Aid Payment Lower Crime
MINISTRY OF JUSTICE,LEGAL AID AGENCY,16/08/17,Higher Crime,LEGAL AID FUND,JERMAN SAMUELS & PEARSON LLP,1275890:147771216,51268.31,Legal Aid Payment Higher Crime
MINISTRY OF JUSTICE,LEGAL AID AGENCY,30/08/17,Lower Crime,LEGAL AID FUND,JERMAN SAMUELS & PEARSON LLP,1283648:147886512,65000,Legal Aid Payment Lower Crime
MINISTRY OF JUSTICE,LEGAL AID AGENCY,02/08/17,Legal Help,LEGAL AID FUND,JESSE DOUGLAS & AASKELLS SOLICITORS,1266907:147684770,51207,Legal Aid Payment Legal Help
MINISTRY OF JUSTICE,LEGAL AID AGENCY,30/08/17,Legal Help,LEGAL AID FUND,JESSE DOUGLAS & AASKELLS SOLICITORS,1288296:147884828,48414,Legal Aid Payment Legal Help
MINISTRY OF JUSTICE,LEGAL AID AGENCY,23/08/17,Civil Representation,LEGAL AID FUND,JMW SOLICITORS LLP,1280860:147836033,26779.25,Legal Aid Payment Civil Representation
MINISTRY OF JUSTICE,LEGAL AID AGENCY,16/08/17,Higher Crime,LEGAL AID FUND,JOE HINGSTON,1277245:147785988,27286.14,Legal Aid Payment Higher Crime
MINISTRY OF JUSTICE,LEGAL AID AGENCY,16/08/17,Higher Crime,LEGAL AID FUND,JOEL N BENNATHAN QC,1275580:147771633,67884.52,Legal Aid Payment Higher Crime
MINISTRY OF JUSTICE,LEGAL AID AGENCY,02/08/17,Civil Representation,LEGAL AID FUND,JOHANNE E DELAHUNTY QC,1267818:3000001395160012,43839.72,Legal Aid Payment Civil Representation
MINISTRY OF JUSTICE,LEGAL AID AGENCY,09/08/17,Civil Representation,LEGAL AID FUND,JOHN C R TUGHAN,1272589:3000001141440024,55989.6,Legal Aid Payment Civil Representation
MINISTRY OF JUSTICE,LEGAL AID AGENCY,02/08/17,Lower Crime,LEGAL AID FUND,JOHN DELANEY & CO SOLICITORS,1268854:147686291,33000,Legal Aid Payment Lower Crime
MINISTRY OF JUSTICE,LEGAL AID AGENCY,30/08/17,Lower Crime,LEGAL AID FUND,JOHN DELANEY & CO SOLICITORS,1286899:147886391,33000,Legal Aid Payment Lower Crime
MINISTRY OF JUSTICE,LEGAL AID AGENCY,30/08/17,Higher Crime,LEGAL AID FUND,JOHN DELANEY & CO SOLICITORS,1286899:147904894,26637.02,Legal Aid Payment Higher Crime
MINISTRY OF JUSTICE,LEGAL AID AGENCY,02/08/17,Lower Crime,LEGAL AID FUND,JOHN FULLER & PARTNERS,1268698:147686229,27619,Legal Aid Payment Lower Crime
MINISTRY OF JUSTICE,LEGAL AID AGENCY,23/08/17,Civil Representation,LEGAL AID FUND,JOHN KER-REID,1279578:3000000408920022,32788.8,Legal Aid Payment Civil Representation
MINISTRY OF JUSTICE,LEGAL AID AGENCY,02/08/17,Higher Crime,LEGAL AID FUND,JOHN T BENSON QC,1265087:147670148,45076.8,Legal Aid Payment Higher Crime
MINISTRY OF JUSTICE,LEGAL AID AGENCY,16/08/17,Civil Representation,LEGAL AID FUND,JOHN WHITTLE ROBINSON,1278086:147767301,35255.49,Legal Aid Payment Civil Representation
MINISTRY OF JUSTICE,LEGAL AID AGENCY,02/08/17,Lower Crime,LEGAL AID FUND,JOHNSON ASTILLS,1266410:147686241,28500,Legal Aid Payment Lower Crime
MINISTRY OF JUSTICE,LEGAL AID AGENCY,30/08/17,Lower Crime,LEGAL AID FUND,JOHNSON ASTILLS,1287335:147886339,28500,Legal Aid Payment Lower Crime
MINISTRY OF JUSTICE,LEGAL AID AGENCY,02/08/17,Higher Crime,LEGAL AID FUND,JON MAIL SOLICITORS & CO LTD,1266132:147676505,62841.5,Legal Aid Payment Higher Crime
MINISTRY OF JUSTICE,LEGAL AID AGENCY,02/08/17,Lower Crime,LEGAL AID FUND,JONAS ROY BLOOM,1266137:147686330,36700,Legal Aid Payment Lower Crime
MINISTRY OF JUSTICE,LEGAL AID AGENCY,16/08/17,Higher Crime,LEGAL AID FUND,JONAS ROY BLOOM,1278001:147778984,71866.87,Legal Aid Payment Higher Crime
MINISTRY OF JUSTICE,LEGAL AID AGENCY,16/08/17,Higher Crime,LEGAL AID FUND,JONATHAN C ASHLEY-NORMAN,1274636:147817432,51858.19,Legal Aid Payment Higher Crime
MINISTRY OF JUSTICE,LEGAL AID AGENCY,09/08/17,Civil Representation,LEGAL AID FUND,JONES MYERS LLP,1273741:3000000674870014,41456.21,Legal Aid Payment Civil Representation
MINISTRY OF JUSTICE,LEGAL AID AGENCY,02/08/17,Lower Crime,LEGAL AID FUND,JOSEPH HILL & CO,1266497:147686353,40886,Legal Aid Payment Lower Crime
MINISTRY OF JUSTICE,LEGAL AID AGENCY,30/08/17,Lower Crime,LEGAL AID FUND,JOSEPH HILL & CO,1287550:147886385,32673,Legal Aid Payment Lower Crime
MINISTRY OF JUSTICE,LEGAL AID AGENCY,02/08/17,Lower Crime,LEGAL AID FUND,JSP LAW LTD,1264557:147686373,44110,Legal Aid Payment Lower Crime
MINISTRY OF JUSTICE,LEGAL AID AGENCY,02/08/17,Lower Crime,LEGAL AID FUND,JSP LAW LTD,1267118:147686198,25388,Legal Aid Payment Lower Crime
MINISTRY OF JUSTICE,LEGAL AID AGENCY,23/08/17,Higher Crime,LEGAL AID FUND,JSP LAW LTD,1281152:147833141,74090.9,Legal Aid Payment Higher Crime
MINISTRY OF JUSTICE,LEGAL AID AGENCY,30/08/17,Lower Crime,LEGAL AID FUND,JSP LAW LTD,1283955:147886483,49471,Legal Aid Payment Lower Crime
MINISTRY OF JUSTICE,LEGAL AID AGENCY,23/08/17,Civil Representation,LEGAL AID FUND,JULIA C BAGGS,1281768:3000001090830016,34473.6,Legal Aid Payment Civil Representation
MINISTRY OF JUSTICE,LEGAL AID AGENCY,09/08/17,Civil Representation,LEGAL AID FUND,JULIA R BELYAVIN,1270273:3000001561320009,29361.78,Legal Aid Payment Civil Representation
MINISTRY OF JUSTICE,LEGAL AID AGENCY,14/08/17,Civil Representation,LEGAL AID FUND,JUNE BERRABE,1274267:1000000518770001,84537.56,Legal Aid Payment Civil Representation
MINISTRY OF JUSTICE,LEGAL AID AGENCY,16/08/17,Higher Crime,LEGAL AID FUND,JVA LAW,1277909:147645619,74979.26,Legal Aid Payment Higher Crime
MINISTRY OF JUSTICE,LEGAL AID AGENCY,30/08/17,Lower Crime,LEGAL AID FUND,K A SOLICITORS,1286328:147886477,47024,Legal Aid Payment Lower Crime
MINISTRY OF JUSTICE,LEGAL AID AGENCY,02/08/17,Lower Crime,LEGAL AID FUND,K LEGAL SOLICITORS,1265857:147686297,33500,Legal Aid Payment Lower Crime
MINISTRY OF JUSTICE,LEGAL AID AGENCY,30/08/17,Lower Crime,LEGAL AID FUND,K LEGAL SOLICITORS,1286386:147886378,32260,Legal Aid Payment Lower Crime
MINISTRY OF JUSTICE,LEGAL AID AGENCY,30/08/17,Higher Crime,LEGAL AID FUND,K LEGAL SOLICITORS,1286386:147904752,37489.63,Legal Aid Payment Higher Crime
MINISTRY OF JUSTICE,LEGAL AID AGENCY,23/08/17,Higher Crime,LEGAL AID FUND,KALBER STRUCKLEY & CO LTD,1283033:147840882,50559.97,Legal Aid Payment Higher Crime
MINISTRY OF JUSTICE,LEGAL AID AGENCY,02/08/17,Lower Crime,LEGAL AID FUND,KAMRANS SOLICITORS,1266336:147686236,27902,Legal Aid Payment Lower Crime
MINISTRY OF JUSTICE,LEGAL AID AGENCY,16/08/17,Higher Crime,LEGAL AID FUND,KANNAN S SIVA,1277248:147778436,32093.2,Legal Aid Payment Higher Crime
MINISTRY OF JUSTICE,LEGAL AID AGENCY,30/08/17,Higher Crime,LEGAL AID FUND,KARIM & CO SOLICITORS,1287163:147888038,45439.46,Legal Aid Payment Higher Crime
MINISTRY OF JUSTICE,LEGAL AID AGENCY,23/08/17,Civil Representation,LEGAL AID FUND,KATE L AKERMAN,1280047:3000001360540009,42768,Legal Aid Payment Civil Representation
MINISTRY OF JUSTICE,LEGAL AID AGENCY,02/08/17,Higher Crime,LEGAL AID FUND,KATHERINE BRUNNER,1265174:147695702,63333.34,Legal Aid Payment Higher Crime
MINISTRY OF JUSTICE,LEGAL AID AGENCY,23/08/17,Civil Representation,LEGAL AID FUND,KATHRYN M KOROL,1280046:3000001376470015,49595.33,Legal Aid Payment Civil Representation
MINISTRY OF JUSTICE,LEGAL AID AGENCY,30/08/17,Civil Representation,LEGAL AID FUND,KATHRYN M SKELLORN,1284518:3000001364160016,52747.2,Legal Aid Payment Civil Representation
MINISTRY OF JUSTICE,LEGAL AID AGENCY,16/08/17,Higher Crime,LEGAL AID FUND,KBS SOLICITORS,1277882:147779314,55010.62,Legal Aid Payment Higher Crime
MINISTRY OF JUSTICE,LEGAL AID AGENCY,23/08/17,Higher Crime,LEGAL AID FUND,KBS SOLICITORS,1280297:147824967,74979.26,Legal Aid Payment Higher Crime
MINISTRY OF JUSTICE,LEGAL AID AGENCY,09/08/17,Higher Crime,LEGAL AID FUND,KEANEY & CO SOLICITORS,1270097:147762866,116538.58,Legal Aid Payment Higher Crime
MINISTRY OF JUSTICE,LEGAL AID AGENCY,16/08/17,Higher Crime,LEGAL AID FUND,KEANEY & CO SOLICITORS,1276513:147816173,34984.64,Legal Aid Payment Higher Crime
MINISTRY OF JUSTICE,LEGAL AID AGENCY,02/08/17,Lower Crime,LEGAL AID FUND,KEANEY WHITEHEAD PARTNERSHIP,1268681:147686248,29135,Legal Aid Payment Lower Crime
MINISTRY OF JUSTICE,LEGAL AID AGENCY,30/08/17,Higher Crime,LEGAL AID FUND,KEITH DYSON SOLICITORS LTD,1287292:147864596,37242.99,Legal Aid Payment Higher Crime
MINISTRY OF JUSTICE,LEGAL AID AGENCY,16/08/17,Higher Crime,LEGAL AID FUND,KELLOCKS,1278087:147771696,31312.02,Legal Aid Payment Higher Crime
MINISTRY OF JUSTICE,LEGAL AID AGENCY,30/08/17,Lower Crime,LEGAL AID FUND,KELLOCKS,1287075:147886303,25982,Legal Aid Payment Lower Crime
MINISTRY OF JUSTICE,LEGAL AID AGENCY,02/08/17,Lower Crime,LEGAL AID FUND,KEMPS SOLICITORS,1269395:147686262,30228,Legal Aid Payment Lower Crime
MINISTRY OF JUSTICE,LEGAL AID AGENCY,02/08/17,Civil Representation,LEGAL AID FUND,KENNETH BUSH LTD,1269078:3000001302310024RC,-32421.6,Legal Aid Payment Civil Representation
MINISTRY OF JUSTICE,LEGAL AID AGENCY,02/08/17,Civil Representation,LEGAL AID FUND,KENNETH BUSH LTD,1269078:3000001302310028,37512.08,Legal Aid Payment Civil Representation
MINISTRY OF JUSTICE,LEGAL AID AGENCY,16/08/17,Higher Crime,LEGAL AID FUND,KENNETH M BARROW & CO,1276131:147816164,74317.63,Legal Aid Payment Higher Crime
MINISTRY OF JUSTICE,LEGAL AID AGENCY,23/08/17,Higher Crime,LEGAL AID FUND,KEPPE ROFER,1280661:147848165,89975.11,Legal Aid Payment Higher Crime
MINISTRY OF JUSTICE,LEGAL AID AGENCY,16/08/17,Higher Crime,LEGAL AID FUND,KERIM FUAD QC,1277538:147771327,36050.53,Legal Aid Payment Higher Crime
MINISTRY OF JUSTICE,LEGAL AID AGENCY,30/08/17,Civil Representation,LEGAL AID FUND,KERRY L BRETHERTON,1285694:147882111,35187.59,Legal Aid Payment Civil Representation
MINISTRY OF JUSTICE,LEGAL AID AGENCY,02/08/17,Lower Crime,LEGAL AID FUND,KESAR & CO SOLICITORS,1265852:147686402,52117,Legal Aid Payment Lower Crime
MINISTRY OF JUSTICE,LEGAL AID AGENCY,30/08/17,Lower Crime,LEGAL AID FUND,KESAR & CO SOLICITORS,1286381:147886399,33661,Legal Aid Payment Lower Crime
MINISTRY OF JUSTICE,LEGAL AID AGENCY,23/08/17,Higher Crime,LEGAL AID FUND,KEVIN MOLLOY,1281294:147833389,25233.1,Legal Aid Payment Higher Crime
MINISTRY OF JUSTICE,LEGAL AID AGENCY,16/08/17,Higher Crime,LEGAL AID FUND,KHAN SOLICITORS LTD,1276028:147816892,74979.26,Legal Aid Payment Higher Crime
MINISTRY OF JUSTICE,LEGAL AID AGENCY,23/08/17,Higher Crime,LEGAL AID FUND,KHAN SOLICITORS LTD,1282866:147833318,60500.15,Legal Aid Payment Higher Crime
MINISTRY OF JUSTICE,LEGAL AID AGENCY,02/08/17,Lower Crime,LEGAL AID FUND,KIRWANS,1266308:147686300,33742,Legal Aid Payment Lower Crime
MINISTRY OF JUSTICE,LEGAL AID AGENCY,16/08/17,Higher Crime,LEGAL AID FUND,KNIGHTSBRIDGE SOLICITORS,1276519:147779464,74979.26,Legal Aid Payment Higher Crime
MINISTRY OF JUSTICE,LEGAL AID AGENCY,09/08/17,Civil Representation,LEGAL AID FUND,KUNDERT SOLICITORS LLP,1271892:3000000785380018,27509.8,Legal Aid Payment Civil Representation
MINISTRY OF JUSTICE,LEGAL AID AGENCY,02/08/17,Lower Crime,LEGAL AID FUND,KYLES LEGAL PRACTICE,1268601:147686370,43801,Legal Aid Payment Lower Crime
MINISTRY OF JUSTICE,LEGAL AID AGENCY,30/08/17,Lower Crime,LEGAL AID FUND,KYLES LEGAL PRACTICE,1286470:147886400,34080,Legal Aid Payment Lower Crime
MINISTRY OF JUSTICE,LEGAL AID AGENCY,02/08/17,Lower Crime,LEGAL AID FUND,LAHIFF & CO,1266911:147686219,27059,Legal Aid Payment Lower Crime
MINISTRY OF JUSTICE,LEGAL AID AGENCY,02/08/17,Higher Crime,LEGAL AID FUND,LAM & MEERABUX SOLICITORS,1268608:147713981,28593.21,Legal Aid Payment Higher Crime
MINISTRY OF JUSTICE,LEGAL AID AGENCY,16/08/17,Higher Crime,LEGAL AID FUND,LAM & MEERABUX SOLICITORS,1275721:147817365,26353.38,Legal Aid Payment Higher Crime
MINISTRY OF JUSTICE,LEGAL AID AGENCY,02/08/17,Lower Crime,LEGAL AID FUND,LANSBURY WORTHINGTON LTD,1269381:147686405,54900,Legal Aid Payment Lower Crime
MINISTRY OF JUSTICE,LEGAL AID AGENCY,30/08/17,Lower Crime,LEGAL AID FUND,LANSBURY WORTHINGTON LTD,1287759:147886497,54900,Legal Aid Payment Lower Crime
MINISTRY OF JUSTICE,LEGAL AID AGENCY,09/08/17,Civil Representation,LEGAL AID FUND,LARCOMES LLP,1271939:3000000753970006,29493.48,Legal Aid Payment Civil Representation
MINISTRY OF JUSTICE,LEGAL AID AGENCY,02/08/17,Legal Help,LEGAL AID FUND,LAWANA & CO,1268706:147684777,64000,Legal Aid Payment Legal Help
MINISTRY OF JUSTICE,LEGAL AID AGENCY,30/08/17,Legal Help,LEGAL AID FUND,LAWANA & CO,1286660:147884836,64000,Legal Aid Payment Legal Help
MINISTRY OF JUSTICE,LEGAL AID AGENCY,02/08/17,Lower Crime,LEGAL AID FUND,LAWRENCE & CO SOLICITORS CDS LLP,1266498:147686417,62900,Legal Aid Payment Lower Crime
MINISTRY OF JUSTICE,LEGAL AID AGENCY,30/08/17,Lower Crime,LEGAL AID FUND,LAWRENCE & CO SOLICITORS CDS LLP,1287551:147886509,62900,Legal Aid Payment Lower Crime
MINISTRY OF JUSTICE,LEGAL AID AGENCY,02/08/17,Lower Crime,LEGAL AID FUND,LAWTONS SOLICITORS LTD,1266974:147686192,25000,Legal Aid Payment Lower Crime
MINISTRY OF JUSTICE,LEGAL AID AGENCY,02/08/17,Lower Crime,LEGAL AID FUND,LAWTONS SOLICITORS LTD,1268610:147686419,65200,Legal Aid Payment Lower Crime
MINISTRY OF JUSTICE,LEGAL AID AGENCY,30/08/17,Lower Crime,LEGAL AID FUND,LAWTONS SOLICITORS LTD,1283552:147886287,25000,Legal Aid Payment Lower Crime
MINISTRY OF JUSTICE,LEGAL AID AGENCY,30/08/17,Lower Crime,LEGAL AID FUND,LAWTONS SOLICITORS LTD,1286480:147886513,65200,Legal Aid Payment Lower Crime
MINISTRY OF JUSTICE,LEGAL AID AGENCY,30/08/17,Higher Crime,LEGAL AID FUND,LB & CO SOLICITORS,1286692:147904715,33896.42,Legal Aid Payment Higher Crime
MINISTRY OF JUSTICE,LEGAL AID AGENCY,02/08/17,Higher Crime,LEGAL AID FUND,LEE N KARUNAIRETNAM,1268528:147677261,33705.28,Legal Aid Payment Higher Crime
MINISTRY OF JUSTICE,LEGAL AID AGENCY,02/08/17,Legal Help,LEGAL AID FUND,LEGAL JUSTICE SOLICITORS,1267358:147684774,59201,Legal Aid Payment Legal Help
MINISTRY OF JUSTICE,LEGAL AID AGENCY,30/08/17,Legal Help,LEGAL AID FUND,LEGAL JUSTICE SOLICITORS,1284187:147884804,32010,Legal Aid Payment Legal Help
MINISTRY OF JUSTICE,LEGAL AID AGENCY,09/08/17,Civil Representation,LEGAL AID FUND,LEGAL SERVICES FOR CHILDREN,1271342:3000001828010007,26273.12,Legal Aid Payment Civil Representation
MINISTRY OF JUSTICE,LEGAL AID AGENCY,02/08/17,Legal Help,LEGAL AID FUND,LEI DAT BAIG SOLICITORS LIMITED,1268512:147684725,25466,Legal Aid Payment Legal Help
MINISTRY OF JUSTICE,LEGAL AID AGENCY,30/08/17,Legal Help,LEGAL AID FUND,LEI DAT BAIG SOLICITORS LIMITED,1286292:147884803,31602,Legal Aid Payment Legal Help
MINISTRY OF JUSTICE,LEGAL AID AGENCY,16/08/17,Civil Representation,LEGAL AID FUND,LEON STRINGER,1275476:3000001408390046,25755.76,Legal Aid Payment Civil Representation
MINISTRY OF JUSTICE,LEGAL AID AGENCY,02/08/17,Lower Crime,LEGAL AID FUND,LESLIE FRANKS SOLICITORS,1266054:147686435,98575,Legal Aid Payment Lower Crime
MINISTRY OF JUSTICE,LEGAL AID AGENCY,30/08/17,Lower Crime,LEGAL AID FUND,LESLIE FRANKS SOLICITORS,1286723:147886527,107153,Legal Aid Payment Lower Crime
MINISTRY OF JUSTICE,LEGAL AID AGENCY,02/08/17,Legal Help,LEGAL AID FUND,LEVY & CO SOLICITORS LLP,1268701:147684730,26752,Legal Aid Payment Legal Help
MINISTRY OF JUSTICE,LEGAL AID AGENCY,02/08/17,Lower Crime,LEGAL AID FUND,LEVY & CO SOLICITORS LLP,1268701:147686410,56300,Legal Aid Payment Lower Crime
MINISTRY OF JUSTICE,LEGAL AID AGENCY,30/08/17,Lower Crime,LEGAL AID FUND,LEVY & CO SOLICITORS LLP,1286657:147886501,56300,Legal Aid Payment Lower Crime
MINISTRY OF JUSTICE,LEGAL AID AGENCY,23/08/17,Higher Crime,LEGAL AID FUND,LEWIS K PERRY,1282137:147825049,26734.29,Legal Aid Payment Higher Crime
MINISTRY OF JUSTICE,LEGAL AID AGENCY,02/08/17,Lower Crime,LEGAL AID FUND,LEWIS NEDAS LAW LTD,1269586:147686266,30700,Legal Aid Payment Lower Crime
MINISTRY OF JUSTICE,LEGAL AID AGENCY,30/08/17,Lower Crime,LEGAL AID FUND,LEWIS NEDAS LAW LTD,1288136:147886364,30700,Legal Aid Payment Lower Crime
MINISTRY OF JUSTICE,LEGAL AID AGENCY,02/08/17,Lower Crime,LEGAL AID FUND,LHD SOLICITORS LTD,1268761:147686254,30000,Legal Aid Payment Lower Crime
MINISTRY OF JUSTICE,LEGAL AID AGENCY,30/08/17,Lower Crime,LEGAL AID FUND,LHD SOLICITORS LTD,1286719:147886354,30000,Legal Aid Payment Lower Crime
MINISTRY OF JUSTICE,LEGAL AID AGENCY,02/08/17,Higher Crime,LEGAL AID FUND,LIAM D WALKER,1265210:147677228,41832.2,Legal Aid Payment Higher Crime
MINISTRY OF JUSTICE,LEGAL AID AGENCY,30/08/17,Higher Crime,LEGAL AID FUND,LIBERTY LAW SOLICITORS LTD,1286618:147904737,66309.61,Legal Aid Payment Higher Crime
MINISTRY OF JUSTICE,LEGAL AID AGENCY,09/08/17,Civil Representation,LEGAL AID FUND,LINDSAY E ADAMS,1270957:147759844,30607.2,Legal Aid Payment Civil Representation
MINISTRY OF JUSTICE,LEGAL AID AGENCY,09/08/17,Civil Representation,LEGAL AID FUND,LINDSAY E ADAMS,1270957:147759851,-28480.89,Legal Aid Payment Civil Representation
MINISTRY OF JUSTICE,LEGAL AID AGENCY,09/08/17,Civil Representation,LEGAL AID FUND,LISA BARRACLOUGH,1270582:147767781,33806.16,Legal Aid Payment Civil Representation
MINISTRY OF JUSTICE,LEGAL AID AGENCY,02/08/17,Legal Help,LEGAL AID FUND,LISA MARIE MCNULTY SOLICITOR,1266331:147684747,33741,Legal Aid Payment Legal Help
MINISTRY OF JUSTICE,LEGAL AID AGENCY,30/08/17,Legal Help,LEGAL AID FUND,LISA MARIE MCNULTY SOLICITOR,1287197:147884797,28282,Legal Aid Payment Legal Help
MINISTRY OF JUSTICE,LEGAL AID AGENCY,30/08/17,Lower Crime,LEGAL AID FUND,LISTER BRADY CRIMINAL DEFENCE SOLICITORS,1286716:147886307,26206,Legal Aid Payment Lower Crime
MINISTRY OF JUSTICE,LEGAL AID AGENCY,02/08/17,Lower Crime,LEGAL AID FUND,LLM SOLICITORS (LONDON) LTD,1268607:147686361,42479,Legal Aid Payment Lower Crime
MINISTRY OF JUSTICE,LEGAL AID AGENCY,30/08/17,Lower Crime,LEGAL AID FUND,LLM SOLICITORS (LONDON) LTD,1286476:147886473,46795,Legal Aid Payment Lower Crime
MINISTRY OF JUSTICE,LEGAL AID AGENCY,02/08/17,Lower Crime,LEGAL AID FUND,LLOYD & ROWE LLP,1269504:147686365,43000,Legal Aid Payment Lower Crime
MINISTRY OF JUSTICE,LEGAL AID AGENCY,30/08/17,Lower Crime,LEGAL AID FUND,LLOYD & ROWE LLP,1288151:147886453,43000,Legal Aid Payment Lower Crime
MINISTRY OF JUSTICE,LEGAL AID AGENCY,30/08/17,Lower Crime,LEGAL AID FUND,LLOYDS PR SOLICITORS,1286523:147886468,46010,Legal Aid Payment Lower Crime
MINISTRY OF JUSTICE,LEGAL AID AGENCY,30/08/17,Higher Crime,LEGAL AID FUND,LLOYDS PR SOLICITORS,1286523:147887375,43720.96,Legal Aid Payment Higher Crime
MINISTRY OF JUSTICE,LEGAL AID AGENCY,30/08/17,Higher Crime,LEGAL AID FUND,LLOYDS PR SOLICITORS,1286523:147887407,94985.09,Legal Aid Payment Higher Crime
MINISTRY OF JUSTICE,LEGAL AID AGENCY,16/08/17,Higher Crime,LEGAL AID FUND,LOUISE J SWEET,1277170:147817104,28006,Legal Aid Payment Higher Crime
MINISTRY OF JUSTICE,LEGAL AID AGENCY,02/08/17,Higher Crime,LEGAL AID FUND,LOVELL CHOHAN SOLICITORS LTD,1266659:147698369,54042.64,Legal Aid Payment Higher Crime
MINISTRY OF JUSTICE,LEGAL AID AGENCY,02/08/17,Civil Representation,LEGAL AID FUND,LUCY HENDRY,1264844:147547532,26360.4,Legal Aid Payment Civil Representation
MINISTRY OF JUSTICE,LEGAL AID AGENCY,02/08/17,Lower Crime,LEGAL AID FUND,LUMB & MACGILL,1268830:147686310,35000,Legal Aid Payment Lower Crime
MINISTRY OF JUSTICE,LEGAL AID AGENCY,30/08/17,Lower Crime,LEGAL AID FUND,LUMB & MACGILL,1286873:147886407,35000,Legal Aid Payment Lower Crime
MINISTRY OF JUSTICE,LEGAL AID AGENCY,02/08/17,Legal Help,LEGAL AID FUND,LUPINS,1268967:147673578,119773,Legal Aid Payment Legal Help
MINISTRY OF JUSTICE,LEGAL AID AGENCY,30/08/17,Legal Help,LEGAL AID FUND,LUPINS,1287093:147884844,98942,Legal Aid Payment Legal Help
MINISTRY OF JUSTICE,LEGAL AID AGENCY,02/08/17,Legal Help,LEGAL AID FUND,LUQMANI THOMPSON & PARTNERS,1268996:147684751,35050,Legal Aid Payment Legal Help
MINISTRY OF JUSTICE,LEGAL AID AGENCY,02/08/17,Legal Help,LEGAL AID FUND,M H LEGAL,1266109:147684771,54022,Legal Aid Payment Legal Help
MINISTRY OF JUSTICE,LEGAL AID AGENCY,30/08/17,Legal Help,LEGAL AID FUND,M H LEGAL,1286806:147884808,33746,Legal Aid Payment Legal Help
MINISTRY OF JUSTICE,LEGAL AID AGENCY,02/08/17,Lower Crime,LEGAL AID FUND,M K LAW SOLICITORS LTD,1268559:147686432,86000,Legal Aid Payment Lower Crime
MINISTRY OF JUSTICE,LEGAL AID AGENCY,30/08/17,Lower Crime,LEGAL AID FUND,M K LAW SOLICITORS LTD,1286334:147886523,86000,Legal Aid Payment Lower Crime
MINISTRY OF JUSTICE,LEGAL AID AGENCY,23/08/17,Higher Crime,LEGAL AID FUND,MACAULEY SMITH  LTD,1280636:147833689,65127.04,Legal Aid Payment Higher Crime
MINISTRY OF JUSTICE,LEGAL AID AGENCY,23/08/17,Civil Representation,LEGAL AID FUND,MACKINTOSH LAW,1280513:147829363,25641.16,Legal Aid Payment Civil Representation
MINISTRY OF JUSTICE,LEGAL AID AGENCY,09/08/17,Higher Crime,LEGAL AID FUND,MAIDMENTS LTD,1271829:147746198,49297.78,Legal Aid Payment Higher Crime
MINISTRY OF JUSTICE,LEGAL AID AGENCY,09/08/17,Civil Representation,LEGAL AID FUND,MAKIN DIXON SOLICITORS LTD,1271352:3000002089980019,29241.37,Legal Aid Payment Civil Representation
MINISTRY OF JUSTICE,LEGAL AID AGENCY,02/08/17,Civil Representation,LEGAL AID FUND,MALCOLM MACDONALD,1267691:147710286,25898.4,Legal Aid Payment Civil Representation
MINISTRY OF JUSTICE,LEGAL AID AGENCY,09/08/17,Higher Crime,LEGAL AID FUND,MANN & CO SOLICITORS,1273561:147762872,74979.26,Legal Aid Payment Higher Crime
MINISTRY OF JUSTICE,LEGAL AID AGENCY,16/08/17,Higher Crime,LEGAL AID FUND,MANN & CO SOLICITORS,1278010:147779482,39877.93,Legal Aid Payment Higher Crime
MINISTRY OF JUSTICE,LEGAL AID AGENCY,30/08/17,Higher Crime,LEGAL AID FUND,MANN & CO SOLICITORS,1287102:147888109,29664.55,Legal Aid Payment Higher Crime
MINISTRY OF JUSTICE,LEGAL AID AGENCY,16/08/17,Higher Crime,LEGAL AID FUND,MARK A RHIND,1274907:147821485,29302.5,Legal Aid Payment Higher Crime
MINISTRY OF JUSTICE,LEGAL AID AGENCY,02/08/17,Higher Crime,LEGAL AID FUND,MARK ANDREWS & CO,1266744:147687261,36907.82,Legal Aid Payment Higher Crime
MINISTRY OF JUSTICE,LEGAL AID AGENCY,02/08/17,Higher Crime,LEGAL AID FUND,MARK C WYETH QC,1265511:147669461,36239.9,Legal Aid Payment Higher Crime
MINISTRY OF JUSTICE,LEGAL AID AGENCY,23/08/17,Civil Representation,LEGAL AID FUND,MARK E CALWAY,1279754:147822785,-30228.37,Legal Aid Payment Civil Representation
MINISTRY OF JUSTICE,LEGAL AID AGENCY,09/08/17,Civil Representation,LEGAL AID FUND,MARK STEWARD,1270737:3000002164890006,26222.4,Legal Aid Payment Civil Representation
MINISTRY OF JUSTICE,LEGAL AID AGENCY,16/08/17,Civil Representation,LEGAL AID FUND,MARTIN KENNY,1277476:3000001196620015,25606.8,Legal Aid Payment Civil Representation
MINISTRY OF JUSTICE,LEGAL AID AGENCY,02/08/17,Lower Crime,LEGAL AID FUND,MARTIN MURRAY & ASSOCIATES,1269625:147686288,32803,Legal Aid Payment Lower Crime
MINISTRY OF JUSTICE,LEGAL AID AGENCY,02/08/17,Lower Crime,LEGAL AID FUND,MARTIN MURRAY & ASSOCIATES,1269626:147686420,66715,Legal Aid Payment Lower Crime
MINISTRY OF JUSTICE,LEGAL AID AGENCY,30/08/17,Lower Crime,LEGAL AID FUND,MARTIN MURRAY & ASSOCIATES,1288308:147886353,29783,Legal Aid Payment Lower Crime
MINISTRY OF JUSTICE,LEGAL AID AGENCY,30/08/17,Lower Crime,LEGAL AID FUND,MARTIN MURRAY & ASSOCIATES,1288309:147886511,63855,Legal Aid Payment Lower Crime
MINISTRY OF JUSTICE,LEGAL AID AGENCY,23/08/17,Higher Crime,LEGAL AID FUND,MARTIN RUTHERFORD QC,1282042:147847954,35014.2,Legal Aid Payment Higher Crime
MINISTRY OF JUSTICE,LEGAL AID AGENCY,09/08/17,Higher Crime,LEGAL AID FUND,MARTIN T LIDDIARD,1272310:147763769,27469.8,Legal Aid Payment Higher Crime
MINISTRY OF JUSTICE,LEGAL AID AGENCY,02/08/17,Lower Crime,LEGAL AID FUND,MARTYN HEWETT,1269638:147686188,25000,Legal Aid Payment Lower Crime
MINISTRY OF JUSTICE,LEGAL AID AGENCY,30/08/17,Lower Crime,LEGAL AID FUND,MARTYN HEWETT,1288323:147886283,25000,Legal Aid Payment Lower Crime
MINISTRY OF JUSTICE,LEGAL AID AGENCY,02/08/17,Higher Crime,LEGAL AID FUND,MARTYN PROWEL LTD,1269459:147676675,34552,Legal Aid Payment Higher Crime
MINISTRY OF JUSTICE,LEGAL AID AGENCY,09/08/17,Higher Crime,LEGAL AID FUND,MARY MONSON SOLICITORS,1273353:147763809,37664.66,Legal Aid Payment Higher Crime
MINISTRY OF JUSTICE,LEGAL AID AGENCY,30/08/17,Higher Crime,LEGAL AID FUND,MARY MONSON SOLICITORS,1287200:147863977,57475.68,Legal Aid Payment Higher Crime
MINISTRY OF JUSTICE,LEGAL AID AGENCY,09/08/17,Higher Crime,LEGAL AID FUND,MATTHEW E RADSTONE,1270258:147763362,27322.68,Legal Aid Payment Higher Crime
MINISTRY OF JUSTICE,LEGAL AID AGENCY,23/08/17,Civil Representation,LEGAL AID FUND,MATWALA VYAS LLP,1280554:3000001576500004,30000,Legal Aid Payment Civil Representation
MINISTRY OF JUSTICE,LEGAL AID AGENCY,30/08/17,Higher Crime,LEGAL AID FUND,MBC SOLICITORS LTD,1286471:147886692,74979.26,Legal Aid Payment Higher Crime
MINISTRY OF JUSTICE,LEGAL AID AGENCY,09/08/17,Civil Representation,LEGAL AID FUND,MCCOOL PATTERSON HEMSI & CO,250596:147743152,34462.53,Legal Aid Payment Civil Representation
MINISTRY OF JUSTICE,LEGAL AID AGENCY,23/08/17,Higher Crime,LEGAL AID FUND,MCCORMACKS LAW,1280600:147856119,28593.21,Legal Aid Payment Higher Crime
MINISTRY OF JUSTICE,LEGAL AID AGENCY,02/08/17,Lower Crime,LEGAL AID FUND,MCGRATH & CO SOLICITORS,1266139:147686259,30000,Legal Aid Payment Lower Crime
MINISTRY OF JUSTICE,LEGAL AID AGENCY,30/08/17,Lower Crime,LEGAL AID FUND,MCGRATH & CO SOLICITORS,1286930:147886358,30000,Legal Aid Payment Lower Crime
MINISTRY OF JUSTICE,LEGAL AID AGENCY,02/08/17,Lower Crime,LEGAL AID FUND,MCLARTYS SOLICITORS,1266028:147686185,25000,Legal Aid Payment Lower Crime
MINISTRY OF JUSTICE,LEGAL AID AGENCY,30/08/17,Lower Crime,LEGAL AID FUND,MCLARTYS SOLICITORS,1286639:147886280,25000,Legal Aid Payment Lower Crime
MINISTRY OF JUSTICE,LEGAL AID AGENCY,02/08/17,Lower Crime,LEGAL AID FUND,MCMILLAN WILLIAMS SOLICITORS LTD,1269421:147686416,62200,Legal Aid Payment Lower Crime
MINISTRY OF JUSTICE,LEGAL AID AGENCY,30/08/17,Lower Crime,LEGAL AID FUND,MCMILLAN WILLIAMS SOLICITORS LTD,1283630:147886349,29297,Legal Aid Payment Lower Crime
MINISTRY OF JUSTICE,LEGAL AID AGENCY,30/08/17,Lower Crime,LEGAL AID FUND,MCMILLAN WILLIAMS SOLICITORS LTD,1288074:147886388,32900,Legal Aid Payment Lower Crime
MINISTRY OF JUSTICE,LEGAL AID AGENCY,09/08/17,Higher Crime,LEGAL AID FUND,MCQUEENS SOLICITORS,1271278:147763776,89645.06,Legal Aid Payment Higher Crime
MINISTRY OF JUSTICE,LEGAL AID AGENCY,02/08/17,Lower Crime,LEGAL AID FUND,MCSORLEY LEWIS LAW LTD,1266808:147686215,26616,Legal Aid Payment Lower Crime
MINISTRY OF JUSTICE,LEGAL AID AGENCY,30/08/17,Lower Crime,LEGAL AID FUND,MCSORLEY LEWIS LAW LTD,1288110:147886313,26489,Legal Aid Payment Lower Crime
MINISTRY OF JUSTICE,LEGAL AID AGENCY,02/08/17,Civil Representation,LEGAL AID FUND,MEDIATION NOW,1268712:147686575,32104,Legal Aid Payment Civil Representation
MINISTRY OF JUSTICE,LEGAL AID AGENCY,02/08/17,Lower Crime,LEGAL AID FUND,MESSRS WATERFORDS SOLICITORS,1269462:147686202,25625,Legal Aid Payment Lower Crime
MINISTRY OF JUSTICE,LEGAL AID AGENCY,16/08/17,Higher Crime,LEGAL AID FUND,MESSRS WATERFORDS SOLICITORS,1276278:147771254,34222.26,Legal Aid Payment Higher Crime
MINISTRY OF JUSTICE,LEGAL AID AGENCY,30/08/17,Lower Crime,LEGAL AID FUND,MESSRS WATERFORDS SOLICITORS,1288017:147886427,38376,Legal Aid Payment Lower Crime
MINISTRY OF JUSTICE,LEGAL AID AGENCY,21/08/17,Civil Representation,LEGAL AID FUND,METAMORPH LAW LTD,1278771:2000000000004440,33597.73,Legal Aid Payment Civil Representation
MINISTRY OF JUSTICE,LEGAL AID AGENCY,02/08/17,Lower Crime,LEGAL AID FUND,METCALFE COPEMAN & PETTEFAR,1269131:147686343,38700,Legal Aid Payment Lower Crime
MINISTRY OF JUSTICE,LEGAL AID AGENCY,30/08/17,Lower Crime,LEGAL AID FUND,METCALFE COPEMAN & PETTEFAR,1287432:147886429,38700,Legal Aid Payment Lower Crime
MINISTRY OF JUSTICE,LEGAL AID AGENCY,02/08/17,Higher Crime,LEGAL AID FUND,METRO LAW SOLICITORS LTD,1267232:147677325,74979.26,Legal Aid Payment Higher Crime
MINISTRY OF JUSTICE,LEGAL AID AGENCY,02/08/17,Lower Crime,LEGAL AID FUND,MICHAEL CARROLL & CO,1268943:147686326,36000,Legal Aid Payment Lower Crime
MINISTRY OF JUSTICE,LEGAL AID AGENCY,30/08/17,Lower Crime,LEGAL AID FUND,MICHAEL CARROLL & CO,1287070:147886418,36000,Legal Aid Payment Lower Crime
MINISTRY OF JUSTICE,LEGAL AID AGENCY,09/08/17,Higher Crime,LEGAL AID FUND,MICHAEL HENDERSON & CO LTD,1271546:147746906,49924.14,Legal Aid Payment Higher Crime
MINISTRY OF JUSTICE,LEGAL AID AGENCY,23/08/17,Higher Crime,LEGAL AID FUND,MICHAEL J POLAK,1279040:147833222,25233.1,Legal Aid Payment Higher Crime
MINISTRY OF JUSTICE,LEGAL AID AGENCY,23/08/17,Higher Crime,LEGAL AID FUND,MICHAEL P GOLDWATER,1282341:147825331,41673.2,Legal Aid Payment Higher Crime
MINISTRY OF JUSTICE,LEGAL AID AGENCY,02/08/17,Lower Crime,LEGAL AID FUND,MICHAEL PURDON,1266593:147686356,41337,Legal Aid Payment Lower Crime
MINISTRY OF JUSTICE,LEGAL AID AGENCY,30/08/17,Lower Crime,LEGAL AID FUND,MICHAEL PURDON,1287723:147886397,33444,Legal Aid Payment Lower Crime
MINISTRY OF JUSTICE,LEGAL AID AGENCY,30/08/17,Legal Help,LEGAL AID FUND,MIGRANT LEGAL PROJECT,1284578:147718445,27937,Legal Aid Payment Legal Help
MINISTRY OF JUSTICE,LEGAL AID AGENCY,03/08/17,Civil Representation,LEGAL AID FUND,MINTONS,1269857:2000000000004314,59789.66,Legal Aid Payment Civil Representation
MINISTRY OF JUSTICE,LEGAL AID AGENCY,30/08/17,Higher Crime,LEGAL AID FUND,MITCHELLS SOLICITORS LLP,1286626:147904805,48285.56,Legal Aid Payment Higher Crime
MINISTRY OF JUSTICE,LEGAL AID AGENCY,02/08/17,Legal Help,LEGAL AID FUND,MONTAGUE SOLICITORS LTD,1268628:147684728,26464,Legal Aid Payment Legal Help
MINISTRY OF JUSTICE,LEGAL AID AGENCY,30/08/17,Lower Crime,LEGAL AID FUND,MORGAN CULLEN & BALL LTD,1284701:147886296,25693,Legal Aid Payment Lower Crime
MINISTRY OF JUSTICE,LEGAL AID AGENCY,16/08/17,Higher Crime,LEGAL AID FUND,MORGANS,1278564:147779125,37661.53,Legal Aid Payment Higher Crime
MINISTRY OF JUSTICE,LEGAL AID AGENCY,02/08/17,Lower Crime,LEGAL AID FUND,MORRISON SPOWART LTD,1268926:147686363,42879,Legal Aid Payment Lower Crime
MINISTRY OF JUSTICE,LEGAL AID AGENCY,30/08/17,Lower Crime,LEGAL AID FUND,MORTONS SOLICITORS LTD,1287987:147886373,31446,Legal Aid Payment Lower Crime
MINISTRY OF JUSTICE,LEGAL AID AGENCY,30/08/17,Higher Crime,LEGAL AID FUND,MOSS LAW LTD T/A MOSSHASELHURST SOLICITORS,1287101:147904718,32289.7,Legal Aid Payment Higher Crime
MINISTRY OF JUSTICE,LEGAL AID AGENCY,02/08/17,Lower Crime,LEGAL AID FUND,MPR SOLICITORS LLP,1266391:147686400,51500,Legal Aid Payment Lower Crime
MINISTRY OF JUSTICE,LEGAL AID AGENCY,09/08/17,Higher Crime,LEGAL AID FUND,MPR SOLICITORS LLP,1273703:147722942,25764.46,Legal Aid Payment Higher Crime
MINISTRY OF JUSTICE,LEGAL AID AGENCY,09/08/17,Higher Crime,LEGAL AID FUND,MPR SOLICITORS LLP,1273703:147746298,64281.58,Legal Aid Payment Higher Crime
MINISTRY OF JUSTICE,LEGAL AID AGENCY,09/08/17,Higher Crime,LEGAL AID FUND,MPR SOLICITORS LLP,1273703:147762895,38908.17,Legal Aid Payment Higher Crime
MINISTRY OF JUSTICE,LEGAL AID AGENCY,23/08/17,Higher Crime,LEGAL AID FUND,MPR SOLICITORS LLP,1282709:147856518,43920.11,Legal Aid Payment Higher Crime
MINISTRY OF JUSTICE,LEGAL AID AGENCY,02/08/17,Higher Crime,LEGAL AID FUND,MTG SOLICITORS,1268876:147669719,89645.06,Legal Aid Payment Higher Crime
MINISTRY OF JUSTICE,LEGAL AID AGENCY,02/08/17,Higher Crime,LEGAL AID FUND,MURRAY BRANKIN,1267606:147714159,36406.95,Legal Aid Payment Higher Crime
MINISTRY OF JUSTICE,LEGAL AID AGENCY,30/08/17,Higher Crime,LEGAL AID FUND,MURRAYS SOLICITORS LTD,1286707:147870968,37489.63,Legal Aid Payment Higher Crime
MINISTRY OF JUSTICE,LEGAL AID AGENCY,30/08/17,Lower Crime,LEGAL AID FUND,MURRAYS SOLICITORS LTD,1286707:147886454,43161,Legal Aid Payment Lower Crime
MINISTRY OF JUSTICE,LEGAL AID AGENCY,16/08/17,Higher Crime,LEGAL AID FUND,MURRIA SOLICITORS LTD,1277921:147793749,54952.68,Legal Aid Payment Higher Crime
MINISTRY OF JUSTICE,LEGAL AID AGENCY,23/08/17,Higher Crime,LEGAL AID FUND,N P SOLICITORS,1280227:147832951,73881.6,Legal Aid Payment Higher Crime
MINISTRY OF JUSTICE,LEGAL AID AGENCY,02/08/17,Higher Crime,LEGAL AID FUND,NAVJOT SIDHU,1265792:147687545,55614.68,Legal Aid Payment Higher Crime
MINISTRY OF JUSTICE,LEGAL AID AGENCY,02/08/17,Lower Crime,LEGAL AID FUND,NEEDHAM POULIER LTD,1268994:147686277,31486,Legal Aid Payment Lower Crime
MINISTRY OF JUSTICE,LEGAL AID AGENCY,16/08/17,Higher Crime,LEGAL AID FUND,NEEDHAM POULIER LTD,1275867:147771468,30193.38,Legal Aid Payment Higher Crime
MINISTRY OF JUSTICE,LEGAL AID AGENCY,30/08/17,Lower Crime,LEGAL AID FUND,NEEDHAM POULIER LTD,1287121:147886420,36905,Legal Aid Payment Lower Crime
MINISTRY OF JUSTICE,LEGAL AID AGENCY,02/08/17,Lower Crime,LEGAL AID FUND,NELSON GUEST & PARTNERS,1269634:147686382,45148,Legal Aid Payment Lower Crime
MINISTRY OF JUSTICE,LEGAL AID AGENCY,30/08/17,Lower Crime,LEGAL AID FUND,NELSON GUEST & PARTNERS,1288316:147886451,42566,Legal Aid Payment Lower Crime
MINISTRY OF JUSTICE,LEGAL AID AGENCY,16/08/17,Lower Crime,LEGAL AID FUND,NEUMANS LLP,1275771:147634788,-26599.71,Legal Aid Payment Lower Crime
MINISTRY OF JUSTICE,LEGAL AID AGENCY,02/08/17,Lower Crime,LEGAL AID FUND,NEWGATE SOLICITORS,1268554:147686201,25487,Legal Aid Payment Lower Crime
MINISTRY OF JUSTICE,LEGAL AID AGENCY,23/08/17,Higher Crime,LEGAL AID FUND,NEWGATE SOLICITORS-ADVOCATE,1279355:147841153,33748.2,Legal Aid Payment Higher Crime
MINISTRY OF JUSTICE,LEGAL AID AGENCY,23/08/17,Higher Crime,LEGAL AID FUND,NEWTON LAW PRACTICE,1280319:147833183,25433.16,Legal Aid Payment Higher Crime
MINISTRY OF JUSTICE,LEGAL AID AGENCY,30/08/17,Civil Representation,LEGAL AID FUND,NICHOLAS R JACK,1285832:147873493,50919.73,Legal Aid Payment Civil Representation
MINISTRY OF JUSTICE,LEGAL AID AGENCY,02/08/17,Civil Representation,LEGAL AID FUND,NICHOLAS W STONOR,1268523:3000001855210015,61884,Legal Aid Payment Civil Representation
MINISTRY OF JUSTICE,LEGAL AID AGENCY,02/08/17,Lower Crime,LEGAL AID FUND,NIGEL WELLER & CO,1269143:147718140,32241.08,Legal Aid Payment Lower Crime
MINISTRY OF JUSTICE,LEGAL AID AGENCY,09/08/17,Civil Representation,LEGAL AID FUND,NKUMBE EKANEY QC,1273001:3000001306170017,25693.2,Legal Aid Payment Civil Representation
MINISTRY OF JUSTICE,LEGAL AID AGENCY,02/08/17,Lower Crime,LEGAL AID FUND,NOBLE SOLICITORS,1268561:147686299,33653,Legal Aid Payment Lower Crime
MINISTRY OF JUSTICE,LEGAL AID AGENCY,02/08/17,Legal Help,LEGAL AID FUND,NOBLE SOLICITORS,1269032:147684764,43424,Legal Aid Payment Legal Help
MINISTRY OF JUSTICE,LEGAL AID AGENCY,02/08/17,Higher Crime,LEGAL AID FUND,NOBLE SOLICITORS,1269032:147698095,38578.27,Legal Aid Payment Higher Crime
MINISTRY OF JUSTICE,LEGAL AID AGENCY,09/08/17,Higher Crime,LEGAL AID FUND,NOBLE SOLICITORS,1271552:147763896,50652.14,Legal Aid Payment Higher Crime
MINISTRY OF JUSTICE,LEGAL AID AGENCY,23/08/17,Higher Crime,LEGAL AID FUND,NOBLE SOLICITORS,1280541:147840075,26969.7,Legal Aid Payment Higher Crime
MINISTRY OF JUSTICE,LEGAL AID AGENCY,30/08/17,Lower Crime,LEGAL AID FUND,NOBLE SOLICITORS,1283737:147886330,27870,Legal Aid Payment Lower Crime
MINISTRY OF JUSTICE,LEGAL AID AGENCY,30/08/17,Lower Crime,LEGAL AID FUND,NOBLE SOLICITORS,1286336:147886337,28140,Legal Aid Payment Lower Crime
MINISTRY OF JUSTICE,LEGAL AID AGENCY,30/08/17,Lower Crime,LEGAL AID FUND,NOBLE SOLICITORS,1287250:147886334,28012,Legal Aid Payment Lower Crime
MINISTRY OF JUSTICE,LEGAL AID AGENCY,02/08/17,Lower Crime,LEGAL AID FUND,NORRIE WAITE & SLATER,1266472:147686340,38000,Legal Aid Payment Lower Crime
MINISTRY OF JUSTICE,LEGAL AID AGENCY,16/08/17,Higher Crime,LEGAL AID FUND,NORRIE WAITE & SLATER,1276042:147786449,38868.78,Legal Aid Payment Higher Crime
MINISTRY OF JUSTICE,LEGAL AID AGENCY,30/08/17,Lower Crime,LEGAL AID FUND,NORRIE WAITE & SLATER,1287525:147886426,38000,Legal Aid Payment Lower Crime
MINISTRY OF JUSTICE,LEGAL AID AGENCY,02/08/17,Lower Crime,LEGAL AID FUND,NUMBER ONE LAW LLP,1265953:147686276,31483,Legal Aid Payment Lower Crime
MINISTRY OF JUSTICE,LEGAL AID AGENCY,30/08/17,Lower Crime,LEGAL AID FUND,NUMBER ONE LAW LLP,1286572:147886424,37340,Legal Aid Payment Lower Crime
MINISTRY OF JUSTICE,LEGAL AID AGENCY,02/08/17,Higher Crime,LEGAL AID FUND,NUNN RICKARD LITIGATION LTD,1266202:147687425,38149.89,Legal Aid Payment Higher Crime
MINISTRY OF JUSTICE,LEGAL AID AGENCY,02/08/17,Lower Crime,LEGAL AID FUND,OBW PERERA LTD,1266125:147686246,29000,Legal Aid Payment Lower Crime
MINISTRY OF JUSTICE,LEGAL AID AGENCY,30/08/17,Lower Crime,LEGAL AID FUND,OBW PERERA LTD,1286822:147886343,29000,Legal Aid Payment Lower Crime
MINISTRY OF JUSTICE,LEGAL AID AGENCY,30/08/17,Higher Crime,LEGAL AID FUND,OBW PERERA LTD,1286822:147886832,89645.06,Legal Aid Payment Higher Crime
MINISTRY OF JUSTICE,LEGAL AID AGENCY,30/08/17,Higher Crime,LEGAL AID FUND,O'KEEFFE SOLICITORS,1288295:147878389,26359.9,Legal Aid Payment Higher Crime
MINISTRY OF JUSTICE,LEGAL AID AGENCY,02/08/17,Lower Crime,LEGAL AID FUND,OLD BAILEY SOLICITORS LTD,1268585:147686339,37911,Legal Aid Payment Lower Crime
MINISTRY OF JUSTICE,LEGAL AID AGENCY,30/08/17,Lower Crime,LEGAL AID FUND,OLD BAILEY SOLICITORS LTD,1286359:147886405,34565,Legal Aid Payment Lower Crime
MINISTRY OF JUSTICE,LEGAL AID AGENCY,02/08/17,Lower Crime,LEGAL AID FUND,OLIVER D'SA SOLICITORS,1266721:147686374,44129,Legal Aid Payment Lower Crime
MINISTRY OF JUSTICE,LEGAL AID AGENCY,02/08/17,Higher Crime,LEGAL AID FUND,OLLIERS SOLICITORS LTD,1268990:147630324,-31080.67,Legal Aid Payment Higher Crime
MINISTRY OF JUSTICE,LEGAL AID AGENCY,02/08/17,Lower Crime,LEGAL AID FUND,OLLIERS SOLICITORS LTD,1268990:147686376,44297,Legal Aid Payment Lower Crime
MINISTRY OF JUSTICE,LEGAL AID AGENCY,30/08/17,Lower Crime,LEGAL AID FUND,OLLIERS SOLICITORS LTD,1287210:147886443,41133,Legal Aid Payment Lower Crime
MINISTRY OF JUSTICE,LEGAL AID AGENCY,02/08/17,Lower Crime,LEGAL AID FUND,ONE LEGAL SERVICES LTD,1267111:147686367,43347,Legal Aid Payment Lower Crime
MINISTRY OF JUSTICE,LEGAL AID AGENCY,02/08/17,Lower Crime,LEGAL AID FUND,ONE LEGAL SERVICES LTD,1267112:147686392,49150,Legal Aid Payment Lower Crime
MINISTRY OF JUSTICE,LEGAL AID AGENCY,30/08/17,Lower Crime,LEGAL AID FUND,ONE LEGAL SERVICES LTD,1283606:147886488,50444,Legal Aid Payment Lower Crime
MINISTRY OF JUSTICE,LEGAL AID AGENCY,02/08/17,Lower Crime,LEGAL AID FUND,O'NEILL WRIGHT & NASH,1268589:147686336,37479,Legal Aid Payment Lower Crime
MINISTRY OF JUSTICE,LEGAL AID AGENCY,30/08/17,Lower Crime,LEGAL AID FUND,O'NEILL WRIGHT & NASH,1286363:147886474,46901,Legal Aid Payment Lower Crime
MINISTRY OF JUSTICE,LEGAL AID AGENCY,02/08/17,Lower Crime,LEGAL AID FUND,ONUMA & CO LLP,1264518:147686316,35061,Legal Aid Payment Lower Crime
MINISTRY OF JUSTICE,LEGAL AID AGENCY,30/08/17,Lower Crime,LEGAL AID FUND,ONUMA & CO LLP,1283919:147886419,36209,Legal Aid Payment Lower Crime
MINISTRY OF JUSTICE,LEGAL AID AGENCY,02/08/17,Lower Crime,LEGAL AID FUND,ORACLE SOLICITORS & CONSULTANTS LTD,1268933:147686401,52036,Legal Aid Payment Lower Crime
MINISTRY OF JUSTICE,LEGAL AID AGENCY,30/08/17,Lower Crime,LEGAL AID FUND,ORACLE SOLICITORS & CONSULTANTS LTD,1287060:147886461,44443,Legal Aid Payment Lower Crime
MINISTRY OF JUSTICE,LEGAL AID AGENCY,02/08/17,Legal Help,LEGAL AID FUND,OSBORNES SOLICITORS LLP,1266868:147684780,69500,Legal Aid Payment Legal Help
MINISTRY OF JUSTICE,LEGAL AID AGENCY,30/08/17,Legal Help,LEGAL AID FUND,OSBORNES SOLICITORS LLP,1288357:147884838,69500,Legal Aid Payment Legal Help
MINISTRY OF JUSTICE,LEGAL AID AGENCY,02/08/17,Lower Crime,LEGAL AID FUND,OSLERS SOLICITORS,1268731:147686272,31207,Legal Aid Payment Lower Crime
MINISTRY OF JUSTICE,LEGAL AID AGENCY,02/08/17,Legal Help,LEGAL AID FUND,OTTEN PENNA LTD,1266324:147684740,29000,Legal Aid Payment Legal Help
MINISTRY OF JUSTICE,LEGAL AID AGENCY,30/08/17,Legal Help,LEGAL AID FUND,OTTEN PENNA LTD,1287189:147884798,29000,Legal Aid Payment Legal Help
MINISTRY OF JUSTICE,LEGAL AID AGENCY,02/08/17,Higher Crime,LEGAL AID FUND,OWEN LAWTON,1266560:147676523,59075.53,Legal Aid Payment Higher Crime
MINISTRY OF JUSTICE,LEGAL AID AGENCY,02/08/17,Lower Crime,LEGAL AID FUND,OWEN NASH & CO,1266835:147686350,40000,Legal Aid Payment Lower Crime
MINISTRY OF JUSTICE,LEGAL AID AGENCY,30/08/17,Lower Crime,LEGAL AID FUND,OWEN NASH & CO,1288043:147886438,40000,Legal Aid Payment Lower Crime
MINISTRY OF JUSTICE,LEGAL AID AGENCY,02/08/17,Legal Help,LEGAL AID FUND,PARAGON LAW LTD,1266108:147684760,40000,Legal Aid Payment Legal Help
MINISTRY OF JUSTICE,LEGAL AID AGENCY,30/08/17,Legal Help,LEGAL AID FUND,PARAGON LAW LTD,1286805:147884819,40000,Legal Aid Payment Legal Help
MINISTRY OF JUSTICE,LEGAL AID AGENCY,02/08/17,Legal Help,LEGAL AID FUND,PARKER RHODES HICKMOTTS,1264749:147684754,35735,Legal Aid Payment Legal Help
MINISTRY OF JUSTICE,LEGAL AID AGENCY,30/08/17,Legal Help,LEGAL AID FUND,PARKER RHODES HICKMOTTS,1284706:147884802,31119,Legal Aid Payment Legal Help
MINISTRY OF JUSTICE,LEGAL AID AGENCY,30/08/17,Higher Crime,LEGAL AID FUND,PARLBYS SOLCITORS,1286918:147870902,28653.27,Legal Aid Payment Higher Crime
MINISTRY OF JUSTICE,LEGAL AID AGENCY,10/08/17,Civil Representation,LEGAL AID FUND,PARLETT KENT,1274257:2000000000004366,46860.4,Legal Aid Payment Civil Representation
MINISTRY OF JUSTICE,LEGAL AID AGENCY,02/08/17,Higher Crime,LEGAL AID FUND,PATRICK W DUFFY,1268161:147677737,36851.3,Legal Aid Payment Higher Crime
MINISTRY OF JUSTICE,LEGAL AID AGENCY,16/08/17,Higher Crime,LEGAL AID FUND,PAUL DODDS SOLICITORS,1278235:147817028,31210.71,Legal Aid Payment Higher Crime
MINISTRY OF JUSTICE,LEGAL AID AGENCY,16/08/17,Civil Representation,LEGAL AID FUND,PAUL DODDS SOLICITORS,1278235:147822284,34174.8,Legal Aid Payment Civil Representation
MINISTRY OF JUSTICE,LEGAL AID AGENCY,02/08/17,Higher Crime,LEGAL AID FUND,PAUL J WATSON SOLICITOR,1266635:147714143,57134.12,Legal Aid Payment Higher Crime
MINISTRY OF JUSTICE,LEGAL AID AGENCY,09/08/17,Higher Crime,LEGAL AID FUND,PAUL M MENDELLE QC,1271185:147731052,53734.79,Legal Aid Payment Higher Crime
MINISTRY OF JUSTICE,LEGAL AID AGENCY,02/08/17,Higher Crime,LEGAL AID FUND,PAUL R KELEHER QC,1265793:147687010,41774.42,Legal Aid Payment Higher Crime
MINISTRY OF JUSTICE,LEGAL AID AGENCY,23/08/17,Higher Crime,LEGAL AID FUND,PAULINE THOMPSON,1279663:147856454,25233.1,Legal Aid Payment Higher Crime
MINISTRY OF JUSTICE,LEGAL AID AGENCY,23/08/17,Higher Crime,LEGAL AID FUND,PEARSON CAULFIELD,1280700:147856083,28639.09,Legal Aid Payment Higher Crime
MINISTRY OF JUSTICE,LEGAL AID AGENCY,09/08/17,Civil Representation,LEGAL AID FUND,PEARSONS,1273708:3000000684700006,31933.68,Legal Aid Payment Civil Representation
MINISTRY OF JUSTICE,LEGAL AID AGENCY,09/08/17,Civil Representation,LEGAL AID FUND,PEARSONS,1273709:147759222,25194.84,Legal Aid Payment Civil Representation
MINISTRY OF JUSTICE,LEGAL AID AGENCY,09/08/17,Civil Representation,LEGAL AID FUND,PEARSONS,1273709:147766684,41466.52,Legal Aid Payment Civil Representation
MINISTRY OF JUSTICE,LEGAL AID AGENCY,09/08/17,Civil Representation,LEGAL AID FUND,PEARSONS,1273709:147766974,-41636.74,Legal Aid Payment Civil Representation
MINISTRY OF JUSTICE,LEGAL AID AGENCY,23/08/17,Civil Representation,LEGAL AID FUND,PEPPERELLS SOLICITORS,1280262:3000002172140007,28814.08,Legal Aid Payment Civil Representation
MINISTRY OF JUSTICE,LEGAL AID AGENCY,02/08/17,Higher Crime,LEGAL AID FUND,PETER A MAKEPEACE,1268387:147697985,35730.4,Legal Aid Payment Higher Crime
MINISTRY OF JUSTICE,LEGAL AID AGENCY,02/08/17,Legal Help,LEGAL AID FUND,PETER EDWARDS LAW LTD,1268947:147684773,59200,Legal Aid Payment Legal Help
MINISTRY OF JUSTICE,LEGAL AID AGENCY,30/08/17,Legal Help,LEGAL AID FUND,PETER EDWARDS LAW LTD,1287073:147884832,59200,Legal Aid Payment Legal Help
MINISTRY OF JUSTICE,LEGAL AID AGENCY,02/08/17,Higher Crime,LEGAL AID FUND,PETER J DOYLE QC,1265777:147669499,37218.9,Legal Aid Payment Higher Crime
MINISTRY OF JUSTICE,LEGAL AID AGENCY,02/08/17,Lower Crime,LEGAL AID FUND,PETHERBRIDGE BASSRA SOLICITORS LTD,1268832:147686242,28573,Legal Aid Payment Lower Crime
MINISTRY OF JUSTICE,LEGAL AID AGENCY,30/08/17,Lower Crime,LEGAL AID FUND,PETHERBRIDGE BASSRA SOLICITORS LTD,1286875:147886352,29451,Legal Aid Payment Lower Crime
MINISTRY OF JUSTICE,LEGAL AID AGENCY,30/08/17,Civil Representation,LEGAL AID FUND,PHILCOX GRAY & CO,1288353:147868237,26556.07,Legal Aid Payment Civil Representation
MINISTRY OF JUSTICE,LEGAL AID AGENCY,09/08/17,Civil Representation,LEGAL AID FUND,PHILIP D RULE,1272980:147727344,25583.11,Legal Aid Payment Civil Representation
MINISTRY OF JUSTICE,LEGAL AID AGENCY,30/08/17,Lower Crime,LEGAL AID FUND,PHILIP HANBY LTD T/A ANDREW JAY & CO,1287514:147886305,26079,Legal Aid Payment Lower Crime
MINISTRY OF JUSTICE,LEGAL AID AGENCY,30/08/17,Higher Crime,LEGAL AID FUND,PIERCE D K POWER,1284531:147864519,33158.6,Legal Aid Payment Higher Crime
MINISTRY OF JUSTICE,LEGAL AID AGENCY,02/08/17,Lower Crime,LEGAL AID FUND,POOLE ALCOCK LLP,1266414:147686263,30414,Legal Aid Payment Lower Crime
MINISTRY OF JUSTICE,LEGAL AID AGENCY,16/08/17,Higher Crime,LEGAL AID FUND,POTTER DERBY LTD,1278332:147817136,26752.43,Legal Aid Payment Higher Crime
MINISTRY OF JUSTICE,LEGAL AID AGENCY,23/08/17,Higher Crime,LEGAL AID FUND,POTTER DERBY LTD,1280771:147832957,54509.56,Legal Aid Payment Higher Crime
MINISTRY OF JUSTICE,LEGAL AID AGENCY,30/08/17,Higher Crime,LEGAL AID FUND,POTTER DERBY LTD,1287876:147886827,35405.91,Legal Aid Payment Higher Crime
MINISTRY OF JUSTICE,LEGAL AID AGENCY,02/08/17,Lower Crime,LEGAL AID FUND,POWELL SPENCER AND PARTNERS,1266751:147686362,42600,Legal Aid Payment Lower Crime
MINISTRY OF JUSTICE,LEGAL AID AGENCY,30/08/17,Civil Representation,LEGAL AID FUND,POWELL SPENCER AND PARTNERS,1288055:147869006,44861.21,Legal Aid Payment Civil Representation
MINISTRY OF JUSTICE,LEGAL AID AGENCY,30/08/17,Lower Crime,LEGAL AID FUND,POWELL SPENCER AND PARTNERS,1288055:147886452,42600,Legal Aid Payment Lower Crime
MINISTRY OF JUSTICE,LEGAL AID AGENCY,09/08/17,Civil Representation,LEGAL AID FUND,PS LAW LLP,1270365:3000001573260014,25297.12,Legal Aid Payment Civil Representation
MINISTRY OF JUSTICE,LEGAL AID AGENCY,02/08/17,Lower Crime,LEGAL AID FUND,PURCELL PARKER LTD,1269037:147686433,90000,Legal Aid Payment Lower Crime
MINISTRY OF JUSTICE,LEGAL AID AGENCY,30/08/17,Lower Crime,LEGAL AID FUND,PURCELL PARKER LTD,1287255:147886524,90000,Legal Aid Payment Lower Crime
MINISTRY OF JUSTICE,LEGAL AID AGENCY,30/08/17,Lower Crime,LEGAL AID FUND,PURE LAW CRIMINAL DEFENCE,1283577:147886428,38435,Legal Aid Payment Lower Crime
MINISTRY OF JUSTICE,LEGAL AID AGENCY,30/08/17,Higher Crime,LEGAL AID FUND,QUALITY SOLICITORS J A HUGHES,1288183:147905103,29884.85,Legal Aid Payment Higher Crime
MINISTRY OF JUSTICE,LEGAL AID AGENCY,16/08/17,Civil Representation,LEGAL AID FUND,QUALITYSOLICITORS DUNN & BAKER,1276351:3000000627050039,26327.95,Legal Aid Payment Civil Representation
MINISTRY OF JUSTICE,LEGAL AID AGENCY,02/08/17,Lower Crime,LEGAL AID FUND,QUALITYSOLICITORS HPJV,1269445:147686292,33248,Legal Aid Payment Lower Crime
MINISTRY OF JUSTICE,LEGAL AID AGENCY,30/08/17,Lower Crime,LEGAL AID FUND,QUALITYSOLICITORS HPJV,1288001:147886374,31452,Legal Aid Payment Lower Crime
MINISTRY OF JUSTICE,LEGAL AID AGENCY,09/08/17,Higher Crime,LEGAL AID FUND,QUALITYSOLICITORS MIRZA,1271548:147731295,39437.16,Legal Aid Payment Higher Crime
MINISTRY OF JUSTICE,LEGAL AID AGENCY,09/08/17,Higher Crime,LEGAL AID FUND,QUINN MELVILLE,1273596:147762870,26825.49,Legal Aid Payment Higher Crime
MINISTRY OF JUSTICE,LEGAL AID AGENCY,30/08/17,Civil Representation,LEGAL AID FUND,RACHEL A LANGDALE QC,1285110:147873494,54989.34,Legal Aid Payment Civil Representation
MINISTRY OF JUSTICE,LEGAL AID AGENCY,16/08/17,Civil Representation,LEGAL AID FUND,RACHEL E TEMPLE,1274694:147813017,26605.8,Legal Aid Payment Civil Representation
MINISTRY OF JUSTICE,LEGAL AID AGENCY,30/08/17,Higher Crime,LEGAL AID FUND,RAHMAN RAVELLI SOLICITORS LTD,1287308:147864104,41037.04,Legal Aid Payment Higher Crime
MINISTRY OF JUSTICE,LEGAL AID AGENCY,16/08/17,Higher Crime,LEGAL AID FUND,RAJINDER S GILL,1277469:147770974,30564.7,Legal Aid Payment Higher Crime
MINISTRY OF JUSTICE,LEGAL AID AGENCY,16/08/17,Civil Representation,LEGAL AID FUND,RAMSDENS SOLICITORS LLP,1274860:3000001199000011,37586.61,Legal Aid Payment Civil Representation
MINISTRY OF JUSTICE,LEGAL AID AGENCY,23/08/17,Higher Crime,LEGAL AID FUND,RANDELL LLOYD & MARTIN SOLICITORS,1280865:147832566,99199.25,Legal Aid Payment Higher Crime
MINISTRY OF JUSTICE,LEGAL AID AGENCY,09/08/17,Higher Crime,LEGAL AID FUND,RANJEET DULAY,1270682:147763651,28409,Legal Aid Payment Higher Crime
MINISTRY OF JUSTICE,LEGAL AID AGENCY,23/08/17,Higher Crime,LEGAL AID FUND,RANJIT S LALLIE,1279562:147856989,31647.8,Legal Aid Payment Higher Crime
MINISTRY OF JUSTICE,LEGAL AID AGENCY,30/08/17,Lower Crime,LEGAL AID FUND,REECE THOMAS WATSON LTD,1283889:147886360,30234,Legal Aid Payment Lower Crime
MINISTRY OF JUSTICE,LEGAL AID AGENCY,02/08/17,Lower Crime,LEGAL AID FUND,REEDS SOLICITORS LTD,1264304:147686301,33755,Legal Aid Payment Lower Crime
MINISTRY OF JUSTICE,LEGAL AID AGENCY,02/08/17,Lower Crime,LEGAL AID FUND,REEDS SOLICITORS LTD,1264395:147686233,27891,Legal Aid Payment Lower Crime
MINISTRY OF JUSTICE,LEGAL AID AGENCY,02/08/17,Lower Crime,LEGAL AID FUND,REEDS SOLICITORS LTD,1264964:147686271,31029,Legal Aid Payment Lower Crime
MINISTRY OF JUSTICE,LEGAL AID AGENCY,02/08/17,Lower Crime,LEGAL AID FUND,REEDS SOLICITORS LTD,1266411:147686409,56022,Legal Aid Payment Lower Crime
MINISTRY OF JUSTICE,LEGAL AID AGENCY,02/08/17,Lower Crime,LEGAL AID FUND,REEDS SOLICITORS LTD,1268595:147686284,32427,Legal Aid Payment Lower Crime
MINISTRY OF JUSTICE,LEGAL AID AGENCY,02/08/17,Lower Crime,LEGAL AID FUND,REEDS SOLICITORS LTD,1269044:147686245,28954,Legal Aid Payment Lower Crime
MINISTRY OF JUSTICE,LEGAL AID AGENCY,09/08/17,Civil Representation,LEGAL AID FUND,REEDS SOLICITORS LTD,1271559:3000001153530050,37632.88,Legal Aid Payment Civil Representation
MINISTRY OF JUSTICE,LEGAL AID AGENCY,09/08/17,Higher Crime,LEGAL AID FUND,REEDS SOLICITORS LTD,1272025:147727767,32860.73,Legal Aid Payment Higher Crime
MINISTRY OF JUSTICE,LEGAL AID AGENCY,09/08/17,Higher Crime,LEGAL AID FUND,REEDS SOLICITORS LTD,1272292:147723144,53814.98,Legal Aid Payment Higher Crime
MINISTRY OF JUSTICE,LEGAL AID AGENCY,30/08/17,Lower Crime,LEGAL AID FUND,REEDS SOLICITORS LTD,1283515:147886365,30715,Legal Aid Payment Lower Crime
MINISTRY OF JUSTICE,LEGAL AID AGENCY,30/08/17,Lower Crime,LEGAL AID FUND,REEDS SOLICITORS LTD,1283519:147886469,46063,Legal Aid Payment Lower Crime
MINISTRY OF JUSTICE,LEGAL AID AGENCY,30/08/17,Lower Crime,LEGAL AID FUND,REEDS SOLICITORS LTD,1283636:147886325,27610,Legal Aid Payment Lower Crime
MINISTRY OF JUSTICE,LEGAL AID AGENCY,30/08/17,Higher Crime,LEGAL AID FUND,REEDS SOLICITORS LTD,1283799:147870147,74979.26,Legal Aid Payment Higher Crime
MINISTRY OF JUSTICE,LEGAL AID AGENCY,30/08/17,Lower Crime,LEGAL AID FUND,REEDS SOLICITORS LTD,1284760:147886431,39015,Legal Aid Payment Lower Crime
MINISTRY OF JUSTICE,LEGAL AID AGENCY,30/08/17,Lower Crime,LEGAL AID FUND,REEDS SOLICITORS LTD,1286464:147886440,40424,Legal Aid Payment Lower Crime
MINISTRY OF JUSTICE,LEGAL AID AGENCY,30/08/17,Lower Crime,LEGAL AID FUND,REEDS SOLICITORS LTD,1287336:147886493,53445,Legal Aid Payment Lower Crime
MINISTRY OF JUSTICE,LEGAL AID AGENCY,02/08/17,Lower Crime,LEGAL AID FUND,REEVES  & CO SOLICITORS,1268680:147686383,46226,Legal Aid Payment Lower Crime
MINISTRY OF JUSTICE,LEGAL AID AGENCY,30/08/17,Lower Crime,LEGAL AID FUND,REEVES  & CO SOLICITORS,1286544:147886470,46248,Legal Aid Payment Lower Crime
MINISTRY OF JUSTICE,LEGAL AID AGENCY,02/08/17,Lower Crime,LEGAL AID FUND,RENSHAW DERRICK & CO,1269552:147686315,35022,Legal Aid Payment Lower Crime
MINISTRY OF JUSTICE,LEGAL AID AGENCY,30/08/17,Lower Crime,LEGAL AID FUND,RENSHAW DERRICK & CO,1288272:147886390,32970,Legal Aid Payment Lower Crime
MINISTRY OF JUSTICE,LEGAL AID AGENCY,30/08/17,Higher Crime,LEGAL AID FUND,RENSHAW DERRICK & CO,1288272:147905125,29056.41,Legal Aid Payment Higher Crime
MINISTRY OF JUSTICE,LEGAL AID AGENCY,30/08/17,Higher Crime,LEGAL AID FUND,RENSHAW DERRICK & CO,1288272:147905131,74979.26,Legal Aid Payment Higher Crime
MINISTRY OF JUSTICE,LEGAL AID AGENCY,09/08/17,Higher Crime,LEGAL AID FUND,RICHARD BENTWOOD,1271018:147763443,26438.68,Legal Aid Payment Higher Crime
MINISTRY OF JUSTICE,LEGAL AID AGENCY,02/08/17,Lower Crime,LEGAL AID FUND,RICHARD HASWELL SOLICITORS LTD,1269379:147686261,30129,Legal Aid Payment Lower Crime
MINISTRY OF JUSTICE,LEGAL AID AGENCY,02/08/17,Higher Crime,LEGAL AID FUND,RICHARD HASWELL SOLICITORS LTD,1269379:147713963,32096.3,Legal Aid Payment Higher Crime
MINISTRY OF JUSTICE,LEGAL AID AGENCY,30/08/17,Higher Crime,LEGAL AID FUND,RICHARD HASWELL SOLICITORS LTD,1287757:147904747,57548.76,Legal Aid Payment Higher Crime
MINISTRY OF JUSTICE,LEGAL AID AGENCY,16/08/17,Higher Crime,LEGAL AID FUND,RICHARD HUTCHINGS,1277534:147771532,32281.9,Legal Aid Payment Higher Crime
MINISTRY OF JUSTICE,LEGAL AID AGENCY,30/08/17,Higher Crime,LEGAL AID FUND,RICHARD J BARTON,1284546:147864589,31229.6,Legal Aid Payment Higher Crime
MINISTRY OF JUSTICE,LEGAL AID AGENCY,02/08/17,Civil Representation,LEGAL AID FUND,RICHARD M A HADLEY,1268079:3000001660260010,29710.44,Legal Aid Payment Civil Representation
MINISTRY OF JUSTICE,LEGAL AID AGENCY,02/08/17,Higher Crime,LEGAL AID FUND,RICHARD M LITTLER,1267859:147676766,25636.01,Legal Aid Payment Higher Crime
MINISTRY OF JUSTICE,LEGAL AID AGENCY,09/08/17,Higher Crime,LEGAL AID FUND,RICHARD N JORY QC,1273286:147739168,48037.46,Legal Aid Payment Higher Crime
MINISTRY OF JUSTICE,LEGAL AID AGENCY,02/08/17,Lower Crime,LEGAL AID FUND,RICHARDSON SOLICITORS,1269087:147686230,27700,Legal Aid Payment Lower Crime
MINISTRY OF JUSTICE,LEGAL AID AGENCY,30/08/17,Lower Crime,LEGAL AID FUND,RICHARDSON SOLICITORS,1287306:147886327,27700,Legal Aid Payment Lower Crime
MINISTRY OF JUSTICE,LEGAL AID AGENCY,09/08/17,Civil Representation,LEGAL AID FUND,RIDLEY & HALL LEGAL LTD,1271486:3000002230370002,28751.06,Legal Aid Payment Civil Representation
MINISTRY OF JUSTICE,LEGAL AID AGENCY,23/08/17,Civil Representation,LEGAL AID FUND,RIDLEY & HALL LEGAL LTD,1280467:3000001296180026,30804.99,Legal Aid Payment Civil Representation
MINISTRY OF JUSTICE,LEGAL AID AGENCY,02/08/17,Lower Crime,LEGAL AID FUND,RILEY HAYES & CO,1269038:147686386,47000,Legal Aid Payment Lower Crime
MINISTRY OF JUSTICE,LEGAL AID AGENCY,16/08/17,Higher Crime,LEGAL AID FUND,RILEY HAYES & CO,1275929:147793448,34111.32,Legal Aid Payment Higher Crime
MINISTRY OF JUSTICE,LEGAL AID AGENCY,30/08/17,Lower Crime,LEGAL AID FUND,RILEY HAYES & CO,1287256:147886476,47000,Legal Aid Payment Lower Crime
MINISTRY OF JUSTICE,LEGAL AID AGENCY,02/08/17,Legal Help,LEGAL AID FUND,RMNJ SOLICITORS ***,1266400:147684761,41592,Legal Aid Payment Legal Help
MINISTRY OF JUSTICE,LEGAL AID AGENCY,02/08/17,Lower Crime,LEGAL AID FUND,RMNJ SOLICITORS ***,1266400:147686250,29602,Legal Aid Payment Lower Crime
MINISTRY OF JUSTICE,LEGAL AID AGENCY,30/08/17,Lower Crime,LEGAL AID FUND,RMNJ SOLICITORS ***,1287422:147886479,47512,Legal Aid Payment Lower Crime
MINISTRY OF JUSTICE,LEGAL AID AGENCY,02/08/17,Lower Crime,LEGAL AID FUND,ROACH PITTIS,1266841:147686213,26400,Legal Aid Payment Lower Crime
MINISTRY OF JUSTICE,LEGAL AID AGENCY,30/08/17,Lower Crime,LEGAL AID FUND,ROACH PITTIS,1288237:147886310,26400,Legal Aid Payment Lower Crime
MINISTRY OF JUSTICE,LEGAL AID AGENCY,09/08/17,Higher Crime,LEGAL AID FUND,ROBERT LAYTON & CO,1274043:147722860,27232.54,Legal Aid Payment Higher Crime
MINISTRY OF JUSTICE,LEGAL AID AGENCY,02/08/17,Lower Crime,LEGAL AID FUND,ROBERT LIZAR,1266734:147686256,30000,Legal Aid Payment Lower Crime
MINISTRY OF JUSTICE,LEGAL AID AGENCY,09/08/17,Higher Crime,LEGAL AID FUND,ROBERT LIZAR,1273849:147731530,88214.79,Legal Aid Payment Higher Crime
MINISTRY OF JUSTICE,LEGAL AID AGENCY,23/08/17,Higher Crime,LEGAL AID FUND,ROBERT LIZAR,1280852:147848163,89975.11,Legal Aid Payment Higher Crime
MINISTRY OF JUSTICE,LEGAL AID AGENCY,30/08/17,Lower Crime,LEGAL AID FUND,ROBERT LIZAR,1287858:147886356,30000,Legal Aid Payment Lower Crime
MINISTRY OF JUSTICE,LEGAL AID AGENCY,02/08/17,Higher Crime,LEGAL AID FUND,ROBERT M KEARNEY,1268093:147715362,26369.2,Legal Aid Payment Higher Crime
MINISTRY OF JUSTICE,LEGAL AID AGENCY,02/08/17,Lower Crime,LEGAL AID FUND,ROBERTSON'S SOLICITORS,1269168:147686390,48500,Legal Aid Payment Lower Crime
MINISTRY OF JUSTICE,LEGAL AID AGENCY,30/08/17,Lower Crime,LEGAL AID FUND,ROBERTSON'S SOLICITORS,1287472:147886346,29000,Legal Aid Payment Lower Crime
MINISTRY OF JUSTICE,LEGAL AID AGENCY,02/08/17,Lower Crime,LEGAL AID FUND,RODNEY WARREN & CO LTD,1269512:147686306,34500,Legal Aid Payment Lower Crime
MINISTRY OF JUSTICE,LEGAL AID AGENCY,30/08/17,Lower Crime,LEGAL AID FUND,RODNEY WARREN & CO LTD,1288158:147886403,34500,Legal Aid Payment Lower Crime
MINISTRY OF JUSTICE,LEGAL AID AGENCY,02/08/17,Legal Help,LEGAL AID FUND,ROEBUCKS SOLICITORS,1269316:147684745,33273,Legal Aid Payment Legal Help
MINISTRY OF JUSTICE,LEGAL AID AGENCY,02/08/17,Lower Crime,LEGAL AID FUND,ROGERS & CO,1266787:147686275,31400,Legal Aid Payment Lower Crime
MINISTRY OF JUSTICE,LEGAL AID AGENCY,30/08/17,Lower Crime,LEGAL AID FUND,ROGERS & CO,1288187:147886304,26000,Legal Aid Payment Lower Crime
MINISTRY OF JUSTICE,LEGAL AID AGENCY,16/08/17,Higher Crime,LEGAL AID FUND,RORY KEENE,1275237:147817934,30487,Legal Aid Payment Higher Crime
MINISTRY OF JUSTICE,LEGAL AID AGENCY,23/08/17,Higher Crime,LEGAL AID FUND,ROSS D TALBOTT,1282227:147825334,31638.9,Legal Aid Payment Higher Crime
MINISTRY OF JUSTICE,LEGAL AID AGENCY,02/08/17,Lower Crime,LEGAL AID FUND,ROSS SOLICITORS LTD,1269573:147686312,35000,Legal Aid Payment Lower Crime
MINISTRY OF JUSTICE,LEGAL AID AGENCY,30/08/17,Lower Crime,LEGAL AID FUND,ROSS SOLICITORS LTD,1288122:147886409,35000,Legal Aid Payment Lower Crime
MINISTRY OF JUSTICE,LEGAL AID AGENCY,02/08/17,Lower Crime,LEGAL AID FUND,ROWE SPARKES SOLICITORS LTD,1268771:147686372,44100,Legal Aid Payment Lower Crime
MINISTRY OF JUSTICE,LEGAL AID AGENCY,30/08/17,Lower Crime,LEGAL AID FUND,ROWE SPARKES SOLICITORS LTD,1286676:147886458,44100,Legal Aid Payment Lower Crime
MINISTRY OF JUSTICE,LEGAL AID AGENCY,02/08/17,Lower Crime,LEGAL AID FUND,ROY FOREMAN & CO SOLICITORS,1269017:147686335,37300,Legal Aid Payment Lower Crime
MINISTRY OF JUSTICE,LEGAL AID AGENCY,30/08/17,Lower Crime,LEGAL AID FUND,ROY FOREMAN & CO SOLICITORS,1287235:147886347,29000,Legal Aid Payment Lower Crime
MINISTRY OF JUSTICE,LEGAL AID AGENCY,02/08/17,Civil Representation,LEGAL AID FUND,ROYDS LLP,1269633:147092111,37005.06,Legal Aid Payment Civil Representation
MINISTRY OF JUSTICE,LEGAL AID AGENCY,23/08/17,Higher Crime,LEGAL AID FUND,RUDI F FORTSON QC,1282243:147857040,25933.94,Legal Aid Payment Higher Crime
MINISTRY OF JUSTICE,LEGAL AID AGENCY,09/08/17,Higher Crime,LEGAL AID FUND,RUSTEM GUARDIAN LLP,1273497:147730919,48640.06,Legal Aid Payment Higher Crime
MINISTRY OF JUSTICE,LEGAL AID AGENCY,16/08/17,Higher Crime,LEGAL AID FUND,RUSTEM GUARDIAN LLP,1275769:147794422,37660.53,Legal Aid Payment Higher Crime
MINISTRY OF JUSTICE,LEGAL AID AGENCY,16/08/17,Higher Crime,LEGAL AID FUND,RUSTEM GUARDIAN LLP,1275769:147816151,26872.44,Legal Aid Payment Higher Crime
MINISTRY OF JUSTICE,LEGAL AID AGENCY,02/08/17,Lower Crime,LEGAL AID FUND,S A LAW CHAMBERS SOLICITORS,1266199:147686349,40000,Legal Aid Payment Lower Crime
MINISTRY OF JUSTICE,LEGAL AID AGENCY,30/08/17,Lower Crime,LEGAL AID FUND,S A LAW CHAMBERS SOLICITORS,1286979:147886437,40000,Legal Aid Payment Lower Crime
MINISTRY OF JUSTICE,LEGAL AID AGENCY,16/08/17,Higher Crime,LEGAL AID FUND,S H DAD SOLICITORS,1277850:147816246,29664.55,Legal Aid Payment Higher Crime
MINISTRY OF JUSTICE,LEGAL AID AGENCY,02/08/17,Lower Crime,LEGAL AID FUND,SAKHI LEGAL SERVICES LTD,1266159:147686212,26354,Legal Aid Payment Lower Crime
MINISTRY OF JUSTICE,LEGAL AID AGENCY,02/08/17,Lower Crime,LEGAL AID FUND,SAMUEL & CO SOLICITORS,1266106:147686204,25800,Legal Aid Payment Lower Crime
MINISTRY OF JUSTICE,LEGAL AID AGENCY,30/08/17,Lower Crime,LEGAL AID FUND,SAMUEL & CO SOLICITORS,1286803:147886297,25800,Legal Aid Payment Lower Crime
MINISTRY OF JUSTICE,LEGAL AID AGENCY,02/08/17,Lower Crime,LEGAL AID FUND,SANSBURY DOUGLAS,1265928:147686396,50000,Legal Aid Payment Lower Crime
MINISTRY OF JUSTICE,LEGAL AID AGENCY,30/08/17,Lower Crime,LEGAL AID FUND,SANSBURY DOUGLAS,1286452:147886486,50000,Legal Aid Payment Lower Crime
MINISTRY OF JUSTICE,LEGAL AID AGENCY,23/08/17,Civil Representation,LEGAL AID FUND,SARA M LEWIS,1279591:3000001163600012,25606.8,Legal Aid Payment Civil Representation
MINISTRY OF JUSTICE,LEGAL AID AGENCY,09/08/17,Civil Representation,LEGAL AID FUND,SARAH POPE,1270231:3000000750270041,31132.14,Legal Aid Payment Civil Representation
MINISTRY OF JUSTICE,LEGAL AID AGENCY,02/08/17,Higher Crime,LEGAL AID FUND,SATYANAND S BEHARRYLAL,1265105:147669621,28894.1,Legal Aid Payment Higher Crime
MINISTRY OF JUSTICE,LEGAL AID AGENCY,30/08/17,Higher Crime,LEGAL AID FUND,SAUNDERS SOLICITORS LTD,1288289:147877343,65635.2,Legal Aid Payment Higher Crime
MINISTRY OF JUSTICE,LEGAL AID AGENCY,23/08/17,Higher Crime,LEGAL AID FUND,SAV KHAN SOLICITORS,1278869:147833547,39373.35,Legal Aid Payment Higher Crime
MINISTRY OF JUSTICE,LEGAL AID AGENCY,16/08/17,Higher Crime,LEGAL AID FUND,SCANLANS,1278209:147793575,74979.26,Legal Aid Payment Higher Crime
MINISTRY OF JUSTICE,LEGAL AID AGENCY,02/08/17,Legal Help,LEGAL AID FUND,SCOTT-MONCRIEFF & ASSOCIATES LLP,1269620:147684769,49300,Legal Aid Payment Legal Help
MINISTRY OF JUSTICE,LEGAL AID AGENCY,30/08/17,Legal Help,LEGAL AID FUND,SCOTT-MONCRIEFF & ASSOCIATES LLP,1288304:147884830,49300,Legal Aid Payment Legal Help
MINISTRY OF JUSTICE,LEGAL AID AGENCY,16/08/17,Higher Crime,LEGAL AID FUND,SHAFI SOLICITORS LLP,1276780:147779425,33894.74,Legal Aid Payment Higher Crime
MINISTRY OF JUSTICE,LEGAL AID AGENCY,09/08/17,Higher Crime,LEGAL AID FUND,SHAHID ALI & CO SOLICITORS,1270067:147762869,74979.26,Legal Aid Payment Higher Crime
MINISTRY OF JUSTICE,LEGAL AID AGENCY,16/08/17,Higher Crime,LEGAL AID FUND,SHAHID RASHID,1277252:147778246,32590.3,Legal Aid Payment Higher Crime
MINISTRY OF JUSTICE,LEGAL AID AGENCY,16/08/17,Higher Crime,LEGAL AID FUND,SHAIKH AYUB SOLICITORS,1275655:147793452,55657.89,Legal Aid Payment Higher Crime
MINISTRY OF JUSTICE,LEGAL AID AGENCY,30/08/17,Lower Crime,LEGAL AID FUND,SHARMA LAW SOLICITORS,1286380:147886436,39849,Legal Aid Payment Lower Crime
MINISTRY OF JUSTICE,LEGAL AID AGENCY,23/08/17,Civil Representation,LEGAL AID FUND,SHARRATTS SOLICITORS  LTD,1282510:3000000553720018,37995.15,Legal Aid Payment Civil Representation
MINISTRY OF JUSTICE,LEGAL AID AGENCY,02/08/17,Lower Crime,LEGAL AID FUND,SHAW GRAHAM KERSH,1268987:147686319,35200,Legal Aid Payment Lower Crime
MINISTRY OF JUSTICE,LEGAL AID AGENCY,09/08/17,Higher Crime,LEGAL AID FUND,SHAW GRAHAM KERSH,1273568:147731274,29727.61,Legal Aid Payment Higher Crime
MINISTRY OF JUSTICE,LEGAL AID AGENCY,16/08/17,Higher Crime,LEGAL AID FUND,SHAW GRAHAM KERSH,1278018:147816318,95707.01,Legal Aid Payment Higher Crime
MINISTRY OF JUSTICE,LEGAL AID AGENCY,30/08/17,Lower Crime,LEGAL AID FUND,SHAW GRAHAM KERSH,1287112:147886412,35200,Legal Aid Payment Lower Crime
MINISTRY OF JUSTICE,LEGAL AID AGENCY,02/08/17,Lower Crime,LEGAL AID FUND,SHELLEY & CO,1269031:147686210,26238,Legal Aid Payment Lower Crime
MINISTRY OF JUSTICE,LEGAL AID AGENCY,30/08/17,Lower Crime,LEGAL AID FUND,SHELLEY & CO,1287249:147886372,31412,Legal Aid Payment Lower Crime
MINISTRY OF JUSTICE,LEGAL AID AGENCY,23/08/17,Legal Help,LEGAL AID FUND,SHELTER.,1282486:147845408,37987.08,Legal Aid Payment Legal Help
MINISTRY OF JUSTICE,LEGAL AID AGENCY,02/08/17,Lower Crime,LEGAL AID FUND,SHEPHERD SOLICITORS LTD,1268659:147686200,25410,Legal Aid Payment Lower Crime
MINISTRY OF JUSTICE,LEGAL AID AGENCY,02/08/17,Lower Crime,LEGAL AID FUND,SHEPPARDS SOLICITORS LTD,1266195:147686279,32000,Legal Aid Payment Lower Crime
MINISTRY OF JUSTICE,LEGAL AID AGENCY,30/08/17,Lower Crime,LEGAL AID FUND,SHEPPARDS SOLICITORS LTD,1286976:147886377,32000,Legal Aid Payment Lower Crime
MINISTRY OF JUSTICE,LEGAL AID AGENCY,02/08/17,Higher Crime,LEGAL AID FUND,SILLS & BETTERIDGE LLP,1269201:147698599,84457.28,Legal Aid Payment Higher Crime
MINISTRY OF JUSTICE,LEGAL AID AGENCY,16/08/17,Higher Crime,LEGAL AID FUND,SIMON C  WILLIAMS,1275110:147817094,31578.76,Legal Aid Payment Higher Crime
MINISTRY OF JUSTICE,LEGAL AID AGENCY,30/08/17,Higher Crime,LEGAL AID FUND,SIMON J RIPPON,1286144:147887126,29093.14,Legal Aid Payment Higher Crime
MINISTRY OF JUSTICE,LEGAL AID AGENCY,09/08/17,Civil Representation,LEGAL AID FUND,SIMPSON MILLAR SOLICITORS LLP,1272243:147726820,25338.77,Legal Aid Payment Civil Representation
MINISTRY OF JUSTICE,LEGAL AID AGENCY,23/08/17,Higher Crime,LEGAL AID FUND,SJ LAW,1280514:147856114,67789.47,Legal Aid Payment Higher Crime
MINISTRY OF JUSTICE,LEGAL AID AGENCY,23/08/17,Higher Crime,LEGAL AID FUND,SJ LAW,1280514:147856118,74979.26,Legal Aid Payment Higher Crime
MINISTRY OF JUSTICE,LEGAL AID AGENCY,09/08/17,Higher Crime,LEGAL AID FUND,SKR LEGAL SOLICITORS,1271269:147746301,42560.82,Legal Aid Payment Higher Crime
MINISTRY OF JUSTICE,LEGAL AID AGENCY,02/08/17,Lower Crime,LEGAL AID FUND,SMITH PARTNERSHIP,1268905:147686355,41200,Legal Aid Payment Lower Crime
MINISTRY OF JUSTICE,LEGAL AID AGENCY,02/08/17,Lower Crime,LEGAL AID FUND,SMITH PARTNERSHIP,1268907:147686294,33300,Legal Aid Payment Lower Crime
MINISTRY OF JUSTICE,LEGAL AID AGENCY,23/08/17,Higher Crime,LEGAL AID FUND,SMITH PARTNERSHIP,1282561:147848200,83676.66,Legal Aid Payment Higher Crime
MINISTRY OF JUSTICE,LEGAL AID AGENCY,30/08/17,Lower Crime,LEGAL AID FUND,SMITH PARTNERSHIP,1286855:147886444,41200,Legal Aid Payment Lower Crime
MINISTRY OF JUSTICE,LEGAL AID AGENCY,30/08/17,Lower Crime,LEGAL AID FUND,SMITH PARTNERSHIP,1286857:147886396,33300,Legal Aid Payment Lower Crime
MINISTRY OF JUSTICE,LEGAL AID AGENCY,09/08/17,Higher Crime,LEGAL AID FUND,SOLOMON LAW SOLICITORS LTD,1273423:147746777,-31362.5,Legal Aid Payment Higher Crime
MINISTRY OF JUSTICE,LEGAL AID AGENCY,09/08/17,Higher Crime,LEGAL AID FUND,SOLOMON LAW SOLICITORS LTD,1273423:147746778,31362.5,Legal Aid Payment Higher Crime
MINISTRY OF JUSTICE,LEGAL AID AGENCY,23/08/17,Higher Crime,LEGAL AID FUND,SOLOMONS SOLICITORS,1278888:147825770,54063.91,Legal Aid Payment Higher Crime
MINISTRY OF JUSTICE,LEGAL AID AGENCY,02/08/17,Lower Crime,LEGAL AID FUND,SONN MACMILLAN WALKER LTD,1269630:147686429,77300,Legal Aid Payment Lower Crime
MINISTRY OF JUSTICE,LEGAL AID AGENCY,02/08/17,Higher Crime,LEGAL AID FUND,SONN MACMILLAN WALKER LTD,1269630:147697307,29688.18,Legal Aid Payment Higher Crime
MINISTRY OF JUSTICE,LEGAL AID AGENCY,30/08/17,Lower Crime,LEGAL AID FUND,SONN MACMILLAN WALKER LTD,1288313:147886519,77300,Legal Aid Payment Lower Crime
MINISTRY OF JUSTICE,LEGAL AID AGENCY,02/08/17,Legal Help,LEGAL AID FUND,SOUTHERNS SOLICITORS,1266614:147684750,34527,Legal Aid Payment Legal Help
MINISTRY OF JUSTICE,LEGAL AID AGENCY,02/08/17,Lower Crime,LEGAL AID FUND,SOUTHERNS SOLICITORS,1266614:147686251,29768,Legal Aid Payment Lower Crime
MINISTRY OF JUSTICE,LEGAL AID AGENCY,30/08/17,Lower Crime,LEGAL AID FUND,SOUTHERNS SOLICITORS,1287744:147886332,27985,Legal Aid Payment Lower Crime
MINISTRY OF JUSTICE,LEGAL AID AGENCY,30/08/17,Civil Representation,LEGAL AID FUND,SPIRE SOLICITORS LLP,1287283:147873488,39765.7,Legal Aid Payment Civil Representation
MINISTRY OF JUSTICE,LEGAL AID AGENCY,02/08/17,Lower Crime,LEGAL AID FUND,STEEL & SHAMASH,1266754:147686194,25100,Legal Aid Payment Lower Crime
MINISTRY OF JUSTICE,LEGAL AID AGENCY,30/08/17,Lower Crime,LEGAL AID FUND,STEEL & SHAMASH,1288058:147886288,25100,Legal Aid Payment Lower Crime
MINISTRY OF JUSTICE,LEGAL AID AGENCY,09/08/17,Civil Representation,LEGAL AID FUND,STEFAN P LIBERADZKI,1272135:147719225,25660.8,Legal Aid Payment Civil Representation
MINISTRY OF JUSTICE,LEGAL AID AGENCY,23/08/17,Higher Crime,LEGAL AID FUND,STEPHANIE DALE & CO,1280901:147856088,65127.04,Legal Aid Payment Higher Crime
MINISTRY OF JUSTICE,LEGAL AID AGENCY,02/08/17,Lower Crime,LEGAL AID FUND,STEPHEN BURDON SOLICITORS,1268968:147686344,39100,Legal Aid Payment Lower Crime
MINISTRY OF JUSTICE,LEGAL AID AGENCY,30/08/17,Higher Crime,LEGAL AID FUND,STEPHEN BURDON SOLICITORS,1287094:147877225,35202.35,Legal Aid Payment Higher Crime
MINISTRY OF JUSTICE,LEGAL AID AGENCY,30/08/17,Lower Crime,LEGAL AID FUND,STEPHEN BURDON SOLICITORS,1287094:147886432,39100,Legal Aid Payment Lower Crime
MINISTRY OF JUSTICE,LEGAL AID AGENCY,02/08/17,Lower Crime,LEGAL AID FUND,STEPHEN RIMMER LLP,1269049:147686257,30000,Legal Aid Payment Lower Crime
MINISTRY OF JUSTICE,LEGAL AID AGENCY,30/08/17,Lower Crime,LEGAL AID FUND,STEPHEN RIMMER LLP,1287267:147886357,30000,Legal Aid Payment Lower Crime
MINISTRY OF JUSTICE,LEGAL AID AGENCY,23/08/17,Higher Crime,LEGAL AID FUND,STEPHEN WALTERS [ADVOCATE],1279297:147825889,41342.2,Legal Aid Payment Higher Crime
MINISTRY OF JUSTICE,LEGAL AID AGENCY,02/08/17,Higher Crime,LEGAL AID FUND,STEPHENS MCDONALD & ROBSON,1269246:147677344,28639.09,Legal Aid Payment Higher Crime
MINISTRY OF JUSTICE,LEGAL AID AGENCY,02/08/17,Lower Crime,LEGAL AID FUND,STEPHENSONS SOLICITORS LLP,1266739:147686324,35834,Legal Aid Payment Lower Crime
MINISTRY OF JUSTICE,LEGAL AID AGENCY,16/08/17,Civil Representation,LEGAL AID FUND,STEPHENSONS SOLICITORS LLP,1278323:147735736,26174.4,Legal Aid Payment Civil Representation
MINISTRY OF JUSTICE,LEGAL AID AGENCY,30/08/17,Lower Crime,LEGAL AID FUND,STEPHENSONS SOLICITORS LLP,1287863:147886460,44393,Legal Aid Payment Lower Crime
MINISTRY OF JUSTICE,LEGAL AID AGENCY,02/08/17,Lower Crime,LEGAL AID FUND,STERNBERG REED SOLICITORS,1268782:147686296,33500,Legal Aid Payment Lower Crime
MINISTRY OF JUSTICE,LEGAL AID AGENCY,16/08/17,Higher Crime,LEGAL AID FUND,STERNBERG REED SOLICITORS,1275753:147770869,27903.03,Legal Aid Payment Higher Crime
MINISTRY OF JUSTICE,LEGAL AID AGENCY,30/08/17,Lower Crime,LEGAL AID FUND,STERNBERG REED SOLICITORS,1286832:147886398,33500,Legal Aid Payment Lower Crime
MINISTRY OF JUSTICE,LEGAL AID AGENCY,02/08/17,Lower Crime,LEGAL AID FUND,STEVEN YOUNG & CO INC ROWBIS,1266250:147686338,37713,Legal Aid Payment Lower Crime
MINISTRY OF JUSTICE,LEGAL AID AGENCY,30/08/17,Lower Crime,LEGAL AID FUND,STEVEN YOUNG & CO INC ROWBIS,1287035:147886404,34523,Legal Aid Payment Lower Crime
MINISTRY OF JUSTICE,LEGAL AID AGENCY,02/08/17,Lower Crime,LEGAL AID FUND,STEVENS SOLICITORS,1269347:147686232,27800,Legal Aid Payment Lower Crime
MINISTRY OF JUSTICE,LEGAL AID AGENCY,02/08/17,Lower Crime,LEGAL AID FUND,STEVENS SOLICITORS,1269349:147686413,60000,Legal Aid Payment Lower Crime
MINISTRY OF JUSTICE,LEGAL AID AGENCY,02/08/17,Lower Crime,LEGAL AID FUND,STEVENS SOLICITORS,1269350:147686427,74500,Legal Aid Payment Lower Crime
MINISTRY OF JUSTICE,LEGAL AID AGENCY,30/08/17,Lower Crime,LEGAL AID FUND,STEVENS SOLICITORS,1287820:147886329,27800,Legal Aid Payment Lower Crime
MINISTRY OF JUSTICE,LEGAL AID AGENCY,30/08/17,Lower Crime,LEGAL AID FUND,STEVENS SOLICITORS,1287822:147886505,60000,Legal Aid Payment Lower Crime
MINISTRY OF JUSTICE,LEGAL AID AGENCY,30/08/17,Lower Crime,LEGAL AID FUND,STEVENS SOLICITORS,1287823:147886482,49300,Legal Aid Payment Lower Crime
MINISTRY OF JUSTICE,LEGAL AID AGENCY,30/08/17,Lower Crime,LEGAL AID FUND,STEWART BEGUM SOLICITORS LLP,1286427:147886289,25196,Legal Aid Payment Lower Crime
MINISTRY OF JUSTICE,LEGAL AID AGENCY,02/08/17,Higher Crime,LEGAL AID FUND,STOKOE PARTNERSHIP,1266854:147677695,70612.86,Legal Aid Payment Higher Crime
MINISTRY OF JUSTICE,LEGAL AID AGENCY,23/08/17,Higher Crime,LEGAL AID FUND,STOKOE PARTNERSHIP,1283103:147856129,89975.11,Legal Aid Payment Higher Crime
MINISTRY OF JUSTICE,LEGAL AID AGENCY,30/08/17,Higher Crime,LEGAL AID FUND,STOKOE PARTNERSHIP,1288283:147864454,63814.63,Legal Aid Payment Higher Crime
MINISTRY OF JUSTICE,LEGAL AID AGENCY,23/08/17,Higher Crime,LEGAL AID FUND,STOKOE PARTNERSHIP-ADVOCATE,1279427:147832815,26775.68,Legal Aid Payment Higher Crime
MINISTRY OF JUSTICE,LEGAL AID AGENCY,23/08/17,Higher Crime,LEGAL AID FUND,STOKOE PARTNERSHIP-ADVOCATE,1279427:147833474,27659.68,Legal Aid Payment Higher Crime
MINISTRY OF JUSTICE,LEGAL AID AGENCY,02/08/17,Higher Crime,LEGAL AID FUND,STUART MILLER SOLICITORS LTD,1266606:147677088,74979.26,Legal Aid Payment Higher Crime
MINISTRY OF JUSTICE,LEGAL AID AGENCY,02/08/17,Lower Crime,LEGAL AID FUND,STUART MILLER SOLICITORS LTD,1266606:147686437,112117,Legal Aid Payment Lower Crime
MINISTRY OF JUSTICE,LEGAL AID AGENCY,16/08/17,Higher Crime,LEGAL AID FUND,STUART MILLER SOLICITORS LTD,1276137:147793382,63693.28,Legal Aid Payment Higher Crime
MINISTRY OF JUSTICE,LEGAL AID AGENCY,30/08/17,Lower Crime,LEGAL AID FUND,STUART MILLER SOLICITORS LTD,1287736:147886526,102907,Legal Aid Payment Lower Crime
MINISTRY OF JUSTICE,LEGAL AID AGENCY,23/08/17,Civil Representation,LEGAL AID FUND,SUSAN D STAMFORD,1282115:3000000983480011,29140.94,Legal Aid Payment Civil Representation
MINISTRY OF JUSTICE,LEGAL AID AGENCY,16/08/17,Civil Representation,LEGAL AID FUND,SUSAN GROCOTT QC,1275342:3000001409100067,59259.6,Legal Aid Payment Civil Representation
MINISTRY OF JUSTICE,LEGAL AID AGENCY,02/08/17,Civil Representation,LEGAL AID FUND,SUSANNAH JONES,1268213:3000001084010012,26838,Legal Aid Payment Civil Representation
MINISTRY OF JUSTICE,LEGAL AID AGENCY,02/08/17,Lower Crime,LEGAL AID FUND,SUSSEX DEFENCE SOLICITORS,1266065:147686189,25000,Legal Aid Payment Lower Crime
MINISTRY OF JUSTICE,LEGAL AID AGENCY,30/08/17,Lower Crime,LEGAL AID FUND,SUSSEX DEFENCE SOLICITORS,1286672:147886284,25000,Legal Aid Payment Lower Crime
MINISTRY OF JUSTICE,LEGAL AID AGENCY,02/08/17,Legal Help,LEGAL AID FUND,SUTOVIC & HARTIGAN,1269565:147684749,34300,Legal Aid Payment Legal Help
MINISTRY OF JUSTICE,LEGAL AID AGENCY,30/08/17,Legal Help,LEGAL AID FUND,SUTOVIC & HARTIGAN,1288213:147884809,34300,Legal Aid Payment Legal Help
MINISTRY OF JUSTICE,LEGAL AID AGENCY,02/08/17,Higher Crime,LEGAL AID FUND,SVS SOLICITORS,1268673:147713955,30833.3,Legal Aid Payment Higher Crime
MINISTRY OF JUSTICE,LEGAL AID AGENCY,30/08/17,Lower Crime,LEGAL AID FUND,SVS SOLICITORS,1286538:147886342,28733,Legal Aid Payment Lower Crime
MINISTRY OF JUSTICE,LEGAL AID AGENCY,30/08/17,Higher Crime,LEGAL AID FUND,SVS SOLICITORS,1286538:147887052,33180.65,Legal Aid Payment Higher Crime
MINISTRY OF JUSTICE,LEGAL AID AGENCY,02/08/17,Lower Crime,LEGAL AID FUND,SWAIN & CO SOLICITORS,1266251:147686359,42000,Legal Aid Payment Lower Crime
MINISTRY OF JUSTICE,LEGAL AID AGENCY,02/08/17,Legal Help,LEGAL AID FUND,SWAIN & CO SOLICITORS,1266252:147684742,30400,Legal Aid Payment Legal Help
MINISTRY OF JUSTICE,LEGAL AID AGENCY,02/08/17,Lower Crime,LEGAL AID FUND,SWAIN & CO SOLICITORS,1268730:147718755,30166.96,Legal Aid Payment Lower Crime
MINISTRY OF JUSTICE,LEGAL AID AGENCY,16/08/17,Lower Crime,LEGAL AID FUND,SWAIN & CO SOLICITORS,1277842:147823164,27895.39,Legal Aid Payment Lower Crime
MINISTRY OF JUSTICE,LEGAL AID AGENCY,30/08/17,Lower Crime,LEGAL AID FUND,SWAIN & CO SOLICITORS,1287036:147886491,52000,Legal Aid Payment Lower Crime
MINISTRY OF JUSTICE,LEGAL AID AGENCY,30/08/17,Legal Help,LEGAL AID FUND,SWAIN & CO SOLICITORS,1287037:147884790,25000,Legal Aid Payment Legal Help
MINISTRY OF JUSTICE,LEGAL AID AGENCY,02/08/17,Legal Help,LEGAL AID FUND,SWITALSKI'S SOLICITORS LTD,1269290:147684772,55737,Legal Aid Payment Legal Help
MINISTRY OF JUSTICE,LEGAL AID AGENCY,23/08/17,Civil Representation,LEGAL AID FUND,SWITALSKI'S SOLICITORS LTD,1282837:147862577,25705.04,Legal Aid Payment Civil Representation
MINISTRY OF JUSTICE,LEGAL AID AGENCY,30/08/17,Legal Help,LEGAL AID FUND,SWITALSKI'S SOLICITORS LTD,1287589:147884816,37696,Legal Aid Payment Legal Help
MINISTRY OF JUSTICE,LEGAL AID AGENCY,02/08/17,Lower Crime,LEGAL AID FUND,T S LAW LTD,1266335:147686186,25000,Legal Aid Payment Lower Crime
MINISTRY OF JUSTICE,LEGAL AID AGENCY,02/08/17,Lower Crime,LEGAL AID FUND,T S LAW LTD,1267632:147686190,25000,Legal Aid Payment Lower Crime
MINISTRY OF JUSTICE,LEGAL AID AGENCY,16/08/17,Higher Crime,LEGAL AID FUND,T S LAW LTD,1278075:147779317,27378.56,Legal Aid Payment Higher Crime
MINISTRY OF JUSTICE,LEGAL AID AGENCY,30/08/17,Lower Crime,LEGAL AID FUND,T S LAW LTD,1284786:147886285,25000,Legal Aid Payment Lower Crime
MINISTRY OF JUSTICE,LEGAL AID AGENCY,30/08/17,Lower Crime,LEGAL AID FUND,T S LAW LTD,1287201:147886281,25000,Legal Aid Payment Lower Crime
MINISTRY OF JUSTICE,LEGAL AID AGENCY,02/08/17,Legal Help,LEGAL AID FUND,T V EDWARDS LLP,1269382:147684778,64900,Legal Aid Payment Legal Help
MINISTRY OF JUSTICE,LEGAL AID AGENCY,02/08/17,Lower Crime,LEGAL AID FUND,T V EDWARDS LLP,1269382:147686431,85200,Legal Aid Payment Lower Crime
MINISTRY OF JUSTICE,LEGAL AID AGENCY,09/08/17,Higher Crime,LEGAL AID FUND,T V EDWARDS LLP,1273873:147762833,51504.42,Legal Aid Payment Higher Crime
MINISTRY OF JUSTICE,LEGAL AID AGENCY,23/08/17,Higher Crime,LEGAL AID FUND,T V EDWARDS LLP,1282888:147856122,29942.17,Legal Aid Payment Higher Crime
MINISTRY OF JUSTICE,LEGAL AID AGENCY,30/08/17,Legal Help,LEGAL AID FUND,T V EDWARDS LLP,1287760:147884837,64900,Legal Aid Payment Legal Help
MINISTRY OF JUSTICE,LEGAL AID AGENCY,30/08/17,Lower Crime,LEGAL AID FUND,T V EDWARDS LLP,1287760:147886522,85200,Legal Aid Payment Lower Crime
MINISTRY OF JUSTICE,LEGAL AID AGENCY,23/08/17,Legal Help,LEGAL AID FUND,T. A. LAW,1282480:147845410,29537.75,Legal Aid Payment Legal Help
MINISTRY OF JUSTICE,LEGAL AID AGENCY,02/08/17,Lower Crime,LEGAL AID FUND,TAIT FARRIER GRAHAM,1266566:147686247,29000,Legal Aid Payment Lower Crime
MINISTRY OF JUSTICE,LEGAL AID AGENCY,09/08/17,Higher Crime,LEGAL AID FUND,TAIT FARRIER GRAHAM,1271723:147763855,34319.18,Legal Aid Payment Higher Crime
MINISTRY OF JUSTICE,LEGAL AID AGENCY,30/08/17,Lower Crime,LEGAL AID FUND,TAIT FARRIER GRAHAM,1287791:147886345,29000,Legal Aid Payment Lower Crime
MINISTRY OF JUSTICE,LEGAL AID AGENCY,09/08/17,Civil Representation,LEGAL AID FUND,TALLENTS SOLICITORS,1273791:147547531,30357.73,Legal Aid Payment Civil Representation
MINISTRY OF JUSTICE,LEGAL AID AGENCY,09/08/17,Civil Representation,LEGAL AID FUND,TALLENTS SOLICITORS,1273791:147760228,32490.97,Legal Aid Payment Civil Representation
MINISTRY OF JUSTICE,LEGAL AID AGENCY,09/08/17,Civil Representation,LEGAL AID FUND,TALLENTS SOLICITORS,1273791:147760229,-30357.73,Legal Aid Payment Civil Representation
MINISTRY OF JUSTICE,LEGAL AID AGENCY,02/08/17,Higher Crime,LEGAL AID FUND,TAYLOR GOODCHILD LTD,1266131:147713985,35009.67,Legal Aid Payment Higher Crime
MINISTRY OF JUSTICE,LEGAL AID AGENCY,02/08/17,Lower Crime,LEGAL AID FUND,TAYLOR HALDANE BARLEX LLP,1264527:147686234,27896,Legal Aid Payment Lower Crime
MINISTRY OF JUSTICE,LEGAL AID AGENCY,02/08/17,Lower Crime,LEGAL AID FUND,TAYLOR HALDANE BARLEX LLP,1268984:147686281,32176,Legal Aid Payment Lower Crime
MINISTRY OF JUSTICE,LEGAL AID AGENCY,09/08/17,Higher Crime,LEGAL AID FUND,TAYLOR HALDANE BARLEX LLP,1270450:147762825,39437.16,Legal Aid Payment Higher Crime
MINISTRY OF JUSTICE,LEGAL AID AGENCY,16/08/17,Higher Crime,LEGAL AID FUND,TAYLOR HALDANE BARLEX LLP,1276880:147816283,47399.5,Legal Aid Payment Higher Crime
MINISTRY OF JUSTICE,LEGAL AID AGENCY,30/08/17,Lower Crime,LEGAL AID FUND,TAYLOR HALDANE BARLEX LLP,1287109:147886300,25885,Legal Aid Payment Lower Crime
MINISTRY OF JUSTICE,LEGAL AID AGENCY,02/08/17,Lower Crime,LEGAL AID FUND,TAYLOR STREET SOLICITORS LLP,1269270:147710684,32400,Legal Aid Payment Lower Crime
MINISTRY OF JUSTICE,LEGAL AID AGENCY,30/08/17,Lower Crime,LEGAL AID FUND,TAYLOR STREET SOLICITORS LLP,1287655:147886382,32400,Legal Aid Payment Lower Crime
MINISTRY OF JUSTICE,LEGAL AID AGENCY,02/08/17,Lower Crime,LEGAL AID FUND,TEESSIDE LAW LTD,1264652:147686298,33615,Legal Aid Payment Lower Crime
MINISTRY OF JUSTICE,LEGAL AID AGENCY,30/08/17,Lower Crime,LEGAL AID FUND,TEESSIDE LAW LTD,1284213:147886425,37821,Legal Aid Payment Lower Crime
MINISTRY OF JUSTICE,LEGAL AID AGENCY,02/08/17,Legal Help,LEGAL AID FUND,THALIWAL & CO LTD,1268839:147684748,34010,Legal Aid Payment Legal Help
MINISTRY OF JUSTICE,LEGAL AID AGENCY,30/08/17,Legal Help,LEGAL AID FUND,THALIWAL & CO LTD,1286882:147884812,35086,Legal Aid Payment Legal Help
MINISTRY OF JUSTICE,LEGAL AID AGENCY,02/08/17,Lower Crime,LEGAL AID FUND,THE CASTLE PARTNERSHIP,1266412:147686332,37000,Legal Aid Payment Lower Crime
MINISTRY OF JUSTICE,LEGAL AID AGENCY,30/08/17,Lower Crime,LEGAL AID FUND,THE CASTLE PARTNERSHIP,1287337:147886422,37000,Legal Aid Payment Lower Crime
MINISTRY OF JUSTICE,LEGAL AID AGENCY,02/08/17,Legal Help,LEGAL AID FUND,THE COMMUNITY LAW PARTNERSHIP LTD,1266208:147684737,28400,Legal Aid Payment Legal Help
MINISTRY OF JUSTICE,LEGAL AID AGENCY,23/08/17,Legal Help,LEGAL AID FUND,THE COMMUNITY LAW PARTNERSHIP LTD,1280447:147844659,26015.58,Legal Aid Payment Legal Help
MINISTRY OF JUSTICE,LEGAL AID AGENCY,02/08/17,Lower Crime,LEGAL AID FUND,THE JOHNSON PARTNERSHIP,1264657:147686191,25000,Legal Aid Payment Lower Crime
MINISTRY OF JUSTICE,LEGAL AID AGENCY,02/08/17,Lower Crime,LEGAL AID FUND,THE JOHNSON PARTNERSHIP,1265926:147686352,40600,Legal Aid Payment Lower Crime
MINISTRY OF JUSTICE,LEGAL AID AGENCY,02/08/17,Lower Crime,LEGAL AID FUND,THE JOHNSON PARTNERSHIP,1269110:147686371,44000,Legal Aid Payment Lower Crime
MINISTRY OF JUSTICE,LEGAL AID AGENCY,02/08/17,Lower Crime,LEGAL AID FUND,THE JOHNSON PARTNERSHIP,1269111:147686285,32500,Legal Aid Payment Lower Crime
MINISTRY OF JUSTICE,LEGAL AID AGENCY,02/08/17,Lower Crime,LEGAL AID FUND,THE JOHNSON PARTNERSHIP,1269112:147686440,190000,Legal Aid Payment Lower Crime
MINISTRY OF JUSTICE,LEGAL AID AGENCY,02/08/17,Lower Crime,LEGAL AID FUND,THE JOHNSON PARTNERSHIP,1269112:147718991,25445.12,Legal Aid Payment Lower Crime
MINISTRY OF JUSTICE,LEGAL AID AGENCY,30/08/17,Lower Crime,LEGAL AID FUND,THE JOHNSON PARTNERSHIP,1284220:147886286,25000,Legal Aid Payment Lower Crime
MINISTRY OF JUSTICE,LEGAL AID AGENCY,30/08/17,Lower Crime,LEGAL AID FUND,THE JOHNSON PARTNERSHIP,1286450:147886441,40600,Legal Aid Payment Lower Crime
MINISTRY OF JUSTICE,LEGAL AID AGENCY,30/08/17,Lower Crime,LEGAL AID FUND,THE JOHNSON PARTNERSHIP,1287507:147886457,44000,Legal Aid Payment Lower Crime
MINISTRY OF JUSTICE,LEGAL AID AGENCY,30/08/17,Lower Crime,LEGAL AID FUND,THE JOHNSON PARTNERSHIP,1287508:147886383,32500,Legal Aid Payment Lower Crime
MINISTRY OF JUSTICE,LEGAL AID AGENCY,30/08/17,Lower Crime,LEGAL AID FUND,THE JOHNSON PARTNERSHIP,1287509:147886531,190000,Legal Aid Payment Lower Crime
MINISTRY OF JUSTICE,LEGAL AID AGENCY,30/08/17,Higher Crime,LEGAL AID FUND,THE SOLICITORS CHAMBERS,1286919:147877182,40967.1,Legal Aid Payment Higher Crime
MINISTRY OF JUSTICE,LEGAL AID AGENCY,02/08/17,Lower Crime,LEGAL AID FUND,THOMAS BOYD WHYTE,1266879:147686322,35731,Legal Aid Payment Lower Crime
MINISTRY OF JUSTICE,LEGAL AID AGENCY,30/08/17,Lower Crime,LEGAL AID FUND,THOMAS BOYD WHYTE,1288366:147886475,46955,Legal Aid Payment Lower Crime
MINISTRY OF JUSTICE,LEGAL AID AGENCY,30/08/17,Higher Crime,LEGAL AID FUND,THOMAS BOYD WHYTE,1288366:147904773,31667.77,Legal Aid Payment Higher Crime
MINISTRY OF JUSTICE,LEGAL AID AGENCY,09/08/17,Civil Representation,LEGAL AID FUND,THOMPSON & CO SOLICITORS LTD,1273369:147742041,37610.23,Legal Aid Payment Civil Representation
MINISTRY OF JUSTICE,LEGAL AID AGENCY,09/08/17,Higher Crime,LEGAL AID FUND,THOMPSON & CO SOLICITORS LTD,1273814:147746354,46773.9,Legal Aid Payment Higher Crime
MINISTRY OF JUSTICE,LEGAL AID AGENCY,16/08/17,Higher Crime,LEGAL AID FUND,TIMOTHY J MOLONEY QC,1277640:147816883,38230.63,Legal Aid Payment Higher Crime
MINISTRY OF JUSTICE,LEGAL AID AGENCY,30/08/17,Higher Crime,LEGAL AID FUND,TIMOTHY W H RAGGATT QC,1286081:147870873,26373.49,Legal Aid Payment Higher Crime
MINISTRY OF JUSTICE,LEGAL AID AGENCY,09/08/17,Civil Representation,LEGAL AID FUND,TINA G COOK QC,1270908:147693950,44404.2,Legal Aid Payment Civil Representation
MINISTRY OF JUSTICE,LEGAL AID AGENCY,09/08/17,Higher Crime,LEGAL AID FUND,TRANTERS CRIMINAL LAW PRACTICE,1271561:147722963,60684.49,Legal Aid Payment Higher Crime
MINISTRY OF JUSTICE,LEGAL AID AGENCY,09/08/17,Higher Crime,LEGAL AID FUND,TRANTERS CRIMINAL LAW PRACTICE,1271561:147762879,89975.11,Legal Aid Payment Higher Crime
MINISTRY OF JUSTICE,LEGAL AID AGENCY,30/08/17,Lower Crime,LEGAL AID FUND,TRANTERS CRIMINAL LAW PRACTICE,1287264:147886340,28600,Legal Aid Payment Lower Crime
MINISTRY OF JUSTICE,LEGAL AID AGENCY,08/08/17,Civil Representation,LEGAL AID FUND,TRETHOWANS LLP,1269883:2000000000004356,115998.75,Legal Aid Payment Civil Representation
MINISTRY OF JUSTICE,LEGAL AID AGENCY,02/08/17,Legal Help,LEGAL AID FUND,TRP SOLICITORS LTD,1265992:147684729,26600,Legal Aid Payment Legal Help
MINISTRY OF JUSTICE,LEGAL AID AGENCY,30/08/17,Legal Help,LEGAL AID FUND,TRP SOLICITORS LTD,1286600:147884794,26600,Legal Aid Payment Legal Help
MINISTRY OF JUSTICE,LEGAL AID AGENCY,02/08/17,Lower Crime,LEGAL AID FUND,TUCKERS SOLICITORS LLP,1264412:147686305,34234,Legal Aid Payment Lower Crime
MINISTRY OF JUSTICE,LEGAL AID AGENCY,02/08/17,Lower Crime,LEGAL AID FUND,TUCKERS SOLICITORS LLP,1264597:147686225,27400,Legal Aid Payment Lower Crime
MINISTRY OF JUSTICE,LEGAL AID AGENCY,02/08/17,Lower Crime,LEGAL AID FUND,TUCKERS SOLICITORS LLP,1266603:147686438,130300,Legal Aid Payment Lower Crime
MINISTRY OF JUSTICE,LEGAL AID AGENCY,02/08/17,Higher Crime,LEGAL AID FUND,TUCKERS SOLICITORS LLP,1266604:147677500,54847.2,Legal Aid Payment Higher Crime
MINISTRY OF JUSTICE,LEGAL AID AGENCY,02/08/17,Lower Crime,LEGAL AID FUND,TUCKERS SOLICITORS LLP,1266604:147686439,177200,Legal Aid Payment Lower Crime
MINISTRY OF JUSTICE,LEGAL AID AGENCY,02/08/17,Higher Crime,LEGAL AID FUND,TUCKERS SOLICITORS LLP,1266604:147714156,52077.23,Legal Aid Payment Higher Crime
MINISTRY OF JUSTICE,LEGAL AID AGENCY,02/08/17,Lower Crime,LEGAL AID FUND,TUCKERS SOLICITORS LLP,1268638:147686334,37200,Legal Aid Payment Lower Crime
MINISTRY OF JUSTICE,LEGAL AID AGENCY,23/08/17,Legal Help,LEGAL AID FUND,TUCKERS SOLICITORS LLP,1282961:147854098,50010.55,Legal Aid Payment Legal Help
MINISTRY OF JUSTICE,LEGAL AID AGENCY,30/08/17,Lower Crime,LEGAL AID FUND,TUCKERS SOLICITORS LLP,1283830:147886379,32316,Legal Aid Payment Lower Crime
MINISTRY OF JUSTICE,LEGAL AID AGENCY,30/08/17,Lower Crime,LEGAL AID FUND,TUCKERS SOLICITORS LLP,1284075:147886324,27400,Legal Aid Payment Lower Crime
MINISTRY OF JUSTICE,LEGAL AID AGENCY,30/08/17,Lower Crime,LEGAL AID FUND,TUCKERS SOLICITORS LLP,1286503:147886423,37200,Legal Aid Payment Lower Crime
MINISTRY OF JUSTICE,LEGAL AID AGENCY,30/08/17,Lower Crime,LEGAL AID FUND,TUCKERS SOLICITORS LLP,1287733:147886528,130300,Legal Aid Payment Lower Crime
MINISTRY OF JUSTICE,LEGAL AID AGENCY,30/08/17,Lower Crime,LEGAL AID FUND,TUCKERS SOLICITORS LLP,1287734:147886529,177200,Legal Aid Payment Lower Crime
MINISTRY OF JUSTICE,LEGAL AID AGENCY,02/08/17,Legal Help,LEGAL AID FUND,TURPIN & MILLER LLP,1266205:147684765,43908,Legal Aid Payment Legal Help
MINISTRY OF JUSTICE,LEGAL AID AGENCY,30/08/17,Legal Help,LEGAL AID FUND,TURPIN & MILLER LLP,1286984:147884824,43659,Legal Aid Payment Legal Help
MINISTRY OF JUSTICE,LEGAL AID AGENCY,23/08/17,Higher Crime,LEGAL AID FUND,TYRONE G SMITH,1282245:147856678,26302.55,Legal Aid Payment Higher Crime
MINISTRY OF JUSTICE,LEGAL AID AGENCY,02/08/17,Lower Crime,LEGAL AID FUND,USMANI KING LTD,1266204:147686366,43100,Legal Aid Payment Lower Crime
MINISTRY OF JUSTICE,LEGAL AID AGENCY,30/08/17,Lower Crime,LEGAL AID FUND,USMANI KING LTD,1286983:147886430,38874,Legal Aid Payment Lower Crime
MINISTRY OF JUSTICE,LEGAL AID AGENCY,30/08/17,Higher Crime,LEGAL AID FUND,VEJA & CO LTD,1287742:147905134,67481.75,Legal Aid Payment Higher Crime
MINISTRY OF JUSTICE,LEGAL AID AGENCY,02/08/17,Lower Crime,LEGAL AID FUND,VHS FLETCHERS,1268672:147686286,32700,Legal Aid Payment Lower Crime
MINISTRY OF JUSTICE,LEGAL AID AGENCY,02/08/17,Lower Crime,LEGAL AID FUND,VHS FLETCHERS,1269186:147686379,44600,Legal Aid Payment Lower Crime
MINISTRY OF JUSTICE,LEGAL AID AGENCY,30/08/17,Lower Crime,LEGAL AID FUND,VHS FLETCHERS,1286537:147886386,32700,Legal Aid Payment Lower Crime
MINISTRY OF JUSTICE,LEGAL AID AGENCY,30/08/17,Lower Crime,LEGAL AID FUND,VHS FLETCHERS,1287391:147886462,44600,Legal Aid Payment Lower Crime
MINISTRY OF JUSTICE,LEGAL AID AGENCY,02/08/17,Lower Crime,LEGAL AID FUND,VICKERS CHISMAN & WISHLADE,1269217:147686369,43800,Legal Aid Payment Lower Crime
MINISTRY OF JUSTICE,LEGAL AID AGENCY,02/08/17,Higher Crime,LEGAL AID FUND,VICKERS CHISMAN & WISHLADE,1269217:147715213,74979.26,Legal Aid Payment Higher Crime
MINISTRY OF JUSTICE,LEGAL AID AGENCY,30/08/17,Lower Crime,LEGAL AID FUND,VICKERS CHISMAN & WISHLADE,1287703:147886506,60200,Legal Aid Payment Lower Crime
MINISTRY OF JUSTICE,LEGAL AID AGENCY,02/08/17,Legal Help,LEGAL AID FUND,VIRGO SOLICITORS LTD,1267417:147684741,30137,Legal Aid Payment Legal Help
MINISTRY OF JUSTICE,LEGAL AID AGENCY,02/08/17,Lower Crime,LEGAL AID FUND,VYMAN SOLICITORS LTD,1268871:147686329,36176,Legal Aid Payment Lower Crime
MINISTRY OF JUSTICE,LEGAL AID AGENCY,30/08/17,Lower Crime,LEGAL AID FUND,VYMAN SOLICITORS LTD,1286913:147886447,41948,Legal Aid Payment Lower Crime
MINISTRY OF JUSTICE,LEGAL AID AGENCY,02/08/17,Lower Crime,LEGAL AID FUND,WAINWRIGHT & CUMMINS LLP,1266099:147686358,42000,Legal Aid Payment Lower Crime
MINISTRY OF JUSTICE,LEGAL AID AGENCY,30/08/17,Lower Crime,LEGAL AID FUND,WAINWRIGHT & CUMMINS LLP,1286798:147886448,42000,Legal Aid Payment Lower Crime
MINISTRY OF JUSTICE,LEGAL AID AGENCY,02/08/17,Lower Crime,LEGAL AID FUND,WALKER LAHIVE,1266542:147686205,25834,Legal Aid Payment Lower Crime
MINISTRY OF JUSTICE,LEGAL AID AGENCY,02/08/17,Higher Crime,LEGAL AID FUND,WALKER LAHIVE,1266542:147688252,89975.11,Legal Aid Payment Higher Crime
MINISTRY OF JUSTICE,LEGAL AID AGENCY,02/08/17,Lower Crime,LEGAL AID FUND,WALTER & PLASKITT INC LESLIE DODD,1269010:147686258,30000,Legal Aid Payment Lower Crime
MINISTRY OF JUSTICE,LEGAL AID AGENCY,02/08/17,Higher Crime,LEGAL AID FUND,WALTER & PLASKITT INC LESLIE DODD,1269010:147688068,37232.17,Legal Aid Payment Higher Crime
MINISTRY OF JUSTICE,LEGAL AID AGENCY,02/08/17,Lower Crime,LEGAL AID FUND,WANNOPS LLP,1268560:147686333,37100,Legal Aid Payment Lower Crime
MINISTRY OF JUSTICE,LEGAL AID AGENCY,30/08/17,Civil Representation,LEGAL AID FUND,WANNOPS LLP,1284773:3000001233000015RC,-25779.6,Legal Aid Payment Civil Representation
MINISTRY OF JUSTICE,LEGAL AID AGENCY,30/08/17,Civil Representation,LEGAL AID FUND,WANNOPS LLP,1284773:3000001233000016,28185.44,Legal Aid Payment Civil Representation
MINISTRY OF JUSTICE,LEGAL AID AGENCY,30/08/17,Lower Crime,LEGAL AID FUND,WANNOPS LLP,1286335:147886435,39744,Legal Aid Payment Lower Crime
MINISTRY OF JUSTICE,LEGAL AID AGENCY,30/08/17,Lower Crime,LEGAL AID FUND,WATSON WOODHOUSE SOLICITORS LLP,1266596:147686214,26500,Legal Aid Payment Lower Crime
MINISTRY OF JUSTICE,LEGAL AID AGENCY,30/08/17,Lower Crime,LEGAL AID FUND,WATSON WOODHOUSE SOLICITORS LLP,1266598:147686403,53700,Legal Aid Payment Lower Crime
MINISTRY OF JUSTICE,LEGAL AID AGENCY,30/08/17,Higher Crime,LEGAL AID FUND,WATSON WOODHOUSE SOLICITORS LLP,1276129:147771414,65901.53,Legal Aid Payment Higher Crime
MINISTRY OF JUSTICE,LEGAL AID AGENCY,30/08/17,Higher Crime,LEGAL AID FUND,WATSON WOODHOUSE SOLICITORS LLP,1276129:147778307,59167.95,Legal Aid Payment Higher Crime
MINISTRY OF JUSTICE,LEGAL AID AGENCY,30/08/17,Lower Crime,LEGAL AID FUND,WATSON WOODHOUSE SOLICITORS LLP,1287726:147886314,26500,Legal Aid Payment Lower Crime
MINISTRY OF JUSTICE,LEGAL AID AGENCY,30/08/17,Lower Crime,LEGAL AID FUND,WATSON WOODHOUSE SOLICITORS LLP,1287728:147886344,29000,Legal Aid Payment Lower Crime
MINISTRY OF JUSTICE,LEGAL AID AGENCY,30/08/17,Civil Representation,LEGAL AID FUND,WBW SOLICITORS LLP,1271898:147767675,30842.85,Legal Aid Payment Civil Representation
MINISTRY OF JUSTICE,LEGAL AID AGENCY,30/08/17,Lower Crime,LEGAL AID FUND,WELLS BURCOMBE LLP,1268614:147686425,71125,Legal Aid Payment Lower Crime
MINISTRY OF JUSTICE,LEGAL AID AGENCY,30/08/17,Lower Crime,LEGAL AID FUND,WELLS BURCOMBE LLP,1268645:147686404,53853,Legal Aid Payment Lower Crime
MINISTRY OF JUSTICE,LEGAL AID AGENCY,30/08/17,Lower Crime,LEGAL AID FUND,WELLS BURCOMBE LLP,1286301:147886510,63680,Legal Aid Payment Lower Crime
MINISTRY OF JUSTICE,LEGAL AID AGENCY,30/08/17,Lower Crime,LEGAL AID FUND,WELLS BURCOMBE LLP,1286511:147886442,40969,Legal Aid Payment Lower Crime
MINISTRY OF JUSTICE,LEGAL AID AGENCY,30/08/17,Lower Crime,LEGAL AID FUND,WESSEX SOLICITORS CHAMBERS,1265945:147686406,55000,Legal Aid Payment Lower Crime
MINISTRY OF JUSTICE,LEGAL AID AGENCY,30/08/17,Lower Crime,LEGAL AID FUND,WESSEX SOLICITORS CHAMBERS,1286563:147886498,55000,Legal Aid Payment Lower Crime
MINISTRY OF JUSTICE,LEGAL AID AGENCY,30/08/17,Higher Crime,LEGAL AID FUND,WESTGARTHS,1282677:147856633,66797.06,Legal Aid Payment Higher Crime
MINISTRY OF JUSTICE,LEGAL AID AGENCY,30/08/17,Higher Crime,LEGAL AID FUND,WILFORD SMITH & CO LTD,1286957:147863872,57751.26,Legal Aid Payment Higher Crime
MINISTRY OF JUSTICE,LEGAL AID AGENCY,30/08/17,Higher Crime,LEGAL AID FUND,WILLIAM H MOUSLEY QC,1265418:147715086,32907.99,Legal Aid Payment Higher Crime
MINISTRY OF JUSTICE,LEGAL AID AGENCY,30/08/17,Lower Crime,LEGAL AID FUND,WILLIAMSONS SOLICITORS LTD,1266643:147686357,41600,Legal Aid Payment Lower Crime
MINISTRY OF JUSTICE,LEGAL AID AGENCY,30/08/17,Higher Crime,LEGAL AID FUND,WILLIAMSONS SOLICITORS LTD,1280705:147857546,25792.57,Legal Aid Payment Higher Crime
MINISTRY OF JUSTICE,LEGAL AID AGENCY,30/08/17,Lower Crime,LEGAL AID FUND,WILLIAMSONS SOLICITORS LTD,1287681:147886445,41600,Legal Aid Payment Lower Crime
MINISTRY OF JUSTICE,LEGAL AID AGENCY,30/08/17,Civil Representation,LEGAL AID FUND,WILSON BROWNE LLP,1282821:3000001158320015,30194.27,Legal Aid Payment Civil Representation
MINISTRY OF JUSTICE,LEGAL AID AGENCY,30/08/17,Lower Crime,LEGAL AID FUND,WILSON DEVONALD GRIFFITHS JOHN,1269062:147686380,45000,Legal Aid Payment Lower Crime
MINISTRY OF JUSTICE,LEGAL AID AGENCY,30/08/17,Lower Crime,LEGAL AID FUND,WILSON DEVONALD GRIFFITHS JOHN,1287280:147886464,45000,Legal Aid Payment Lower Crime
MINISTRY OF JUSTICE,LEGAL AID AGENCY,30/08/17,Legal Help,LEGAL AID FUND,WILSON SOLICITORS LLP,1267378:147684744,31700,Legal Aid Payment Legal Help
MINISTRY OF JUSTICE,LEGAL AID AGENCY,30/08/17,Legal Help,LEGAL AID FUND,WILSON SOLICITORS LLP,1269027:147684781,70000,Legal Aid Payment Legal Help
MINISTRY OF JUSTICE,LEGAL AID AGENCY,30/08/17,Legal Help,LEGAL AID FUND,WILSON SOLICITORS LLP,1284298:147884835,60180,Legal Aid Payment Legal Help
MINISTRY OF JUSTICE,LEGAL AID AGENCY,30/08/17,Legal Help,LEGAL AID FUND,WILSON SOLICITORS LLP,1287245:147884839,70000,Legal Aid Payment Legal Help
MINISTRY OF JUSTICE,LEGAL AID AGENCY,30/08/17,Civil Representation,LEGAL AID FUND,WOLFERSTANS,1269863:2000000000004327,86922.01,Legal Aid Payment Civil Representation
MINISTRY OF JUSTICE,LEGAL AID AGENCY,30/08/17,Civil Representation,LEGAL AID FUND,WOLFERSTANS,1287400:3000001066500009,25651.5,Legal Aid Payment Civil Representation
MINISTRY OF JUSTICE,LEGAL AID AGENCY,30/08/17,Legal Help,LEGAL AID FUND,WOLTON & CO,1268896:147684755,36004,Legal Aid Payment Legal Help
MINISTRY OF JUSTICE,LEGAL AID AGENCY,30/08/17,Civil Representation,LEGAL AID FUND,WOODFINES LLP,1280357:3000000469850029,35697.26,Legal Aid Payment Civil Representation
MINISTRY OF JUSTICE,LEGAL AID AGENCY,30/08/17,Lower Crime,LEGAL AID FUND,YARWOOD & STUBLEY,1266595:147686199,25400,Legal Aid Payment Lower Crime
MINISTRY OF JUSTICE,LEGAL AID AGENCY,30/08/17,Lower Crime,LEGAL AID FUND,YARWOOD & STUBLEY,1287725:147886294,25400,Legal Aid Payment Lower Crime
MINISTRY OF JUSTICE,LEGAL AID AGENCY,30/08/17,Civil Representation,LEGAL AID FUND,ZAHID HUSSAIN,1281731:3000001158270013,26772.12,Legal Aid Payment Civil Representation
MINISTRY OF JUSTICE,LEGAL AID AGENCY,30/08/17,Lower Crime,LEGAL AID FUND,ZMS LEGAL LTD TA ZMS SOLICITORS,1286601:147886389,32952,Legal Aid Payment Lower Crime
